Workbook

Sheet Skriveni (hidden)
A1: VP | B1: AOP | C1: IZNOS01 | D1: IZNOS02 | E1: IZNOS03 | F1: IZNOS04 | G1: KONTRBR | H1: RAZLIKA | I1: RAZLIKA1 | J1: POLJE | K1: TEKST | L1: BROJ
A2: 151 | B2: 1 | C2: ='PR-RAS'!D6 -> 95889.13 | D2: ='PR-RAS'!E6 -> 112184.11 | E2: 0 | F2: 0 | G2: =(B2/1000)*(C2*1+D2*2) -> 320.25735 | H2: =ABS(C2-ROUND(C2,0))+ABS(D2-ROUND(D2,0)) -> 0.24 | I2: 0
A3: 151 | B3: 2 | C3: ='PR-RAS'!D7 -> 0 | D3: ='PR-RAS'!E7 -> 0 | E3: 0 | F3: 0 | G3: 0 | H3: 0 | I3: 0
A4: 151 | B4: 3 | C4: ='PR-RAS'!D8 -> 0 | D4: ='PR-RAS'!E8 -> 0 | E4: 0 | F4: 0 | G4: 0 | H4: 0 | I4: 0
A5: 151 | B5: 4 | C5: ='PR-RAS'!D9 -> 0 | D5: ='PR-RAS'!E9 -> 0 | E5: 0 | F5: 0 | G5: 0 | H5: 0 | I5: 0
A6: 151 | B6: 5 | C6: ='PR-RAS'!D10 -> 0 | D6: ='PR-RAS'!E10 -> 0 | E6: 0 | F6: 0 | G6: 0 | H6: 0 | I6: 0
A7: 151 | B7: 6 | C7: ='PR-RAS'!D11 -> 0 | D7: ='PR-RAS'!E11 -> 0 | E7: 0 | F7: 0 | G7: 0 | H7: 0 | I7: 0
A8: 151 | B8: 7 | C8: ='PR-RAS'!D12 -> 0 | D8: ='PR-RAS'!E12 -> 0 | E8: 0 | F8: 0 | G8: 0 | H8: 0 | I8: 0
A9: 151 | B9: 8 | C9: ='PR-RAS'!D13 -> 0 | D9: ='PR-RAS'!E13 -> 0 | E9: 0 | F9: 0 | G9: 0 | H9: 0 | I9: 0
A10: 151 | B10: 9 | C10: ='PR-RAS'!D14 -> 0 | D10: ='PR-RAS'!E14 -> 0 | E10: 0 | F10: 0 | G10: 0 | H10: 0 | I10: 0
A11: 151 | B11: 10 | C11: ='PR-RAS'!D15 -> 0 | D11: ='PR-RAS'!E15 -> 0 | E11: 0 | F11: 0 | G11: 0 | H11: 0 | I11: 0
A12: 151 | B12: 11 | C12: ='PR-RAS'!D16 -> 0 | D12: ='PR-RAS'!E16 -> 0 | E12: 0 | F12: 0 | G12: 0 | H12: 0 | I12: 0
A13: 151 | B13: 12 | C13: ='PR-RAS'!D17 -> 0 | D13: ='PR-RAS'!E17 -> 0 | E13: 0 | F13: 0 | G13: 0 | H13: 0 | I13: 0
A14: 151 | B14: 13 | C14: ='PR-RAS'!D18 -> 0 | D14: ='PR-RAS'!E18 -> 0 | E14: 0 | F14: 0 | G14: 0 | H14: 0 | I14: 0
A15: 151 | B15: 14 | C15: ='PR-RAS'!D19 -> 0 | D15: ='PR-RAS'!E19 -> 0 | E15: 0 | F15: 0 | G15: 0 | H15: 0 | I15: 0
A16: 151 | B16: 15 | C16: ='PR-RAS'!D20 -> 0 | D16: ='PR-RAS'!E20 -> 0 | E16: 0 | F16: 0 | G16: 0 | H16: 0 | I16: 0
A17: 151 | B17: 16 | C17: ='PR-RAS'!D21 -> 0 | D17: ='PR-RAS'!E21 -> 0 | E17: 0 | F17: 0 | G17: 0 | H17: 0 | I17: 0
A18: 151 | B18: 17 | C18: ='PR-RAS'!D22 -> 0 | D18: ='PR-RAS'!E22 -> 0 | E18: 0 | F18: 0 | G18: 0 | H18: 0 | I18: 0
A19: 151 | B19: 18 | C19: ='PR-RAS'!D23 -> 0 | D19: ='PR-RAS'!E23 -> 0 | E19: 0 | F19: 0 | G19: 0 | H19: 0 | I19: 0
A20: 151 | B20: 19 | C20: ='PR-RAS'!D24 -> 0 | D20: ='PR-RAS'!E24 -> 0 | E20: 0 | F20: 0 | G20: 0 | H20: 0 | I20: 0
A21: 151 | B21: 20 | C21: ='PR-RAS'!D25 -> 0 | D21: ='PR-RAS'!E25 -> 0 | E21: 0 | F21: 0 | G21: 0 | H21: 0 | I21: 0
A22: 151 | B22: 21 | C22: ='PR-RAS'!D26 -> 0 | D22: ='PR-RAS'!E26 -> 0 | E22: 0 | F22: 0 | G22: 0 | H22: 0 | I22: 0
A23: 151 | B23: 22 | C23: ='PR-RAS'!D27 -> 0 | D23: ='PR-RAS'!E27 -> 0 | E23: 0 | F23: 0 | G23: 0 | H23: 0 | I23: 0
A24: 151 | B24: 23 | C24: ='PR-RAS'!D28 -> 0 | D24: ='PR-RAS'!E28 -> 0 | E24: 0 | F24: 0 | G24: 0 | H24: 0 | I24: 0
A25: 151 | B25: 24 | C25: ='PR-RAS'!D29 -> 0 | D25: ='PR-RAS'!E29 -> 0 | E25: 0 | F25: 0 | G25: 0 | H25: 0 | I25: 0
A26: 151 | B26: 25 | C26: ='PR-RAS'!D30 -> 0 | D26: ='PR-RAS'!E30 -> 0 | E26: 0 | F26: 0 | G26: 0 | H26: 0 | I26: 0
A27: 151 | B27: 26 | C27: ='PR-RAS'!D31 -> 0 | D27: ='PR-RAS'!E31 -> 0 | E27: 0 | F27: 0 | G27: 0 | H27: 0 | I27: 0
A28: 151 | B28: 27 | C28: ='PR-RAS'!D32 -> 0 | D28: ='PR-RAS'!E32 -> 0 | E28: 0 | F28: 0 | G28: 0 | H28: 0 | I28: 0
A29: 151 | B29: 28 | C29: ='PR-RAS'!D33 -> 0 | D29: ='PR-RAS'!E33 -> 0 | E29: 0 | F29: 0 | G29: 0 | H29: 0 | I29: 0
A30: 151 | B30: 29 | C30: ='PR-RAS'!D34 -> 0 | D30: ='PR-RAS'!E34 -> 0 | E30: 0 | F30: 0 | G30: 0 | H30: 0 | I30: 0
A31: 151 | B31: 30 | C31: ='PR-RAS'!D35 -> 0 | D31: ='PR-RAS'!E35 -> 0 | E31: 0 | F31: 0 | G31: 0 | H31: 0 | I31: 0
A32: 151 | B32: 31 | C32: ='PR-RAS'!D36 -> 0 | D32: ='PR-RAS'!E36 -> 0 | E32: 0 | F32: 0 | G32: 0 | H32: 0 | I32: 0
A33: 151 | B33: 32 | C33: ='PR-RAS'!D37 -> 0 | D33: ='PR-RAS'!E37 -> 0 | E33: 0 | F33: 0 | G33: 0 | H33: 0 | I33: 0
A34: 151 | B34: 33 | C34: ='PR-RAS'!D38 -> 0 | D34: ='PR-RAS'!E38 -> 0 | E34: 0 | F34: 0 | G34: 0 | H34: 0 | I34: 0
A35: 151 | B35: 34 | C35: ='PR-RAS'!D39 -> 0 | D35: ='PR-RAS'!E39 -> 0 | E35: 0 | F35: 0 | G35: 0 | H35: 0 | I35: 0
A36: 151 | B36: 35 | C36: ='PR-RAS'!D40 -> 0 | D36: ='PR-RAS'!E40 -> 0 | E36: 0 | F36: 0 | G36: 0 | H36: 0 | I36: 0
A37: 151 | B37: 36 | C37: ='PR-RAS'!D41 -> 0 | D37: ='PR-RAS'!E41 -> 0 | E37: 0 | F37: 0 | G37: 0 | H37: 0 | I37: 0
A38: 151 | B38: 37 | C38: ='PR-RAS'!D42 -> 0 | D38: ='PR-RAS'!E42 -> 0 | E38: 0 | F38: 0 | G38: 0 | H38: 0 | I38: 0
A39: 151 | B39: 38 | C39: ='PR-RAS'!D43 -> 0 | D39: ='PR-RAS'!E43 -> 0 | E39: 0 | F39: 0 | G39: 0 | H39: 0 | I39: 0
A40: 151 | B40: 39 | C40: ='PR-RAS'!D44 -> 0 | D40: ='PR-RAS'!E44 -> 0 | E40: 0 | F40: 0 | G40: 0 | H40: 0 | I40: 0
A41: 151 | B41: 40 | C41: ='PR-RAS'!D45 -> 0 | D41: ='PR-RAS'!E45 -> 0 | E41: 0 | F41: 0 | G41: 0 | H41: 0 | I41: 0
A42: 151 | B42: 41 | C42: ='PR-RAS'!D46 -> 0 | D42: ='PR-RAS'!E46 -> 0 | E42: 0 | F42: 0 | G42: 0 | H42: 0 | I42: 0
A43: 151 | B43: 42 | C43: ='PR-RAS'!D47 -> 0 | D43: ='PR-RAS'!E47 -> 0 | E43: 0 | F43: 0 | G43: 0 | H43: 0 | I43: 0
A44: 151 | B44: 43 | C44: ='PR-RAS'!D48 -> 0 | D44: ='PR-RAS'!E48 -> 0 | E44: 0 | F44: 0 | G44: 0 | H44: 0 | I44: 0
A45: 151 | B45: 44 | C45: ='PR-RAS'!D49 -> 0 | D45: ='PR-RAS'!E49 -> 0 | E45: 0 | F45: 0 | G45: 0 | H45: 0 | I45: 0
A46: 151 | B46: 45 | C46: ='PR-RAS'!D50 -> 5308.91 | D46: ='PR-RAS'!E50 -> 8145.3 | E46: 0 | F46: 0 | G46: 971.97795 | H46: 0.39 | I46: 0
A47: 151 | B47: 46 | C47: ='PR-RAS'!D51 -> 0 | D47: ='PR-RAS'!E51 -> 0 | E47: 0 | F47: 0 | G47: 0 | H47: 0 | I47: 0
A48: 151 | B48: 47 | C48: ='PR-RAS'!D52 -> 0 | D48: ='PR-RAS'!E52 -> 0 | E48: 0 | F48: 0 | G48: 0 | H48: 0 | I48: 0
A49: 151 | B49: 48 | C49: ='PR-RAS'!D53 -> 0 | D49: ='PR-RAS'!E53 -> 0 | E49: 0 | F49: 0 | G49: 0 | H49: 0 | I49: 0
A50: 151 | B50: 49 | C50: ='PR-RAS'!D54 -> 0 | D50: ='PR-RAS'!E54 -> 0 | E50: 0 | F50: 0 | G50: 0 | H50: 0 | I50: 0
A51: 151 | B51: 50 | C51: ='PR-RAS'!D55 -> 0 | D51: ='PR-RAS'!E55 -> 0 | E51: 0 | F51: 0 | G51: 0 | H51: 0 | I51: 0
A52: 151 | B52: 51 | C52: ='PR-RAS'!D56 -> 0 | D52: ='PR-RAS'!E56 -> 0 | E52: 0 | F52: 0 | G52: 0 | H52: 0 | I52: 0
A53: 151 | B53: 52 | C53: ='PR-RAS'!D57 -> 0 | D53: ='PR-RAS'!E57 -> 0 | E53: 0 | F53: 0 | G53: 0 | H53: 0 | I53: 0
A54: 151 | B54: 53 | C54: ='PR-RAS'!D58 -> 0 | D54: ='PR-RAS'!E58 -> 0 | E54: 0 | F54: 0 | G54: 0 | H54: 0 | I54: 0
A55: 151 | B55: 54 | C55: ='PR-RAS'!D59 -> 0 | D55: ='PR-RAS'!E59 -> 0 | E55: 0 | F55: 0 | G55: 0 | H55: 0 | I55: 0
A56: 151 | B56: 55 | C56: ='PR-RAS'!D60 -> 0 | D56: ='PR-RAS'!E60 -> 0 | E56: 0 | F56: 0 | G56: 0 | H56: 0 | I56: 0
A57: 151 | B57: 56 | C57: ='PR-RAS'!D61 -> 0 | D57: ='PR-RAS'!E61 -> 0 | E57: 0 | F57: 0 | G57: 0 | H57: 0 | I57: 0
A58: 151 | B58: 57 | C58: ='PR-RAS'!D62 -> 0 | D58: ='PR-RAS'!E62 -> 0 | E58: 0 | F58: 0 | G58: 0 | H58: 0 | I58: 0
A59: 151 | B59: 58 | C59: ='PR-RAS'!D63 -> 0 | D59: ='PR-RAS'!E63 -> 0 | E59: 0 | F59: 0 | G59: 0 | H59: 0 | I59: 0
A60: 151 | B60: 59 | C60: ='PR-RAS'!D64 -> 0 | D60: ='PR-RAS'!E64 -> 0 | E60: 0 | F60: 0 | G60: 0 | H60: 0 | I60: 0
A61: 151 | B61: 60 | C61: ='PR-RAS'!D65 -> 0 | D61: ='PR-RAS'!E65 -> 0 | E61: 0 | F61: 0 | G61: 0 | H61: 0 | I61: 0
A62: 151 | B62: 61 | C62: ='PR-RAS'!D66 -> 0 | D62: ='PR-RAS'!E66 -> 0 | E62: 0 | F62: 0 | G62: 0 | H62: 0 | I62: 0
A63: 151 | B63: 62 | C63: ='PR-RAS'!D67 -> 0 | D63: ='PR-RAS'!E67 -> 0 | E63: 0 | F63: 0 | G63: 0 | H63: 0 | I63: 0
A64: 151 | B64: 63 | C64: ='PR-RAS'!D68 -> 5308.91 | D64: ='PR-RAS'!E68 -> 8145.3 | E64: 0 | F64: 0 | G64: 1360.76913 | H64: 0.39 | I64: 0
A65: 151 | B65: 64 | C65: ='PR-RAS'!D69 -> 0 | D65: ='PR-RAS'!E69 -> 0 | E65: 0 | F65: 0 | G65: 0 | H65: 0 | I65: 0
A66: 151 | B66: 65 | C66: ='PR-RAS'!D70 -> 5308.91 | D66: ='PR-RAS'!E70 -> 8145.3 | E66: 0 | F66: 0 | G66: 1403.96815 | H66: 0.39 | I66: 0
A67: 151 | B67: 66 | C67: ='PR-RAS'!D71 -> 0 | D67: ='PR-RAS'!E71 -> 0 | E67: 0 | F67: 0 | G67: =(B67/1000)*(C67*1+D67*2) -> 0 | H67: =ABS(C67-ROUND(C67,0))+ABS(D67-ROUND(D67,0)) -> 0 | I67: 0
A68: 151 | B68: 67 | C68: ='PR-RAS'!D72 -> 0 | D68: ='PR-RAS'!E72 -> 0 | E68: 0 | F68: 0 | G68: 0 | H68: 0 | I68: 0
A69: 151 | B69: 68 | C69: ='PR-RAS'!D73 -> 0 | D69: ='PR-RAS'!E73 -> 0 | E69: 0 | F69: 0 | G69: 0 | H69: 0 | I69: 0
A70: 151 | B70: 69 | C70: ='PR-RAS'!D74 -> 0 | D70: ='PR-RAS'!E74 -> 0 | E70: 0 | F70: 0 | G70: 0 | H70: 0 | I70: 0
A71: 151 | B71: 70 | C71: ='PR-RAS'!D75 -> 0 | D71: ='PR-RAS'!E75 -> 0 | E71: 0 | F71: 0 | G71: 0 | H71: 0 | I71: 0
A72: 151 | B72: 71 | C72: ='PR-RAS'!D76 -> 0 | D72: ='PR-RAS'!E76 -> 0 | E72: 0 | F72: 0 | G72: 0 | H72: 0 | I72: 0
A73: 151 | B73: 72 | C73: ='PR-RAS'!D77 -> 0 | D73: ='PR-RAS'!E77 -> 0 | E73: 0 | F73: 0 | G73: 0 | H73: 0 | I73: 0
A74: 151 | B74: 73 | C74: ='PR-RAS'!D78 -> 0 | D74: ='PR-RAS'!E78 -> 0 | E74: 0 | F74: 0 | G74: 0 | H74: 0 | I74: 0
A75: 151 | B75: 74 | C75: ='PR-RAS'!D79 -> 0 | D75: ='PR-RAS'!E79 -> 0 | E75: 0 | F75: 0 | G75: 0 | H75: 0 | I75: 0
A76: 151 | B76: 75 | C76: ='PR-RAS'!D80 -> 0 | D76: ='PR-RAS'!E80 -> 0 | E76: 0 | F76: 0 | G76: 0 | H76: 0 | I76: 0
A77: 151 | B77: 76 | C77: ='PR-RAS'!D81 -> 0 | D77: ='PR-RAS'!E81 -> 0 | E77: 0 | F77: 0 | G77: 0 | H77: 0 | I77: 0
A78: 151 | B78: 77 | C78: ='PR-RAS'!D82 -> 0 | D78: ='PR-RAS'!E82 -> 0 | E78: 0 | F78: 0 | G78: 0 | H78: 0 | I78: 0
A79: 151 | B79: 78 | C79: ='PR-RAS'!D83 -> 0 | D79: ='PR-RAS'!E83 -> 0 | E79: 0 | F79: 0 | G79: 0 | H79: 0 | I79: 0
A80: 151 | B80: 79 | C80: ='PR-RAS'!D84 -> 0 | D80: ='PR-RAS'!E84 -> 0 | E80: 0 | F80: 0 | G80: 0 | H80: 0 | I80: 0
A81: 151 | B81: 80 | C81: ='PR-RAS'!D85 -> 0 | D81: ='PR-RAS'!E85 -> 0 | E81: 0 | F81: 0 | G81: 0 | H81: 0 | I81: 0
A82: 151 | B82: 81 | C82: ='PR-RAS'!D86 -> 0 | D82: ='PR-RAS'!E86 -> 0 | E82: 0 | F82: 0 | G82: 0 | H82: 0 | I82: 0
A83: 151 | B83: 82 | C83: ='PR-RAS'!D87 -> 0 | D83: ='PR-RAS'!E87 -> 0 | E83: 0 | F83: 0 | G83: 0 | H83: 0 | I83: 0
A84: 151 | B84: 83 | C84: ='PR-RAS'!D88 -> 0 | D84: ='PR-RAS'!E88 -> 0 | E84: 0 | F84: 0 | G84: 0 | H84: 0 | I84: 0
A85: 151 | B85: 84 | C85: ='PR-RAS'!D89 -> 0 | D85: ='PR-RAS'!E89 -> 0 | E85: 0 | F85: 0 | G85: 0 | H85: 0 | I85: 0
A86: 151 | B86: 85 | C86: ='PR-RAS'!D90 -> 0 | D86: ='PR-RAS'!E90 -> 0 | E86: 0 | F86: 0 | G86: 0 | H86: 0 | I86: 0
A87: 151 | B87: 86 | C87: ='PR-RAS'!D91 -> 0 | D87: ='PR-RAS'!E91 -> 0 | E87: 0 | F87: 0 | G87: 0 | H87: 0 | I87: 0
A88: 151 | B88: 87 | C88: ='PR-RAS'!D92 -> 0 | D88: ='PR-RAS'!E92 -> 0 | E88: 0 | F88: 0 | G88: 0 | H88: 0 | I88: 0
A89: 151 | B89: 88 | C89: ='PR-RAS'!D93 -> 0 | D89: ='PR-RAS'!E93 -> 0 | E89: 0 | F89: 0 | G89: 0 | H89: 0 | I89: 0
A90: 151 | B90: 89 | C90: ='PR-RAS'!D94 -> 0 | D90: ='PR-RAS'!E94 -> 0 | E90: 0 | F90: 0 | G90: 0 | H90: 0 | I90: 0
A91: 151 | B91: 90 | C91: ='PR-RAS'!D95 -> 0 | D91: ='PR-RAS'!E95 -> 0 | E91: 0 | F91: 0 | G91: 0 | H91: 0 | I91: 0
A92: 151 | B92: 91 | C92: ='PR-RAS'!D96 -> 0 | D92: ='PR-RAS'!E96 -> 0 | E92: 0 | F92: 0 | G92: 0 | H92: 0 | I92: 0
A93: 151 | B93: 92 | C93: ='PR-RAS'!D97 -> 0 | D93: ='PR-RAS'!E97 -> 0 | E93: 0 | F93: 0 | G93: 0 | H93: 0 | I93: 0
A94: 151 | B94: 93 | C94: ='PR-RAS'!D98 -> 0 | D94: ='PR-RAS'!E98 -> 0 | E94: 0 | F94: 0 | G94: 0 | H94: 0 | I94: 0
A95: 151 | B95: 94 | C95: ='PR-RAS'!D99 -> 0 | D95: ='PR-RAS'!E99 -> 0 | E95: 0 | F95: 0 | G95: 0 | H95: 0 | I95: 0
A96: 151 | B96: 95 | C96: ='PR-RAS'!D100 -> 0 | D96: ='PR-RAS'!E100 -> 0 | E96: 0 | F96: 0 | G96: 0 | H96: 0 | I96: 0
A97: 151 | B97: 96 | C97: ='PR-RAS'!D101 -> 0 | D97: ='PR-RAS'!E101 -> 0 | E97: 0 | F97: 0 | G97: 0 | H97: 0 | I97: 0
A98: 151 | B98: 97 | C98: ='PR-RAS'!D102 -> 0 | D98: ='PR-RAS'!E102 -> 0 | E98: 0 | F98: 0 | G98: 0 | H98: 0 | I98: 0
A99: 151 | B99: 98 | C99: ='PR-RAS'!D103 -> 0 | D99: ='PR-RAS'!E103 -> 0 | E99: 0 | F99: 0 | G99: 0 | H99: 0 | I99: 0
A100: 151 | B100: 99 | C100: ='PR-RAS'!D104 -> 0 | D100: ='PR-RAS'!E104 -> 0 | E100: 0 | F100: 0 | G100: 0 | H100: 0 | I100: 0
A101: 151 | B101: 100 | C101: ='PR-RAS'!D105 -> 0 | D101: ='PR-RAS'!E105 -> 0 | E101: 0 | F101: 0 | G101: 0 | H101: 0 | I101: 0
A102: 151 | B102: 101 | C102: ='PR-RAS'!D106 -> 1101.13 | D102: ='PR-RAS'!E106 -> 1060.07 | E102: 0 | F102: 0 | G102: 325.34827 | H102: 0.2 | I102: 0
A103: 151 | B103: 102 | C103: ='PR-RAS'!D107 -> 0 | D103: ='PR-RAS'!E107 -> 0 | E103: 0 | F103: 0 | G103: 0 | H103: 0 | I103: 0
A104: 151 | B104: 103 | C104: ='PR-RAS'!D108 -> 0 | D104: ='PR-RAS'!E108 -> 0 | E104: 0 | F104: 0 | G104: 0 | H104: 0 | I104: 0
A105: 151 | B105: 104 | C105: ='PR-RAS'!D109 -> 0 | D105: ='PR-RAS'!E109 -> 0 | E105: 0 | F105: 0 | G105: 0 | H105: 0 | I105: 0
A106: 151 | B106: 105 | C106: ='PR-RAS'!D110 -> 0 | D106: ='PR-RAS'!E110 -> 0 | E106: 0 | F106: 0 | G106: 0 | H106: 0 | I106: 0
A107: 151 | B107: 106 | C107: ='PR-RAS'!D111 -> 0 | D107: ='PR-RAS'!E111 -> 0 | E107: 0 | F107: 0 | G107: 0 | H107: 0 | I107: 0
A108: 151 | B108: 107 | C108: ='PR-RAS'!D112 -> 1101.13 | D108: ='PR-RAS'!E112 -> 1060.07 | E108: 0 | F108: 0 | G108: 344.67589 | H108: 0.2 | I108: 0
A109: 151 | B109: 108 | C109: ='PR-RAS'!D113 -> 0 | D109: ='PR-RAS'!E113 -> 0 | E109: 0 | F109: 0 | G109: 0 | H109: 0 | I109: 0
A110: 151 | B110: 109 | C110: ='PR-RAS'!D114 -> 0 | D110: ='PR-RAS'!E114 -> 0 | E110: 0 | F110: 0 | G110: 0 | H110: 0 | I110: 0
A111: 151 | B111: 110 | C111: ='PR-RAS'!D115 -> 0 | D111: ='PR-RAS'!E115 -> 0 | E111: 0 | F111: 0 | G111: 0 | H111: 0 | I111: 0
A112: 151 | B112: 111 | C112: ='PR-RAS'!D116 -> 0 | D112: ='PR-RAS'!E116 -> 0 | E112: 0 | F112: 0 | G112: 0 | H112: 0 | I112: 0
A113: 151 | B113: 112 | C113: ='PR-RAS'!D117 -> 1101.13 | D113: ='PR-RAS'!E117 -> 1060.07 | E113: 0 | F113: 0 | G113: 360.78224 | H113: 0.2 | I113: 0
A114: 151 | B114: 113 | C114: ='PR-RAS'!D118 -> 0 | D114: ='PR-RAS'!E118 -> 0 | E114: 0 | F114: 0 | G114: 0 | H114: 0 | I114: 0
A115: 151 | B115: 114 | C115: ='PR-RAS'!D119 -> 0 | D115: ='PR-RAS'!E119 -> 0 | E115: 0 | F115: 0 | G115: 0 | H115: 0 | I115: 0
A116: 151 | B116: 115 | C116: ='PR-RAS'!D120 -> 0 | D116: ='PR-RAS'!E120 -> 0 | E116: 0 | F116: 0 | G116: 0 | H116: 0 | I116: 0
A117: 151 | B117: 116 | C117: ='PR-RAS'!D121 -> 0 | D117: ='PR-RAS'!E121 -> 0 | E117: 0 | F117: 0 | G117: 0 | H117: 0 | I117: 0
A118: 151 | B118: 117 | C118: ='PR-RAS'!D122 -> 0 | D118: ='PR-RAS'!E122 -> 0 | E118: 0 | F118: 0 | G118: 0 | H118: 0 | I118: 0
A119: 151 | B119: 118 | C119: ='PR-RAS'!D123 -> 0 | D119: ='PR-RAS'!E123 -> 0 | E119: 0 | F119: 0 | G119: 0 | H119: 0 | I119: 0
A120: 151 | B120: 119 | C120: ='PR-RAS'!D124 -> 564.9 | D120: ='PR-RAS'!E124 -> 6599.18 | E120: 0 | F120: 0 | G120: 1637.82794 | H120: 0.28 | I120: 0
A121: 151 | B121: 120 | C121: ='PR-RAS'!D125 -> 351.72 | D121: ='PR-RAS'!E125 -> 191.18 | E121: 0 | F121: 0 | G121: 88.0896 | H121: 0.46 | I121: 0
A122: 151 | B122: 121 | C122: ='PR-RAS'!D126 -> 351.72 | D122: ='PR-RAS'!E126 -> 191.18 | E122: 0 | F122: 0 | G122: 88.82368 | H122: 0.46 | I122: 0
A123: 151 | B123: 122 | C123: ='PR-RAS'!D127 -> 0 | D123: ='PR-RAS'!E127 -> 0 | E123: 0 | F123: 0 | G123: 0 | H123: 0 | I123: 0
A124: 151 | B124: 123 | C124: ='PR-RAS'!D128 -> 213.18 | D124: ='PR-RAS'!E128 -> 6408 | E124: 0 | F124: 0 | G124: 1602.58914 | H124: 0.18 | I124: 0
A125: 151 | B125: 124 | C125: ='PR-RAS'!D129 -> 213.18 | D125: ='PR-RAS'!E129 -> 0 | E125: 0 | F125: 0 | G125: 26.43432 | H125: 0.18 | I125: 0
A126: 151 | B126: 125 | C126: ='PR-RAS'!D130 -> 0 | D126: ='PR-RAS'!E130 -> 6408 | E126: 0 | F126: 0 | G126: 1602 | H126: 0 | I126: 0
A127: 151 | B127: 126 | C127: ='PR-RAS'!D131 -> 0 | D127: ='PR-RAS'!E131 -> 0 | E127: 0 | F127: 0 | G127: =(B127/1000)*(C127*1+D127*2) -> 0 | H127: =ABS(C127-ROUND(C127,0))+ABS(D127-ROUND(D127,0)) -> 0 | I127: 0
A128: 151 | B128: 127 | C128: ='PR-RAS'!D132 -> 0 | D128: ='PR-RAS'!E132 -> 0 | E128: 0 | F128: 0 | G128: 0 | H128: 0 | I128: 0
A129: 151 | B129: 128 | C129: ='PR-RAS'!D133 -> 88783.72 | D129: ='PR-RAS'!E133 -> 96379.56 | E129: 0 | F129: 0 | G129: 36037.48352 | H129: 0.72 | I129: 0
A130: 151 | B130: 129 | C130: ='PR-RAS'!D134 -> 88783.72 | D130: ='PR-RAS'!E134 -> 96379.56 | E130: 0 | F130: 0 | G130: 36319.02636 | H130: 0.72 | I130: 0
A131: 151 | B131: 130 | C131: ='PR-RAS'!D135 -> 77616.85 | D131: ='PR-RAS'!E135 -> 86858.01 | E131: 0 | F131: 0 | G131: 32673.2731 | H131: 0.16 | I131: 0
A132: 151 | B132: 131 | C132: ='PR-RAS'!D136 -> 11166.87 | D132: ='PR-RAS'!E136 -> 9521.55 | E132: 0 | F132: 0 | G132: 3957.50607 | H132: 0.58 | I132: 0
A133: 151 | B133: 132 | C133: ='PR-RAS'!D137 -> 0 | D133: ='PR-RAS'!E137 -> 0 | E133: 0 | F133: 0 | G133: 0 | H133: 0 | I133: 0
A134: 151 | B134: 133 | C134: ='PR-RAS'!D138 -> 0 | D134: ='PR-RAS'!E138 -> 0 | E134: 0 | F134: 0 | G134: 0 | H134: 0 | I134: 0
A135: 151 | B135: 134 | C135: ='PR-RAS'!D139 -> 130.47 | D135: ='PR-RAS'!E139 -> 0 | E135: 0 | F135: 0 | G135: 17.48298 | H135: 0.47 | I135: 0
A136: 151 | B136: 135 | C136: ='PR-RAS'!D140 -> 0 | D136: ='PR-RAS'!E140 -> 0 | E136: 0 | F136: 0 | G136: 0 | H136: 0 | I136: 0
A137: 151 | B137: 136 | C137: ='PR-RAS'!D141 -> 0 | D137: ='PR-RAS'!E141 -> 0 | E137: 0 | F137: 0 | G137: 0 | H137: 0 | I137: 0
A138: 151 | B138: 137 | C138: ='PR-RAS'!D142 -> 0 | D138: ='PR-RAS'!E142 -> 0 | E138: 0 | F138: 0 | G138: 0 | H138: 0 | I138: 0
A139: 151 | B139: 138 | C139: ='PR-RAS'!D143 -> 0 | D139: ='PR-RAS'!E143 -> 0 | E139: 0 | F139: 0 | G139: 0 | H139: 0 | I139: 0
A140: 151 | B140: 139 | C140: ='PR-RAS'!D144 -> 0 | D140: ='PR-RAS'!E144 -> 0 | E140: 0 | F140: 0 | G140: 0 | H140: 0 | I140: 0
A141: 151 | B141: 140 | C141: ='PR-RAS'!D145 -> 0 | D141: ='PR-RAS'!E145 -> 0 | E141: 0 | F141: 0 | G141: 0 | H141: 0 | I141: 0
A142: 151 | B142: 141 | C142: ='PR-RAS'!D146 -> 0 | D142: ='PR-RAS'!E146 -> 0 | E142: 0 | F142: 0 | G142: 0 | H142: 0 | I142: 0
A143: 151 | B143: 142 | C143: ='PR-RAS'!D147 -> 0 | D143: ='PR-RAS'!E147 -> 0 | E143: 0 | F143: 0 | G143: 0 | H143: 0 | I143: 0
A144: 151 | B144: 143 | C144: ='PR-RAS'!D148 -> 0 | D144: ='PR-RAS'!E148 -> 0 | E144: 0 | F144: 0 | G144: 0 | H144: 0 | I144: 0
A145: 151 | B145: 144 | C145: ='PR-RAS'!D149 -> 0 | D145: ='PR-RAS'!E149 -> 0 | E145: 0 | F145: 0 | G145: 0 | H145: 0 | I145: 0
A146: 151 | B146: 145 | C146: ='PR-RAS'!D150 -> 130.47 | D146: ='PR-RAS'!E150 -> 0 | E146: 0 | F146: 0 | G146: 18.91815 | H146: 0.47 | I146: 0
A147: 151 | B147: 146 | C147: ='PR-RAS'!D151 -> 77222.87 | D147: ='PR-RAS'!E151 -> 87498.09 | E147: 0 | F147: 0 | G147: 36823.9813 | H147: 0.22 | I147: 0
A148: 151 | B148: 147 | C148: ='PR-RAS'!D152 -> 53351.38 | D148: ='PR-RAS'!E152 -> 58213.3 | E148: 0 | F148: 0 | G148: 24957.36306 | H148: 0.68 | I148: 0
A149: 151 | B149: 148 | C149: ='PR-RAS'!D153 -> 42510.22 | D149: ='PR-RAS'!E153 -> 46461.22 | E149: 0 | F149: 0 | G149: 20044.03368 | H149: 0.44 | I149: 0
A150: 151 | B150: 149 | C150: ='PR-RAS'!D154 -> 42510.22 | D150: ='PR-RAS'!E154 -> 46461.22 | E150: 0 | F150: 0 | G150: 20179.46634 | H150: 0.44 | I150: 0
A151: 151 | B151: 150 | C151: ='PR-RAS'!D155 -> 0 | D151: ='PR-RAS'!E155 -> 0 | E151: 0 | F151: 0 | G151: 0 | H151: 0 | I151: 0
A152: 151 | B152: 151 | C152: ='PR-RAS'!D156 -> 0 | D152: ='PR-RAS'!E156 -> 0 | E152: 0 | F152: 0 | G152: 0 | H152: 0 | I152: 0
A153: 151 | B153: 152 | C153: ='PR-RAS'!D157 -> 0 | D153: ='PR-RAS'!E157 -> 0 | E153: 0 | F153: 0 | G153: 0 | H153: 0 | I153: 0
A154: 151 | B154: 153 | C154: ='PR-RAS'!D158 -> 3826.97 | D154: ='PR-RAS'!E158 -> 4085.95 | E154: 0 | F154: 0 | G154: 1835.82711 | H154: 0.08 | I154: 0
A155: 151 | B155: 154 | C155: ='PR-RAS'!D159 -> 7014.19 | D155: ='PR-RAS'!E159 -> 7666.13 | E155: 0 | F155: 0 | G155: 3441.3533 | H155: 0.32 | I155: 0
A156: 151 | B156: 155 | C156: ='PR-RAS'!D160 -> 0 | D156: ='PR-RAS'!E160 -> 0 | E156: 0 | F156: 0 | G156: 0 | H156: 0 | I156: 0
A157: 151 | B157: 156 | C157: ='PR-RAS'!D161 -> 7014.19 | D157: ='PR-RAS'!E161 -> 7666.13 | E157: 0 | F157: 0 | G157: 3486.0462 | H157: 0.32 | I157: 0
A158: 151 | B158: 157 | C158: ='PR-RAS'!D162 -> 0 | D158: ='PR-RAS'!E162 -> 0 | E158: 0 | F158: 0 | G158: 0 | H158: 0 | I158: 0
A159: 151 | B159: 158 | C159: ='PR-RAS'!D163 -> 23871.49 | D159: ='PR-RAS'!E163 -> 29284.79 | E159: 0 | F159: 0 | G159: 13025.68906 | H159: 0.7 | I159: 0
A160: 151 | B160: 159 | C160: ='PR-RAS'!D164 -> 2283.91 | D160: ='PR-RAS'!E164 -> 4141.75 | E160: 0 | F160: 0 | G160: 1680.21819 | H160: 0.34 | I160: 0
A161: 151 | B161: 160 | C161: ='PR-RAS'!D165 -> 505.42 | D161: ='PR-RAS'!E165 -> 2188.65 | E161: 0 | F161: 0 | G161: 781.2352 | H161: 0.77 | I161: 0
A162: 151 | B162: 161 | C162: ='PR-RAS'!D166 -> 1639.13 | D162: ='PR-RAS'!E166 -> 1815.6 | E162: 0 | F162: 0 | G162: 848.52313 | H162: 0.53 | I162: 0
A163: 151 | B163: 162 | C163: ='PR-RAS'!D167 -> 139.36 | D163: ='PR-RAS'!E167 -> 137.5 | E163: 0 | F163: 0 | G163: 67.12632 | H163: 0.86 | I163: 0
A164: 151 | B164: 163 | C164: ='PR-RAS'!D168 -> 0 | D164: ='PR-RAS'!E168 -> 0 | E164: 0 | F164: 0 | G164: 0 | H164: 0 | I164: 0
A165: 151 | B165: 164 | C165: ='PR-RAS'!D169 -> 6432 | D165: ='PR-RAS'!E169 -> 5750.23 | E165: 0 | F165: 0 | G165: 2940.92344 | H165: 0.23 | I165: 0
A166: 151 | B166: 165 | C166: ='PR-RAS'!D170 -> 2668.93 | D166: ='PR-RAS'!E170 -> 2538.23 | E166: 0 | F166: 0 | G166: 1277.98935 | H166: 0.3 | I166: 0
A167: 151 | B167: 166 | C167: ='PR-RAS'!D171 -> 0 | D167: ='PR-RAS'!E171 -> 0 | E167: 0 | F167: 0 | G167: 0 | H167: 0 | I167: 0
A168: 151 | B168: 167 | C168: ='PR-RAS'!D172 -> 3658.83 | D168: ='PR-RAS'!E172 -> 3062.02 | E168: 0 | F168: 0 | G168: 1633.73929 | H168: 0.19 | I168: 0
A169: 151 | B169: 168 | C169: ='PR-RAS'!D173 -> 0 | D169: ='PR-RAS'!E173 -> 0 | E169: 0 | F169: 0 | G169: 0 | H169: 0 | I169: 0
A170: 151 | B170: 169 | C170: ='PR-RAS'!D174 -> 104.24 | D170: ='PR-RAS'!E174 -> 149.98 | E170: 0 | F170: 0 | G170: 68.3098 | H170: 0.26 | I170: 0
A171: 151 | B171: 170 | C171: ='PR-RAS'!D175 -> 0 | D171: ='PR-RAS'!E175 -> 0 | E171: 0 | F171: 0 | G171: 0 | H171: 0 | I171: 0
A172: 151 | B172: 171 | C172: ='PR-RAS'!D176 -> 0 | D172: ='PR-RAS'!E176 -> 0 | E172: 0 | F172: 0 | G172: 0 | H172: 0 | I172: 0
A173: 151 | B173: 172 | C173: ='PR-RAS'!D177 -> 12956.61 | D173: ='PR-RAS'!E177 -> 17095.23 | E173: 0 | F173: 0 | G173: 8109.29604 | H173: 0.62 | I173: 0
A174: 151 | B174: 173 | C174: ='PR-RAS'!D178 -> 530.24 | D174: ='PR-RAS'!E178 -> 616.73 | E174: 0 | F174: 0 | G174: 305.1201 | H174: 0.51 | I174: 0
A175: 151 | B175: 174 | C175: ='PR-RAS'!D179 -> 2405.59 | D175: ='PR-RAS'!E179 -> 2586.9 | E175: 0 | F175: 0 | G175: 1318.81386 | H175: 0.51 | I175: 0
A176: 151 | B176: 175 | C176: ='PR-RAS'!D180 -> 2013.52 | D176: ='PR-RAS'!E180 -> 320 | E176: 0 | F176: 0 | G176: 464.366 | H176: 0.48 | I176: 0
A177: 151 | B177: 176 | C177: ='PR-RAS'!D181 -> 585 | D177: ='PR-RAS'!E181 -> 482.66 | E177: 0 | F177: 0 | G177: 272.85632 | H177: 0.34 | I177: 0
A178: 151 | B178: 177 | C178: ='PR-RAS'!D182 -> 0 | D178: ='PR-RAS'!E182 -> 727.92 | E178: 0 | F178: 0 | G178: 257.68368 | H178: 0.08 | I178: 0
A179: 151 | B179: 178 | C179: ='PR-RAS'!D183 -> 0 | D179: ='PR-RAS'!E183 -> 0 | E179: 0 | F179: 0 | G179: 0 | H179: 0 | I179: 0
A180: 151 | B180: 179 | C180: ='PR-RAS'!D184 -> 3522.57 | D180: ='PR-RAS'!E184 -> 8599.98 | E180: 0 | F180: 0 | G180: 3709.33287 | H180: 0.45 | I180: 0
A181: 151 | B181: 180 | C181: ='PR-RAS'!D185 -> 2285.49 | D181: ='PR-RAS'!E185 -> 2595.5 | E181: 0 | F181: 0 | G181: 1345.7682 | H181: 0.99 | I181: 0
A182: 151 | B182: 181 | C182: ='PR-RAS'!D186 -> 1614.2 | D182: ='PR-RAS'!E186 -> 1165.54 | E182: 0 | F182: 0 | G182: 714.09568 | H182: 0.66 | I182: 0
A183: 151 | B183: 182 | C183: ='PR-RAS'!D187 -> 0 | D183: ='PR-RAS'!E187 -> 0 | E183: 0 | F183: 0 | G183: 0 | H183: 0 | I183: 0
A184: 151 | B184: 183 | C184: ='PR-RAS'!D188 -> 2198.97 | D184: ='PR-RAS'!E188 -> 2297.58 | E184: 0 | F184: 0 | G184: 1243.32579 | H184: 0.45 | I184: 0
A185: 151 | B185: 184 | C185: ='PR-RAS'!D189 -> 0 | D185: ='PR-RAS'!E189 -> 0 | E185: 0 | F185: 0 | G185: 0 | H185: 0 | I185: 0
A186: 151 | B186: 185 | C186: ='PR-RAS'!D190 -> 1534.69 | D186: ='PR-RAS'!E190 -> 1779.55 | E186: 0 | F186: 0 | G186: 942.35115 | H186: 0.76 | I186: 0
A187: 151 | B187: 186 | C187: ='PR-RAS'!D191 -> 664.28 | D187: ='PR-RAS'!E191 -> 518.03 | E187: 0 | F187: 0 | G187: 316.26324 | H187: 0.31 | I187: 0
A188: 151 | B188: 187 | C188: ='PR-RAS'!D192 -> 0 | D188: ='PR-RAS'!E192 -> 0 | E188: 0 | F188: 0 | G188: 0 | H188: 0 | I188: 0
A189: 151 | B189: 188 | C189: ='PR-RAS'!D193 -> 0 | D189: ='PR-RAS'!E193 -> 0 | E189: 0 | F189: 0 | G189: 0 | H189: 0 | I189: 0
A190: 151 | B190: 189 | C190: ='PR-RAS'!D194 -> 0 | D190: ='PR-RAS'!E194 -> 0 | E190: 0 | F190: 0 | G190: 0 | H190: 0 | I190: 0
A191: 151 | B191: 190 | C191: ='PR-RAS'!D195 -> 0 | D191: ='PR-RAS'!E195 -> 0 | E191: 0 | F191: 0 | G191: 0 | H191: 0 | I191: 0
A192: 151 | B192: 191 | C192: ='PR-RAS'!D196 -> 0 | D192: ='PR-RAS'!E196 -> 0 | E192: 0 | F192: 0 | G192: 0 | H192: 0 | I192: 0
A193: 151 | B193: 192 | C193: ='PR-RAS'!D197 -> 0 | D193: ='PR-RAS'!E197 -> 0 | E193: 0 | F193: 0 | G193: 0 | H193: 0 | I193: 0
A194: 151 | B194: 193 | C194: ='PR-RAS'!D198 -> 0 | D194: ='PR-RAS'!E198 -> 0 | E194: 0 | F194: 0 | G194: 0 | H194: 0 | I194: 0
A195: 151 | B195: 194 | C195: ='PR-RAS'!D199 -> 0 | D195: ='PR-RAS'!E199 -> 0 | E195: 0 | F195: 0 | G195: 0 | H195: 0 | I195: 0
A196: 151 | B196: 195 | C196: ='PR-RAS'!D200 -> 0 | D196: ='PR-RAS'!E200 -> 0 | E196: 0 | F196: 0 | G196: 0 | H196: 0 | I196: 0
A197: 151 | B197: 196 | C197: ='PR-RAS'!D201 -> 0 | D197: ='PR-RAS'!E201 -> 0 | E197: 0 | F197: 0 | G197: 0 | H197: 0 | I197: 0
A198: 151 | B198: 197 | C198: ='PR-RAS'!D202 -> 0 | D198: ='PR-RAS'!E202 -> 0 | E198: 0 | F198: 0 | G198: 0 | H198: 0 | I198: 0
A199: 151 | B199: 198 | C199: ='PR-RAS'!D203 -> 0 | D199: ='PR-RAS'!E203 -> 0 | E199: 0 | F199: 0 | G199: 0 | H199: 0 | I199: 0
A200: 151 | B200: 199 | C200: ='PR-RAS'!D204 -> 0 | D200: ='PR-RAS'!E204 -> 0 | E200: 0 | F200: 0 | G200: 0 | H200: 0 | I200: 0
... 1380 more rows

Sheet Upute
A1: OSNOVNE UPUTE ZA UNOS PODATAKA
A3: Izvještaji su napravljeni u Excel datoteci te u slučaju popunjavanja obrasca u starim verzijama MS Excel-a važno je da se datoteka spremi u novoj verziji, tj. mora se snimiti u novijem ".xlsx" formatu. Predaja ovih obrazaca moguća je samo putem web servisa.
A4: Sva bitna pravila o popunjavanju obrazaca, poslovnim pravilima navedena su u nastavku uputa, ono što nije objašnjeno u uputama opisano je u kontrolama koje javljaju pogrešku. Prije nego rješenje problema potražite na broju telefona ili adresi e-pošte na dnu uputa, pokušajte ga pronaći u sklopu uputa. Također, novost je da prilikom uvoza samog dokumenta u aplikaciju, u slučaju pogreški, aplikacija će iste javiti!
A5: Analizom najčešćih pogrešaka prilikom popunjavanja i predaje, nastojali smo na najmanju moguću mjeru smanjiti mogućnost pogreške pri popunjavanju te olakšati pronalaženje pogrešaki. Pozadina ćelije koja je upisana s predznakom minus tamo gdje to nije dopušteno obojat će se crvenom bojom. Iako je onemogućen ručni upis takvih podataka, programi koji pune Excel datoteku mogu u svaku ćeliju "zgurati" bilo kakvu vrijednost pa je kontrola ovog tipa potrebna. Također, novost je da prilikom uvoza samog dokumenta u aplikaciju, u slučaju pogreški, aplikacija će iste javiti!
A6: U nastavku su dane tehničke upute o popunjavanju obrazaca.
A7: U obrasce se unose iznosi samo pojedinačnih stavki. Sumarne stavke zaštićene su, u njih nije moguć unos, a izračunavaju se automatski na osnovu upisanih pojedinačnih iznosa. Iznosi s lipama su dopušteni. Sumarne stavke u obrascu su plave boje s podebljanim tipom slova (bold) da se bolje razlikuju. Vrijednosti tih pozicija izračunat će se automatski na osnovu upisanih pojedinačnih stavaka. Na obrascima koji imaju stupac indeks, taj podatak se ne upisuje već se izračunava automatski na osnovu upisanih vrijednosti. Tamo gdje indeks nije moguće izračunati pojavit će se crtica "-", a tamo gdje je indeks veći od 1000 pojavit će se tekst ">>100".
A8: Vrlo važno: Kod unosa vrijednosti naprednijim metodama Kopiraj/Zalijepi (Copy/Paste) iz nekih drugih dokumenata OBAVEZNO koristite metodu Copy (Kopiraj), a ne Cut (Izreži), jer se kod korištenja metode Cut/Paste nepovratno pokvari struktura datoteke. Isto tako, kod Paste metode koristite opciju Paste Special (Posebno lijepljenje), pa odaberite Vrijednosti (Value). Ni u kom slučaju ne prenosite krivo upisane iznose s jedne pozicije u excel-u na drugu tako da ih odvlačite mišem na ispravno mjesto. Ovo je i dalje vrlo česta pogreška i takav način rada trajno oštećuje Excel datoteku (potrebno je novu popuniti od nule). Ni u kom slučaju ne brišite postojeće radne listove, ne mijenjajte nazive postojećih, ne uključujte dijeljenje ili zaštitu radne knjige, ne ubacujte linkove na neke druge dokumente. S obzirom da su svi radni listovi međusobno povezani formulama koje služe kao kontrola, svaka od spomenutih radnji rezultira da Excel datoteka postane neupotrebljiva za računalnu obradu i morat ćete ispuniti novu datoteku.
A9: Kontrole obrazaca su na razini pojedinog obrasca. Kontrole na razini pojedinog obrasca provjeravajte nakon popunjavanja tog obrasca. Ako neka kontrola nije zadovoljena ispravite podatak.
A10: Korisnici Open Office-a: Koristite li starije verzije OpenOffice-a možete s Interneta besplatno skinuti zadnju verziju OpenOffice-a, jer obrasci popunjeni u starijim verzijama mogli bi biti nečitki nakon predaje u aplikaciju. Također, neke verzije Excel-a ne rade dobro bez svih zakrpa (Service Pack-ova), zato provjerite sa svojim informatičarima imate li na računalu instalirane sve zakrpe za program koji koristitie za popunjavanje. Ispravan format ima nastavak .xlsx. Promjena samo nastavka u nazivu datoteke ne mijenja stvarni format datoteke pa će takva datoteka i dalje biti problem ako je samo preimenujete iz *.xls u *.xlsx.
A11: Imate li problema tehničke naravi s popunjavanjem obrasca, radom kontrola i slično, dostavite nam popunjenu problematičnu Excel datoteku zajedno s Vašim kontakt podacima te podacima o programu koji i koju verziju koristite za popunjavanje na adresu e-pošte: rkpfi@mfin.hr.

Sheet RefStr
A2: REFERENTNA STRANICA
I3: Verzija 8.1.3
A4: Izvještaji proračuna, proračunskih i izvanproračunskih korisnika
B6: RKP: | C6: 42635 | H6: Popunjen | I6: Broj pogrešaka
E7: Pregled popunjenosti obrazaca: | F7: PR-RAS | H7: =IF(OR(MAX(Skriveni!C2:F983)>0,MIN(Skriveni!C2:F983)<0),"DA","NE") -> DA | I7: =IF(AND(H7="DA",Kont!E20>0),Kont!E20,"Nema") -> Nema
B8: Naziv obveznika: | C8: GRADSKA KNJIŽNICA BAKAR | F8: BILANCA | H8: =IF(OR(MAX(Skriveni!C984:D1298)>0,MIN(Skriveni!C984:D1298)<0),"DA","NE") -> DA | I8: =IF(AND(H8="DA",Kont!E277>0),Kont!E277,"Nema") -> Nema
F9: RAS funkcijski | H9: =IF(OR(MAX(Skriveni!C1299:D1435)>0,MIN(Skriveni!C1299:D1435)<0),"DA","NE") -> DA | I9: =IF(AND(H9="DA",Kont!E316>0),Kont!E316,"Nema") -> Nema
B10: Razina: | C10: 21 | F10: P-VRIO | H10: =IF(OR(SUMPRODUCT(--('P-VRIO'!D8:E13<>""))<>0,SUMPRODUCT(--('P-VRIO'!D15:E21<>""))<>0,SUMPRODUCT(--('P-VRIO'!D24:E29<>""))<>0,SUMPRODUCT(--('P-VRIO'!D31:E37<>""))<>0,SUMPRODUCT(--('P-VRIO'!D40:E43<>""))<>0,SUMPRODUCT(--('P-VRIO'!D45:E48<>""))<>0),"DA","NE") -> DA | I10: =IF(Kont!E314>0,Kont!E314,"Nema") -> Nema
F11: OBVEZE | H11: =IF(OR(MAX(Skriveni!C1480:C1580)>0,MIN(Skriveni!C1480:C1580)<0),"DA","NE") -> DA | I11: =IF(AND(H11="DA",Kont!E311>0),Kont!E311,"Nema") -> Nema
B12: Oznaka razdoblja: | C12: 2023-12
A15: Obrazac | B15: Opis stavke | G15: Šifra | H15: Prethodna godina / početak godine | I15: Tekuća godina / kraj godine
A16: PR-RAS | B16: ='PR-RAS'!B6 -> PRIHODI POSLOVANJA (šifre 61+62+63+64+65+66+67+68) | G16: ='PR-RAS'!C6 -> 6 | H16: ='PR-RAS'!D6 -> 95889.13 | I16: ='PR-RAS'!E6 -> 112184.11
B17: ='PR-RAS'!B151 -> RASHODI POSLOVANJA (šifre 31+32+34+35+36+37+38) | G17: ='PR-RAS'!C151 -> 3 | H17: ='PR-RAS'!D151 -> 77222.87 | I17: ='PR-RAS'!E151 -> 87498.09
B18: ='PR-RAS'!B645 -> Višak prihoda i primitaka raspoloživ u sljedećem razdoblju (šifre X005 + '9221-9222' - Y005 - '9222-9221') | G18: ='PR-RAS'!C645 -> X006 | H18: ='PR-RAS'!D645 -> 6629.93 | I18: ='PR-RAS'!E645 -> 5536.55
B19: ='PR-RAS'!B646 -> Manjak prihoda i primitaka za pokriće u sljedećem razdoblju (šifre Y005 + '9222-9221' - X005 - '9221-9222' ) | G19: ='PR-RAS'!C646 -> Y006 | H19: ='PR-RAS'!D646 -> 0 | I19: ='PR-RAS'!E646 -> 0
A20: BILANCA | B20: =BILANCA!B7 -> Nefinancijska imovina (šifre 01+02+03+04+05+06) | G20: =BILANCA!C7 -> B002 | H20: =BILANCA!D7 -> 66223.13 | I20: =BILANCA!E7 -> 62411.69
B21: =BILANCA!B68 -> Financijska imovina (šifre 11+12+13+14+15+16+17+19) | G21: =BILANCA!C68 -> 1 | H21: =BILANCA!D68 -> 11170.24 | I21: =BILANCA!E68 -> 11105.73
B22: =BILANCA!B176 -> Obveze (šifre 23+24+25+26+29) | G22: =BILANCA!C176 -> 2 | H22: =BILANCA!D176 -> 4503.81 | I22: =BILANCA!E176 -> 5561.88
B23: =BILANCA!B237 -> Vlastiti izvori (šifre 91 + 922 - 93 + 96 do 98) | G23: =BILANCA!C237 -> 9 | H23: =BILANCA!D237 -> 72889.56 | I23: =BILANCA!E237 -> 67955.54
A24: RAS-funkcijski | B24: ='RAS-funkcijski'!B5 -> Opće javne usluge (šifre 011+012+013+014 do 018) | G24: ='RAS-funkcijski'!C5 -> 01 | H24: ='RAS-funkcijski'!D5 -> 0 | I24: ='RAS-funkcijski'!E5 -> 0
B25: ='RAS-funkcijski'!B35 -> Ekonomski poslovi (šifre 041+042+043+044+045+046+047+048+049) | G25: ='RAS-funkcijski'!C35 -> 04 | H25: ='RAS-funkcijski'!D35 -> 0 | I25: ='RAS-funkcijski'!E35 -> 0
B26: ='RAS-funkcijski'!B88 -> Rashodi vezani za stanovanje i kom. pogodnosti koji nisu drugdje svrstani | G26: ='RAS-funkcijski'!C88 -> 066 | H26: ='RAS-funkcijski'!D88 -> 0 | I26: ='RAS-funkcijski'!E88 -> 0
B27: ='RAS-funkcijski'!B114 -> Obrazovanje (šifre 091+092+093+094+095+096+097+098) | G27: ='RAS-funkcijski'!C114 -> 09 | H27: ='RAS-funkcijski'!D114 -> 0 | I27: ='RAS-funkcijski'!E114 -> 0
B28: ='RAS-funkcijski'!B141 -> Kontrolni zbroj (šifre 01+02+03+04+05+06+07+08+09+10) | G28: ='RAS-funkcijski'!C141 -> R1 | H28: ='RAS-funkcijski'!D141 -> 94377.54 | I28: ='RAS-funkcijski'!E141 -> 113277.49
A29: P-VRIO | B29: ='P-VRIO'!B5 -> Promjene u vrijednosti i obujmu imovine (šifre 91511+91512) | G29: ='P-VRIO'!C5 -> 9151 | H29: ='P-VRIO'!D5 -> 6840.64 | I29: ='P-VRIO'!E5 -> 3347.3
B30: ='P-VRIO'!B22 -> Promjene u obujmu imovine (šifre P016+P023) | G30: ='P-VRIO'!C22 -> 91512 | H30: ='P-VRIO'!D22 -> 6840.64 | I30: ='P-VRIO'!E22 -> 41.69
B31: ='P-VRIO'!B38 -> Promjene u vrijednosti (revalorizacija) i obujmu obveza (šifre 91521+91522) | G31: ='P-VRIO'!C38 -> 9152 | H31: ='P-VRIO'!D38 -> 0 | I31: ='P-VRIO'!E38 -> 0
B32: ='P-VRIO'!B44 -> Promjene u obujmu obveza (šifre P035 do P038) | G32: ='P-VRIO'!C44 -> 91522 | H32: ='P-VRIO'!D44 -> 0 | I32: ='P-VRIO'!E44 -> 0
A33: OBVEZE | B33: =OBVEZE!B5 -> Stanje obveza 1. siječnja (=stanju obveza iz Izvještaja o obvezama na 31. prosinca prethodne godine) | G33: =OBVEZE!C5 -> V001 | H33: - | I33: =OBVEZE!D5 -> 4503.81
B34: =OBVEZE!B42 -> Stanje obveza na kraju izvještajnog razdoblja (šifre V001+V002-V004) i (šifre V007+V009) | G34: =OBVEZE!C42 -> V006 | H34: - | I34: =OBVEZE!D42 -> 5561.88
B35: =OBVEZE!B43 -> Stanje dospjelih obveza na kraju izvještajnog razdoblja (šifre V008+D23+D24 + 'D dio 25,26') | G35: =OBVEZE!C43 -> V007 | H35: - | I35: =OBVEZE!D43 -> 0
B36: =OBVEZE!B101 -> Stanje nedospjelih obveza na kraju izvještajnog razdoblja (šifre V010 + ND23 + ND24 + 'ND dio 25,26') | G36: =OBVEZE!C101 -> V009 | H36: - | I36: =OBVEZE!D101 -> 5561.88
H39: Potpis odgovorne osobe i pečat

Sheet PR-RAS
A1: Obveznik: | C1: Razina: | E1: Razdoblje:
A2: IZVJEŠTAJ O PRIHODIMA I RASHODIMA, PRIMICIMA I IZDACIMA
A3: Račun iz Rač. plana | B3: Opis stavke | C3: Šifra | D3: Ostvareno u izvještajnom razdoblju preth. godine | E3: Ostvareno u izvještajnom razdoblju tekuće godine | F3: Indeks (5/4)
A4: 1 | B4: 2 | C4: 3 | D4: 4 | E4: 5 | F4: 6
A5: Prihodi i rashodi poslovanja
A6: 6 | B6: PRIHODI POSLOVANJA (šifre 61+62+63+64+65+66+67+68) | C6: 6 | D6: =D7+D44+D50+D82+D106+D124+D133+D139 -> 95889.13 | E6: =E7+E44+E50+E82+E106+E124+E133+E139 -> 112184.11 | F6: =IF(D6<>0,IF(E6/D6>=100,">>100",E6/D6*100),"-") -> 116.9935633
A7: 61 | B7: Prihodi od poreza (šifre 611+612+613+614+615+616) | C7: 61 | D7: =D8+D17+D23+D29+D37+D40 -> 0 | E7: 0 | F7: -
A8: 611 | B8: Porez i prirez na dohodak (šifre 6111 do 6116 - 6117 - 6119) | C8: 611 | D8: =SUM(D9:D14)-D15-D16 -> 0 | E8: 0 | F8: -
A9: 6111 | B9: Porez i prirez na dohodak od nesamostalnog rada | C9: 6111 | D9: 0 | E9: 0 | F9: -
A10: 6112 | B10: Porez i prirez na dohodak od samostalnih djelatnosti | C10: 6112 | D10: 0 | E10: 0 | F10: -
A11: 6113 | B11: Porez i prirez na dohodak od imovine i imovinskih prava | C11: 6113 | D11: 0 | E11: 0 | F11: -
A12: 6114 | B12: Porez i prirez na dohodak od kapitala | C12: 6114 | D12: 0 | E12: 0 | F12: -
A13: 6115 | B13: Porez i prirez na dohodak po godišnjoj prijavi | C13: 6115 | D13: 0 | E13: 0 | F13: -
A14: 6116 | B14: Porez i prirez na dohodak utvrđen u postupku nadzora za prethodne godine | C14: 6116 | D14: 0 | E14: 0 | F14: -
A15: 6117 | B15: Povrat poreza i prireza na dohodak po godišnjoj prijavi | C15: 6117 | D15: 0 | E15: 0 | F15: -
A16: 6119 | B16: Povrat više ostvarenog poreza na dohodak za decentralizirane funkcije | C16: 6119 | D16: 0 | E16: 0 | F16: -
A17: 612 | B17: Porez na dobit (šifre 6121 do 6124 - 6125) | C17: 612 | D17: =SUM(D18:D21)-D22 -> 0 | E17: 0 | F17: -
A18: 6121 | B18: Porez na dobit od poduzetnika | C18: 6121 | D18: 0 | E18: 0 | F18: -
A19: 6122 | B19: Porez na dobit po odbitku na naknade za korištenje prava i za usluge | C19: 6122 | D19: 0 | E19: 0 | F19: -
A20: 6123 | B20: Porez na dobit po odbitku na kamate, dividende i udjele u dobiti | C20: 6123 | D20: 0 | E20: 0 | F20: -
A21: 6124 | B21: Porez na dobit po godišnjoj prijavi | C21: 6124 | D21: 0 | E21: 0 | F21: -
A22: 6125 | B22: Povrat poreza na dobit po godišnjoj prijavi | C22: 6125 | D22: 0 | E22: 0 | F22: -
A23: 613 | B23: Porezi na imovinu (šifre 6131 do 6135) | C23: 613 | D23: =SUM(D24:D28) -> 0 | E23: 0 | F23: -
A24: 6131 | B24: Stalni porezi na nepokretnu imovinu | C24: 6131 | D24: 0 | E24: 0 | F24: -
A25: 6132 | B25: Porez na nasljedstva i darove | C25: 6132 | D25: 0 | E25: 0 | F25: -
A26: 6133 | B26: Porez na kapitalne i financijske transakcije | C26: 6133 | D26: 0 | E26: 0 | F26: -
A27: 6134 | B27: Povremeni porezi na imovinu | C27: 6134 | D27: 0 | E27: 0 | F27: -
A28: 6135 | B28: Ostali stalni porezi na imovinu | C28: 6135 | D28: 0 | E28: 0 | F28: -
A29: 614 | B29: Porezi na robu i usluge (šifre 6141 do 6148) | C29: 614 | D29: =SUM(D30:D36) -> 0 | E29: 0 | F29: -
A30: 6141 | B30: Porez na dodanu vrijednost | C30: 6141 | D30: 0 | E30: 0 | F30: -
A31: 6142 | B31: Porez na promet | C31: 6142 | D31: 0 | E31: 0 | F31: -
A32: 6143 | B32: Posebni porezi i trošarine | C32: 6143 | D32: 0 | E32: 0 | F32: -
A33: 6145 | B33: Porezi na korištenje dobara ili izvođenje aktivnosti | C33: 6145 | D33: 0 | E33: 0 | F33: -
A34: 6146 | B34: Ostali porezi na robu i usluge | C34: 6146 | D34: 0 | E34: 0 | F34: -
A35: 6147 | B35: Porez na dobitke od igara na sreću i ostali porezi od igara na sreću | C35: 6147 | D35: 0 | E35: 0 | F35: -
A36: 6148 | B36: Naknade za priređivanje igara na sreću | C36: 6148 | D36: 0 | E36: 0 | F36: -
A37: 615 | B37: Porezi na međunarodnu trgovinu i transakcije (šifre 6151+6152) | C37: 615 | D37: =SUM(D38:D39) -> 0 | E37: 0 | F37: -
A38: 6151 | B38: Carine i carinske pristojbe | C38: 6151 | D38: 0 | E38: 0 | F38: -
A39: 6152 | B39: Ostali porezi na međunarodnu trgovinu i transakcije | C39: 6152 | D39: 0 | E39: 0 | F39: -
A40: 616 | B40: Ostali prihodi od poreza (šifre 6161 do 6163) | C40: 616 | D40: =SUM(D41:D43) -> 0 | E40: 0 | F40: -
A41: 6161 | B41: Ostali prihodi od poreza koje plaćaju pravne osobe | C41: 6161 | D41: 0 | E41: 0 | F41: -
A42: 6162 | B42: Ostali prihodi od poreza koje plaćaju fizičke osobe | C42: 6162 | D42: 0 | E42: 0 | F42: -
A43: 6163 | B43: Ostali neraspoređeni prihodi od poreza | C43: 6163 | D43: 0 | E43: 0 | F43: -
A44: 62 | B44: Doprinosi (šifre 621+622+623) | C44: 62 | D44: =D45+D48+D49 -> 0 | E44: 0 | F44: -
A45: 621 | B45: Doprinosi za zdravstveno osiguranje (šifre 6211+6212) | C45: 621 | D45: =SUM(D46:D47) -> 0 | E45: 0 | F45: -
A46: 6211 | B46: Doprinosi za obvezno zdravstveno osiguranje | C46: 6211 | D46: 0 | E46: 0 | F46: -
A47: 6212 | B47: Doprinosi za obvezno zdravstveno osiguranje za slučaj ozljede na radu | C47: 6212 | D47: 0 | E47: 0 | F47: -
A48: 622 | B48: Doprinosi za mirovinsko osiguranje | C48: 622 | D48: 0 | E48: 0 | F48: -
A49: 623 | B49: Doprinosi za zapošljavanje | C49: 623 | D49: 0 | E49: 0 | F49: -
A50: 63 | B50: Pomoći iz inozemstva i od subjekata unutar općeg proračuna (šifre 631+632+633+634+635+636+637+638+639) | C50: 63 | D50: =D51+D54+D59+D62+D65+D68+D71+D74+D77 -> 5308.91 | E50: =E51+E54+E59+E62+E65+E68+E71+E74+E77 -> 8145.3 | F50: 153.4269747
A51: 631 | B51: Pomoći od inozemnih vlada (šifre 6311+6312) | C51: 631 | D51: =D52+D53 -> 0 | E51: 0 | F51: -
A52: 6311 | B52: Tekuće pomoći od inozemnih vlada | C52: 6311 | D52: 0 | E52: 0 | F52: -
A53: 6312 | B53: Kapitalne pomoći od inozemnih vlada | C53: 6312 | D53: 0 | E53: 0 | F53: -
A54: 632 | B54: Pomoći od međunarodnih organizacija te institucija i tijela EU (šifre 6321 do 6324) | C54: 632 | D54: =SUM(D55:D58) -> 0 | E54: 0 | F54: -
A55: 6321 | B55: Tekuće pomoći od međunarodnih organizacija | C55: 6321 | D55: 0 | E55: 0 | F55: -
A56: 6322 | B56: Kapitalne pomoći od međunarodnih organizacija | C56: 6322 | D56: 0 | E56: 0 | F56: -
A57: 6323 | B57: Tekuće pomoći od institucija i tijela EU | C57: 6323 | D57: 0 | E57: 0 | F57: -
A58: 6324 | B58: Kapitalne pomoći od institucija i tijela EU | C58: 6324 | D58: 0 | E58: 0 | F58: -
A59: 633 | B59: Pomoći proračunu iz drugih proračuna i izvanproračunskim korisnicima (šifre 6331+6332) | C59: 633 | D59: =SUM(D60:D61) -> 0 | E59: 0 | F59: -
A60: 6331 | B60: Tekuće pomoći proračunu iz drugih proračuna i izvanproračunskim korisnicima | C60: 6331 | D60: 0 | E60: 0 | F60: -
A61: 6332 | B61: Kapitalne pomoći proračunu iz drugih proračuna i izvanproračunskim korisnicima | C61: 6332 | D61: 0 | E61: 0 | F61: -
A62: 634 | B62: Pomoći od izvanproračunskih korisnika (šifre 6341+6342) | C62: 634 | D62: =SUM(D63:D64) -> 0 | E62: 0 | F62: -
A63: 6341 | B63: Tekuće pomoći od izvanproračunskih korisnika | C63: 6341 | D63: 0 | E63: 0 | F63: -
A64: 6342 | B64: Kapitalne pomoći od izvanproračunskih korisnika | C64: 6342 | D64: 0 | E64: 0 | F64: -
A65: 635 | B65: Pomoći izravnanja za decentralizirane funkcije (šifre 6351+6352) | C65: 635 | D65: =SUM(D66:D67) -> 0 | E65: 0 | F65: -
A66: 6351 | B66: Tekuće pomoći izravnanja za decentralizirane funkcije | C66: 6351 | D66: 0 | E66: 0 | F66: -
A67: 6352 | B67: Kapitalne pomoći izravnanja za decentralizirane funkcije | C67: 6352 | D67: 0 | E67: 0 | F67: -
A68: 636 | B68: Pomoći proračunskim korisnicima iz proračuna koji im nije nadležan (šifre 6361+6362) | C68: 636 | D68: =SUM(D69:D70) -> 5308.91 | E68: 8145.3 | F68: 153.4269747
A69: 6361 | B69: Tekuće pomoći proračunskim korisnicima iz proračuna koji im nije nadležan | C69: 6361 | D69: 0 | E69: 0 | F69: -
A70: 6362 | B70: Kapitalne pomoći proračunskim korisnicima iz proračuna koji im nije nadležan | C70: 6362 | D70: 5308.91 | E70: 8145.3 | F70: 153.4269747
A71: 637 | B71: Pomoći unutar općeg proračuna temeljem protestiranih jamstava (šifra 6371+6372) | C71: 637 | D71: =SUM(D72:D73) -> 0 | E71: 0 | F71: -
A72: 6371 | B72: Pomoći primljene unutar općeg proračuna po protestiranim jamstvima | C72: 6371 | D72: 0 | E72: 0 | F72: -
A73: 6372 | B73: Povrat pomoći danih unutar općeg proračuna po protestiranim jamstvima | C73: 6372 | D73: 0 | E73: 0 | F73: -
A74: 638 | B74: Pomoći temeljem prijenosa EU sredstava (šifre 6381+6382) | C74: 638 | D74: =SUM(D75:D76) -> 0 | E74: 0 | F74: -
A75: 6381 | B75: Tekuće pomoći temeljem prijenosa EU sredstava | C75: 6381 | D75: 0 | E75: 0 | F75: -
A76: 6382 | B76: Kapitalne pomoći temeljem prijenosa EU sredstava | C76: 6382 | D76: 0 | E76: 0 | F76: -
A77: 639 | B77: Prijenosi između proračunskih korisnika istog proračuna (šifre 6391 do 6394) | C77: 639 | D77: =SUM(D78:D81) -> 0 | E77: 0 | F77: -
A78: 6391 | B78: Tekući prijenosi između proračunskih korisnika istog proračuna | C78: 6391 | D78: 0 | E78: 0 | F78: -
A79: 6392 | B79: Kapitalni prijenosi između proračunskih korisnika istog proračuna | C79: 6392 | D79: 0 | E79: 0 | F79: -
A80: 6393 | B80: Tekući prijenosi između proračunskih korisnika istog proračuna temeljem prijenosa EU sredstava | C80: 6393 | D80: 0 | E80: 0 | F80: -
A81: 6394 | B81: Kapitalni prijenosi između proračunskih korisnika istog proračuna temeljem prijenosa EU sredstava | C81: 6394 | D81: 0 | E81: 0 | F81: -
A82: 64 | B82: Prihodi od imovine (šifre 641+642+643) | C82: 64 | D82: =D83+D91+D98 -> 0 | E82: 0 | F82: -
A83: 641 | B83: Prihodi od financijske imovine (šifre 6412 do 6419) | C83: 641 | D83: =SUM(D84:D90) -> 0 | E83: 0 | F83: -
A84: 6412 | B84: Prihodi od kamata po vrijednosnim papirima | C84: 6412 | D84: 0 | E84: 0 | F84: -
A85: 6413 | B85: Kamate na oročena sredstva i depozite po viđenju | C85: 6413 | D85: 0 | E85: 0 | F85: -
A86: 6414 | B86: Prihodi od zateznih kamata | C86: 6414 | D86: 0 | E86: 0 | F86: -
A87: 6415 | B87: Prihodi od pozitivnih tečajnih razlika i razlika zbog primjene valutne klauzule | C87: 6415 | D87: 0 | E87: 0 | F87: -
A88: 6416 | B88: Prihodi od dividendi | C88: 6416 | D88: 0 | E88: 0 | F88: -
A89: 6417 | B89: Prihodi iz dobiti trgovačkih društava, kreditnih i ostalih financijskih institucija po posebnim propisima | C89: 6417 | D89: 0 | E89: 0 | F89: -
A90: 6419 | B90: Ostali prihodi od financijske imovine | C90: 6419 | D90: 0 | E90: 0 | F90: -
A91: 642 | B91: Prihodi od nefinancijske imovine (šifre 6421 do 6429) | C91: 642 | D91: =SUM(D92:D97) -> 0 | E91: 0 | F91: -
A92: 6421 | B92: Naknade za koncesije | C92: 6421 | D92: 0 | E92: 0 | F92: -
A93: 6422 | B93: Prihodi od zakupa i iznajmljivanja imovine | C93: 6422 | D93: 0 | E93: 0 | F93: -
A94: 6423 | B94: Naknada za korištenje nefinancijske imovine | C94: 6423 | D94: 0 | E94: 0 | F94: -
A95: 6424 | B95: Naknade za ceste | C95: 6424 | D95: 0 | E95: 0 | F95: -
A96: 6425 | B96: Prihodi od prodaje kratkotrajne nefinancijske imovine | C96: 6425 | D96: 0 | E96: 0 | F96: -
A97: 6429 | B97: Ostali prihodi od nefinancijske imovine | C97: 6429 | D97: 0 | E97: 0 | F97: -
A98: 643 | B98: Prihodi od kamata na dane zajmove (šifre 6431 do 6437) | C98: 643 | D98: =SUM(D99:D105) -> 0 | E98: 0 | F98: -
A99: 6431 | B99: Prihodi od kamata na dane zajmove međunarodnim organizacijama, institucijama i tijelima EU te inozemnim vladama | C99: 6431 | D99: 0 | E99: 0 | F99: -
A100: 6432 | B100: Prihodi od kamata na dane zajmove neprofitnim organizacijama, građanima i kućanstvima | C100: 6432 | D100: 0 | E100: 0 | F100: -
A101: 6433 | B101: Prihodi od kamata na dane zajmove kreditnim i ostalim financijskim institucijama u javnom sektoru | C101: 6433 | D101: 0 | E101: 0 | F101: -
A102: 6434 | B102: Prihodi od kamata na dane zajmove trgovačkim društvima u javnom sektoru | C102: 6434 | D102: 0 | E102: 0 | F102: -
A103: 6435 | B103: Prihodi od kamata na dane zajmove kreditnim i ostalim financijskim institucijama izvan javnog sektora | C103: 6435 | D103: 0 | E103: 0 | F103: -
A104: 6436 | B104: Prihodi od kamata na dane zajmove trgovačkim društvima i obrtnicima izvan javnog sektora | C104: 6436 | D104: 0 | E104: 0 | F104: -
A105: 6437 | B105: Prihodi od kamata na dane zajmove drugim razinama vlasti | C105: 6437 | D105: 0 | E105: 0 | F105: -
A106: 65 | B106: Prihodi od upravnih i administrativnih pristojbi, pristojbi po posebnim propisima i naknada (šifre 651+652+653) | C106: 65 | D106: =D107+D112+D120 -> 1101.13 | E106: 1060.07 | F106: 96.27110332
A107: 651 | B107: Upravne i administrativne pristojbe (šifre 6511 do 6514) | C107: 651 | D107: =SUM(D108:D111) -> 0 | E107: 0 | F107: -
A108: 6511 | B108: Državne upravne i sudske pristojbe | C108: 6511 | D108: 0 | E108: 0 | F108: -
A109: 6512 | B109: Županijske, gradske i općinske pristojbe i naknade | C109: 6512 | D109: 0 | E109: 0 | F109: -
A110: 6513 | B110: Ostale upravne pristojbe i naknade | C110: 6513 | D110: 0 | E110: 0 | F110: -
A111: 6514 | B111: Ostale pristojbe i naknade | C111: 6514 | D111: 0 | E111: 0 | F111: -
A112: 652 | B112: Prihodi po posebnim propisima (šifre 6521 do 6528) | C112: 652 | D112: =SUM(D113:D119) -> 1101.13 | E112: 1060.07 | F112: 96.27110332
A113: 6521 | B113: Prihodi državne uprave | C113: 6521 | D113: 0 | E113: 0 | F113: -
A114: 6522 | B114: Prihodi vodnog gospodarstva | C114: 6522 | D114: 0 | E114: 0 | F114: -
A115: 6524 | B115: Doprinosi za šume | C115: 6524 | D115: 0 | E115: 0 | F115: -
A116: 6525 | B116: Mjesni samodoprinos | C116: 6525 | D116: 0 | E116: 0 | F116: -
A117: 6526 | B117: Ostali nespomenuti prihodi | C117: 6526 | D117: 1101.13 | E117: 1060.07 | F117: 96.27110332
A118: 6527 | B118: Naknade od financijske imovine | C118: 6527 | D118: 0 | E118: 0 | F118: -
A119: 6528 | B119: Prihodi od novčane naknade poslodavca zbog nezapošljavanja osoba s invaliditetom | C119: 6528 | D119: 0 | E119: 0 | F119: -
A120: 653 | B120: Komunalni doprinosi i naknade (šifre 6531 do 6533) | C120: 653 | D120: =SUM(D121:D123) -> 0 | E120: 0 | F120: -
A121: 6531 | B121: Komunalni doprinosi | C121: 6531 | D121: 0 | E121: 0 | F121: -
A122: 6532 | B122: Komunalne naknade | C122: 6532 | D122: 0 | E122: 0 | F122: -
A123: 6533 | B123: Naknade za priključak | C123: 6533 | D123: 0 | E123: 0 | F123: -
A124: 66 | B124: Prihodi od prodaje proizvoda i robe te pruženih usluga, prihodi od donacija te povrati po protestiranim jamstvima (šifre 661+663) | C124: 66 | D124: =D125+D128 -> 564.9 | E124: 6599.18 | F124: 1168.203222
A125: 661 | B125: Prihodi od prodaje proizvoda i robe te pruženih usluga (šifre 6614+6615) | C125: 661 | D125: =SUM(D126:D127) -> 351.72 | E125: 191.18 | F125: 54.35573752
A126: 6614 | B126: Prihodi od prodaje proizvoda i robe | C126: 6614 | D126: 351.72 | E126: 191.18 | F126: 54.35573752
A127: 6615 | B127: Prihodi od pruženih usluga | C127: 6615 | D127: 0 | E127: 0 | F127: -
A128: 663 | B128: Donacije od pravnih i fizičkih osoba izvan općeg proračuna i povrat donacija po protestiranim jamstvima (šifre 6631 do 6634) | C128: 663 | D128: =SUM(D129:D132) -> 213.18 | E128: 6408 | F128: 3005.910498
A129: 6631 | B129: Tekuće donacije | C129: 6631 | D129: 213.18 | F129: 0
A130: 6632 | B130: Kapitalne donacije | C130: 6632 | E130: 6408 | F130: -
A131: 6633 | B131: Povrat donacija danih neprofitnim organizacijama, građanima i kućanstvima u tuzemstvu po protestiranim jamstvima | C131: 6633 | D131: 0 | E131: 0 | F131: -
A132: 6634 | B132: Povrat kapitalnih pomoći danih trgovačkim društvima i obrtnicima po protestiranim jamstvima | C132: 6634 | D132: 0 | E132: 0 | F132: =IF(D132<>0,IF(E132/D132>=100,">>100",E132/D132*100),"-") -> -
A133: 67 | B133: Prihodi iz nadležnog proračuna i od HZZO-a na temelju ugovornih obveza (šifre 671+673) | C133: 67 | D133: =D134+D138 -> 88783.72 | E133: 96379.56 | F133: =IF(D133<>0,IF(E133/D133>=100,">>100",E133/D133*100),"-") -> 108.5554424
A134: 671 | B134: Prihodi iz nadležnog proračuna za financiranje redovne djelatnosti proračunskih korisnika (šifre 6711 do 6714) | C134: 671 | D134: =SUM(D135:D137) -> 88783.72 | E134: 96379.56 | F134: 108.5554424
A135: 6711 | B135: Prihodi iz nadležnog proračuna za financiranje rashoda poslovanja | C135: 6711 | D135: 77616.85 | E135: 86858.01 | F135: 111.9061261
A136: 6712 | B136: Prihodi iz nadležnog proračuna za financiranje rashoda za nabavu nefinancijske imovine | C136: 6712 | D136: 11166.87 | E136: 9521.55 | F136: 85.26605933
A137: 6714 | B137: Prihodi od nadležnog proračuna za financiranje izdataka za financijsku imovinu i otplatu zajmova | C137: 6714 | D137: 0 | E137: 0 | F137: -
A138: 673 | B138: Prihodi od HZZO-a na temelju ugovornih obveza | C138: 673 | D138: 0 | E138: 0 | F138: -
A139: 68 | B139: Kazne, upravne mjere i ostali prihodi (šifre 681+683) | C139: 68 | D139: =D140+D150 -> 130.47 | E139: 0 | F139: 0
A140: 681 | B140: Kazne i upravne mjere (šifre 6811 do 6819) | C140: 681 | D140: =SUM(D141:D149) -> 0 | E140: 0 | F140: -
A141: 6811 | B141: Kazne za carinske prekršaje | C141: 6811 | D141: 0 | E141: 0 | F141: -
A142: 6812 | B142: Kazne za devizne prekršaje | C142: 6812 | D142: 0 | E142: 0 | F142: -
A143: 6813 | B143: Kazne za porezne prekršaje | C143: 6813 | D143: 0 | E143: 0 | F143: -
A144: 6814 | B144: Kazne za prekršaje trgovačkih društava - privredne prijestupe | C144: 6814 | D144: 0 | E144: 0 | F144: -
A145: 6815 | B145: Kazne za prometne i ostale prekršaje u nadležnosti MUP-a | C145: 6815 | D145: 0 | E145: 0 | F145: -
A146: 6816 | B146: Kazne i druge mjere u kaznenom postupku | C146: 6816 | D146: 0 | E146: 0 | F146: -
A147: 6817 | B147: Kazne za prekršaje na kulturnim dobrima | C147: 6817 | D147: 0 | E147: 0 | F147: -
A148: 6818 | B148: Upravne mjere | C148: 6818 | D148: 0 | E148: 0 | F148: -
A149: 6819 | B149: Ostale kazne | C149: 6819 | D149: 0 | E149: 0 | F149: -
A150: 683 | B150: Ostali prihodi | C150: 683 | D150: 130.47 | F150: 0
A151: 3 | B151: RASHODI POSLOVANJA (šifre 31+32+34+35+36+37+38) | C151: 3 | D151: =D152+D163+D196+D215+D224+D252+D263 -> 77222.87 | E151: 87498.09 | F151: 113.3059287
A152: 31 | B152: Rashodi za zaposlene (šifre 311+312+313) | C152: 31 | D152: =D153+D158+D159 -> 53351.38 | E152: 58213.3 | F152: 109.1130164
A153: 311 | B153: Plaće (bruto) (šifre 3111 do 3114) | C153: 311 | D153: =SUM(D154:D157) -> 42510.22 | E153: 46461.22 | F153: 109.2942356
A154: 3111 | B154: Plaće za redovan rad | C154: 3111 | D154: 42510.22 | E154: 46461.22 | F154: 109.2942356
A155: 3112 | B155: Plaće u naravi | C155: 3112 | D155: 0 | E155: 0 | F155: -
A156: 3113 | B156: Plaće za prekovremeni rad | C156: 3113 | D156: 0 | E156: 0 | F156: -
A157: 3114 | B157: Plaće za posebne uvjete rada | C157: 3114 | D157: 0 | E157: 0 | F157: -
A158: 312 | B158: Ostali rashodi za zaposlene | C158: 312 | D158: 3826.97 | E158: 4085.95 | F158: 106.7672336
A159: 313 | B159: Doprinosi na plaće (šifre 3131 do 3133) | C159: 313 | D159: =SUM(D160:D162) -> 7014.19 | E159: 7666.13 | F159: 109.2945871
A160: 3131 | B160: Doprinosi za mirovinsko osiguranje | C160: 3131 | D160: 0 | E160: 0 | F160: -
A161: 3132 | B161: Doprinosi za obvezno zdravstveno osiguranje | C161: 3132 | D161: 7014.19 | E161: 7666.13 | F161: 109.2945871
A162: 3133 | B162: Doprinosi za obvezno osiguranje u slučaju nezaposlenosti | C162: 3133 | D162: 0 | E162: 0 | F162: -
A163: 32 | B163: Materijalni rashodi (šifre 321+322+323+324+329) | C163: 32 | D163: =D164+D169+D177+D187+D188 -> 23871.49 | E163: 29284.79 | F163: 122.6768417
A164: 321 | B164: Naknade troškova zaposlenima (šifre 3211 do 3214) | C164: 321 | D164: =SUM(D165:D168) -> 2283.91 | E164: 4141.75 | F164: 181.3447115
A165: 3211 | B165: Službena putovanja | C165: 3211 | D165: 505.42 | E165: 2188.65 | F165: 433.0358909
A166: 3212 | B166: Naknade za prijevoz, za rad na terenu i odvojeni život | C166: 3212 | D166: 1639.13 | E166: 1815.6 | F166: 110.7660771
A167: 3213 | B167: Stručno usavršavanje zaposlenika | C167: 3213 | D167: 139.36 | E167: 137.5 | F167: 98.66532721
A168: 3214 | B168: Ostale naknade troškova zaposlenima | C168: 3214 | D168: 0 | E168: 0 | F168: -
A169: 322 | B169: Rashodi za materijal i energiju (šifre 3221 do 3227) | C169: 322 | D169: =SUM(D170:D176) -> 6432 | E169: 5750.23 | F169: 89.40034204
A170: 3221 | B170: Uredski materijal i ostali materijalni rashodi | C170: 3221 | D170: 2668.93 | E170: 2538.23 | F170: 95.10290641
A171: 3222 | B171: Materijal i sirovine | C171: 3222 | D171: 0 | E171: 0 | F171: -
A172: 3223 | B172: Energija | C172: 3223 | D172: 3658.83 | E172: 3062.02 | F172: 83.68850152
A173: 3224 | B173: Materijal i dijelovi za tekuće i investicijsko održavanje | C173: 3224 | D173: 0 | E173: 0 | F173: -
A174: 3225 | B174: Sitni inventar i auto gume | C174: 3225 | D174: 104.24 | E174: 149.98 | F174: 143.8795088
A175: 3226 | B175: Vojna sredstva za jednokratnu upotrebu | C175: 3226 | D175: 0 | E175: 0 | F175: -
A176: 3227 | B176: Službena, radna i zaštitna odjeća i obuća | C176: 3227 | D176: 0 | E176: 0 | F176: -
A177: 323 | B177: Rashodi za usluge (šifre 3231 do 3239) | C177: 323 | D177: =SUM(D178:D186) -> 12956.61 | E177: 17095.23 | F177: 131.9421515
A178: 3231 | B178: Usluge telefona, pošte i prijevoza | C178: 3231 | D178: 530.24 | E178: 616.73 | F178: 116.3114816
A179: 3232 | B179: Usluge tekućeg i investicijskog održavanja | C179: 3232 | D179: 2405.59 | E179: 2586.9 | F179: 107.5370283
A180: 3233 | B180: Usluge promidžbe i informiranja | C180: 3233 | D180: 2013.52 | E180: 320 | F180: 15.89256625
A181: 3234 | B181: Komunalne usluge | C181: 3234 | D181: 585 | E181: 482.66 | F181: 82.50598291
A182: 3235 | B182: Zakupnine i najamnine | C182: 3235 | E182: 727.92 | F182: -
A183: 3236 | B183: Zdravstvene i veterinarske usluge | C183: 3236 | D183: 0 | E183: 0 | F183: -
A184: 3237 | B184: Intelektualne i osobne usluge | C184: 3237 | D184: 3522.57 | E184: 8599.98 | F184: 244.1393642
A185: 3238 | B185: Računalne usluge | C185: 3238 | D185: 2285.49 | E185: 2595.5 | F185: 113.5642685
A186: 3239 | B186: Ostale usluge | C186: 3239 | D186: 1614.2 | E186: 1165.54 | F186: 72.20542684
A187: 324 | B187: Naknade troškova osobama izvan radnog odnosa | C187: 324 | D187: 0 | E187: 0 | F187: -
A188: 329 | B188: Ostali nespomenuti rashodi poslovanja (šifre 3291 do 3299) | C188: 329 | D188: =SUM(D189:D195) -> 2198.97 | E188: 2297.58 | F188: 104.4843722
A189: 3291 | B189: Naknade za rad predstavničkih i izvršnih tijela, povjerenstava i slično | C189: 3291 | D189: 0 | E189: 0 | F189: -
A190: 3292 | B190: Premije osiguranja | C190: 3292 | D190: 1534.69 | E190: 1779.55 | F190: 115.9550137
A191: 3293 | B191: Reprezentacija | C191: 3293 | D191: 664.28 | E191: 518.03 | F191: 77.98368158
A192: 3294 | B192: Članarine i norme | C192: 3294 | D192: 0 | E192: 0 | F192: -
A193: 3295 | B193: Pristojbe i naknade | C193: 3295 | D193: 0 | E193: 0 | F193: -
A194: 3296 | B194: Troškovi sudskih postupaka | C194: 3296 | D194: 0 | E194: 0 | F194: -
A195: 3299 | B195: Ostali nespomenuti rashodi poslovanja | C195: 3299 | D195: 0 | E195: 0 | F195: -
A196: 34 | B196: Financijski rashodi (šifre 341+342+343) | C196: 34 | D196: =D197+D202+D210 -> 0 | E196: 0 | F196: -
A197: 341 | B197: Kamate za izdane vrijednosne papire (šifre 3411 do 3419) | C197: 341 | D197: =SUM(D198:D201) -> 0 | E197: 0 | F197: -
A198: 3411 | B198: Kamate za izdane trezorske zapise | C198: 3411 | D198: 0 | E198: 0 | F198: -
A199: 3412 | B199: Kamate za izdane mjenice | C199: 3412 | D199: 0 | E199: 0 | F199: -
A200: 3413 | B200: Kamate za izdane obveznice | C200: 3413 | D200: 0 | E200: 0 | F200: -
... 792 more rows

Sheet BILANCA
A1: Obveznik: | C1: Razina: | E1: Razdoblje:
A2: BILANCA
A3: Račun iz Rač. plana | B3: Opis stavke | C3: Šifra | D3: Stanje 1. siječnja | E3: Stanje 31. prosinca | F3: Indeks (5/4)
A4: 1 | B4: 2 | C4: 3 | D4: 4 | E4: 5 | F4: 6
A5: IMOVINA
B6: IMOVINA (šifre B002+1) | C6: B001 | D6: =D7+D68 -> 77393.37 | E6: 73517.42 | F6: =IF(D6>0,IF(E6/D6>=100,">>100",E6/D6*100),"-") -> 94.99188367
A7: 0 | B7: Nefinancijska imovina (šifre 01+02+03+04+05+06) | C7: B002 | D7: =D8+D12+D51+D52+D56+D63 -> 66223.13 | E7: 62411.69 | F7: 94.24454869
A8: 01 | B8: Neproizvedena dugotrajna imovina (šifre 011+012-019) | C8: 01 | D8: =D9+D10-D11 -> 0 | E8: =E9+E10-E11 -> 0 | F8: -
A9: 011 | B9: Materijalna imovina - prirodna bogatstva | C9: 011 | D9: 0 | E9: 0 | F9: -
A10: 012 | B10: Nematerijalna imovina | C10: 012 | D10: 0 | E10: 0 | F10: -
A11: 019 | B11: Ispravak vrijednosti neproizvedene dugotrajne imovine | C11: 019 | D11: 0 | E11: 0 | F11: -
A12: 02 | B12: Proizvedena dugotrajna imovina (šifre '021 i 02921' + '022 i 02922' + '023 i 02923' + '024 i 02924' + '025 i 02925' + '026 i 02926') | C12: 02 | D12: =D13+D19+D29+D35+D41+D45 -> 66223.13 | E12: 62411.69 | F12: 94.24454869
A13: 021 i 02921 | B13: Građevinski objekti (šifre 0211 do 0214 - 02921) | C13: 021 i 02921 | D13: =SUM(D14:D17)-D18 -> 0 | E13: 0 | F13: -
A14: 0211 | B14: Stambeni objekti | C14: 0211 | D14: 0 | E14: 0 | F14: -
A15: 0212 | B15: Poslovni objekti | C15: 0212 | D15: 0 | E15: 0 | F15: -
A16: 0213 | B16: Ceste, željeznice i ostali prometni objekti | C16: 0213 | D16: 0 | E16: 0 | F16: -
A17: 0214 | B17: Ostali građevinski objekti | C17: 0214 | D17: 0 | E17: 0 | F17: -
A18: 02921 | B18: Ispravak vrijednosti građevinskih objekata | C18: 02921 | D18: 0 | E18: 0 | F18: -
A19: 022 i 02922 | B19: Postrojenja i oprema (šifre 0221 do 0228 - 02922) | C19: 022 i 02922 | D19: =SUM(D20:D27)-D28 -> 5291.05 | E19: 5434.82 | F19: 102.71723
A20: 0221 | B20: Uredska oprema i namještaj | C20: 0221 | D20: 88887.6 | E20: 88835.66 | F20: 99.94156665
A21: 0222 | B21: Komunikacijska oprema | C21: 0222 | D21: 4592.1 | E21: 4592.1 | F21: 100
A22: 0223 | B22: Oprema za održavanje i zaštitu | C22: 0223 | D22: 2714.07 | E22: 2714.08 | F22: 100.0003685
A23: 0224 | B23: Medicinska i laboratorijska oprema | C23: 0224 | D23: 0 | E23: 0 | F23: -
A24: 0225 | B24: Instrumenti, uređaji i strojevi | C24: 0225 | D24: 0 | E24: 0 | F24: -
A25: 0226 | B25: Sportska i glazbena oprema | C25: 0226 | D25: 0 | E25: 0 | F25: -
A26: 0227 | B26: Uređaji, strojevi i oprema za ostale namjene | C26: 0227 | D26: 2360.03 | E26: 2685.04 | F26: 113.7714351
A27: 0228 | B27: Vojna oprema | C27: 0228 | D27: 0 | E27: 0 | F27: -
A28: 02922 | B28: Ispravak vrijednosti postrojenja i opreme | C28: 02922 | D28: 93262.75 | E28: 93392.06 | F28: 100.1386513
A29: 023 i 02923 | B29: Prijevozna sredstva (šifre 0231 do 0234 - 02923) | C29: 023 i 02923 | D29: =SUM(D30:D33)-D34 -> 0 | E29: 0 | F29: -
A30: 0231 | B30: Prijevozna sredstva u cestovnom prometu | C30: 0231 | D30: 0 | E30: 0 | F30: -
A31: 0232 | B31: Prijevozna sredstva u željezničkom prometu | C31: 0232 | D31: 0 | E31: 0 | F31: -
A32: 0233 | B32: Prijevozna sredstva u pomorskom i riječnom prometu | C32: 0233 | D32: 0 | E32: 0 | F32: -
A33: 0234 | B33: Prijevozna sredstva u zračnom prometu | C33: 0234 | D33: 0 | E33: 0 | F33: -
A34: 02923 | B34: Ispravak vrijednosti prijevoznih sredstava | C34: 02923 | D34: 0 | E34: 0 | F34: -
A35: 024 i 02924 | B35: Knjige, umjetnička djela i ostale izložbene vrijednosti (šifre 0241 do 0244 - 02924) | C35: 024 i 02924 | D35: =SUM(D36:D39)-D40 -> 40845.26 | E35: 47528.12 | F35: 116.3614089
A36: 0241 | B36: Knjige | C36: 0241 | D36: 289146 | E36: 313377.13 | F36: 108.3802404
A37: 0242 | B37: Umjetnička djela (izložena u galerijama, muzejima i slično) | C37: 0242 | D37: 0 | E37: 0 | F37: -
A38: 0243 | B38: Muzejski izlošci i predmeti prirodnih rijetkosti | C38: 0243 | D38: 0 | E38: 0 | F38: -
A39: 0244 | B39: Ostale nespomenute izložbene vrijednosti | C39: 0244 | D39: 0 | E39: 0 | F39: -
A40: 02924 | B40: Ispravak vrijednosti knjiga, umjetničkih djela i ostalih izložbenih vrijednosti | C40: 02924 | D40: 248300.74 | E40: 265849.01 | F40: 107.067345
A41: 025 i 02925 | B41: Višegodišnji nasadi i osnovno stado (šifre 0251+0252-02925) | C41: 025 i 02925 | D41: =SUM(D42:D43)-D44 -> 0 | E41: 0 | F41: -
A42: 0251 | B42: Višegodišnji nasadi | C42: 0251 | D42: 0 | E42: 0 | F42: -
A43: 0252 | B43: Osnovno stado | C43: 0252 | D43: 0 | E43: 0 | F43: -
A44: 02925 | B44: Ispravak vrijednosti višegodišnjih nasada i osnovnog stada | C44: 02925 | D44: 0 | E44: 0 | F44: -
A45: 026 i 02926 | B45: Nematerijalna proizvedena imovina (šifre 0261 do 0264 - 02926) | C45: 026 i 02926 | D45: =SUM(D46:D49)-D50 -> 20086.82 | E45: 9448.75 | F45: 47.03955131
A46: 0261 | B46: Istraživanje rudnih bogatstava | C46: 0261 | D46: 0 | E46: 0 | F46: -
A47: 0262 | B47: Ulaganja u računalne programe | C47: 0262 | D47: 6334.93 | E47: 6334.92 | F47: 99.99984215
A48: 0263 | B48: Umjetnička, literarna i znanstvena djela | C48: 0263 | D48: 26804.96 | E48: 27467.09 | F48: 102.4701772
A49: 0264 | B49: Ostala nematerijalna proizvedena imovina | C49: 0264 | D49: 33768 | E49: 0 | F49: 0
A50: 02926 | B50: Ispravak vrijednosti nematerijalne proizvedene imovine | C50: 02926 | D50: 46821.07 | E50: 24353.26 | F50: 52.01346317
A51: 03 | B51: Plemeniti metali i ostale pohranjene vrijednosti | C51: 03 | D51: 0 | E51: 0 | F51: -
A52: 04 | B52: Sitni inventar i auto gume (šifre 041+042-049) | C52: 04 | D52: =SUM(D53:D54)-D55 -> 0 | E52: 0 | F52: -
A53: 041 | B53: Zalihe sitnog inventara i auto guma | C53: 041 | D53: 0 | E53: 0 | F53: -
A54: 042 | B54: Sitni inventar i auto gume u upotrebi | C54: 042 | D54: 7117.26 | E54: 7049.65 | F54: 99.05005578
A55: 049 | B55: Ispravak vrijednosti sitnog inventara | C55: 049 | D55: 7117.26 | E55: 7049.65 | F55: 99.05005578
A56: 05 | B56: Dugotrajna nefinancijska imovina u pripremi (šifre 051 do 056) | C56: 05 | D56: =SUM(D57:D62) -> 0 | E56: 0 | F56: -
A57: 051 | B57: Građevinski objekti u pripremi | C57: 051 | D57: 0 | E57: 0 | F57: -
A58: 052 | B58: Postrojenja i oprema u pripremi | C58: 052 | D58: 0 | E58: 0 | F58: -
A59: 053 | B59: Prijevozna sredstva u pripremi | C59: 053 | D59: 0 | E59: 0 | F59: -
A60: 054 | B60: Višegodišnji nasadi i osnovno stado u pripremi | C60: 054 | D60: 0 | E60: 0 | F60: -
A61: 055 | B61: Ostala nematerijalna proizvedena imovina u pripremi | C61: 055 | D61: 0 | E61: 0 | F61: -
A62: 056 | B62: Ostala nefinancijska dugotrajna imovina u pripremi | C62: 056 | D62: 0 | E62: 0 | F62: -
A63: 06 | B63: Proizvedena kratkotrajna imovina (šifre 061 do 064) | C63: 06 | D63: =SUM(D64:D67) -> 0 | E63: 0 | F63: -
A64: 061 | B64: Zalihe za obavljanje djelatnosti | C64: 061 | D64: 0 | E64: 0 | F64: -
A65: 062 | B65: Proizvodnja i proizvodi | C65: 062 | D65: 0 | E65: 0 | F65: -
A66: 063 | B66: Zalihe vojnih sredstava za jednokratnu upotrebu | C66: 063 | D66: 0 | E66: 0 | F66: -
A67: 064 | B67: Roba za daljnju prodaju | C67: 064 | D67: 0 | E67: 0 | F67: -
A68: 1 | B68: Financijska imovina (šifre 11+12+13+14+15+16+17+19) | C68: 1 | D68: =D69+D78+D87+D118+D134+D146+D164+D170 -> 11170.24 | E68: 11105.73 | F68: 99.42248331
A69: 11 | B69: Novac u banci i blagajni (šifre 111+112 do 114) | C69: 11 | D69: =+D70+D75+D76+D77 -> 0 | E69: 0 | F69: -
A70: 111 | B70: Novac u banci (šifre 1111 do 1114) | C70: 111 | D70: =SUM(D71:D74) -> 0 | E70: 0 | F70: -
A71: 1111 | B71: Novac na računu kod Hrvatske narodne banke | C71: 1111 | D71: 0 | E71: 0 | F71: -
A72: 1112 | B72: Novac na računu kod tuzemnih poslovnih banaka | C72: 1112 | D72: 0 | E72: 0 | F72: -
A73: 1113 | B73: Novac na računu kod inozemnih poslovnih banaka | C73: 1113 | D73: 0 | E73: 0 | F73: -
A74: 1114 | B74: Prijelazni račun | C74: 1114 | D74: 0 | E74: 0 | F74: -
A75: 112 | B75: Izdvojena novčana sredstva | C75: 112 | D75: 0 | E75: 0 | F75: -
A76: 113 | B76: Novac u blagajni | C76: 113 | D76: 0 | E76: 0 | F76: -
A77: 114 | B77: Vrijednosnice u blagajni | C77: 114 | D77: 0 | E77: 0 | F77: -
A78: 12 | B78: Depoziti, jamčevni polozi i potraživanja od zaposlenih te za više plaćene poreze i ostalo (šifre 121 + 122 do 124 - 125 + 129) | C78: 12 | D78: =D79+SUM(D82:D84)-D85+D86 -> 82.97 | E78: =E79+SUM(E82:E84)-E85+E86 -> 54.99 | F78: 66.27696758
A79: 121 | B79: Depoziti u kreditnim i ostalim financijskim institucijama (šifre 1211+1212) | C79: 121 | D79: =SUM(D80:D81) -> 0 | E79: 0 | F79: -
A80: 1211 | B80: Depoziti u tuzemnim kreditnim i ostalim financijskim institucijama | C80: 1211 | D80: 0 | E80: 0 | F80: -
A81: 1212 | B81: Depoziti u inozemnim kreditnim i ostalim financijskim institucijama | C81: 1212 | D81: 0 | E81: 0 | F81: -
A82: 122 | B82: Jamčevni polozi | C82: 122 | D82: 0 | E82: 0 | F82: -
A83: 123 | B83: Potraživanja od zaposlenih | C83: 123 | D83: 82.97 | E83: 54.99 | F83: 66.27696758
A84: 124 | B84: Potraživanja za više plaćene poreze i doprinose | C84: 124 | D84: 0 | E84: 0 | F84: -
A85: 125 | B85: Ispravak vrijednosti potraživanja od zaposlenih te za više plaćene poreze i ostalo | C85: 125 | D85: 0 | E85: 0 | F85: -
A86: 129 | B86: Ostala potraživanja | C86: 129 | D86: 0 | E86: 0 | F86: -
A87: 13 | B87: Potraživanja za dane zajmove (šifre 13X1+13X2-139) | C87: 13 | D87: =D88+D106-D117 -> 0 | E87: 0 | F87: -
B88: Zajmovi - tuzemni (šifre 1321+1332+1333+1334+1341+1353+1354+1355+1363+1364+1371+1372+1373+1374+1375+1376+1377) | C88: 13X1 | D88: =SUM(D89:D105) -> 0 | E88: 0 | F88: -
A89: 1321 | B89: Zajmovi neprofitnim organizacijama, građanima i kućanstvima u tuzemstvu | C89: 1321 | D89: 0 | E89: 0 | F89: -
A90: 1332 | B90: Zajmovi kreditnim institucijama u javnom sektoru | C90: 1332 | D90: 0 | E90: 0 | F90: -
A91: 1333 | B91: Zajmovi osiguravajućim društvima u javnom sektoru | C91: 1333 | D91: 0 | E91: 0 | F91: -
A92: 1334 | B92: Zajmovi ostalim financijskim institucijama u javnom sektoru | C92: 1334 | D92: 0 | E92: 0 | F92: -
A93: 1341 | B93: Zajmovi trgovačkim društvima u javnom sektoru | C93: 1341 | D93: 0 | E93: 0 | F93: -
A94: 1353 | B94: Zajmovi tuzemnim kreditnim institucijama izvan javnog sektora | C94: 1353 | D94: 0 | E94: 0 | F94: -
A95: 1354 | B95: Zajmovi tuzemnim osiguravajućim društvima izvan javnog sektora | C95: 1354 | D95: 0 | E95: 0 | F95: -
A96: 1355 | B96: Zajmovi ostalim tuzemnim financijskim institucijama izvan javnog sektora | C96: 1355 | D96: 0 | E96: 0 | F96: -
A97: 1363 | B97: Zajmovi tuzemnim trgovačkim društvima izvan javnog sektora | C97: 1363 | D97: 0 | E97: 0 | F97: -
A98: 1364 | B98: Zajmovi tuzemnim obrtnicima | C98: 1364 | D98: 0 | E98: 0 | F98: -
A99: 1371 | B99: Zajmovi državnom proračunu | C99: 1371 | D99: 0 | E99: 0 | F99: -
A100: 1372 | B100: Zajmovi županijskim proračunima | C100: 1372 | D100: 0 | E100: 0 | F100: -
A101: 1373 | B101: Zajmovi gradskim proračunima | C101: 1373 | D101: 0 | E101: 0 | F101: -
A102: 1374 | B102: Zajmovi općinskim proračunima | C102: 1374 | D102: 0 | E102: 0 | F102: -
A103: 1375 | B103: Zajmovi HZMO-u, HZZ-u, HZZO-u | C103: 1375 | D103: 0 | E103: 0 | F103: -
A104: 1376 | B104: Zajmovi ostalim izvanproračunskim korisnicima državnog proračuna | C104: 1376 | D104: 0 | E104: 0 | F104: -
A105: 1377 | B105: Zajmovi izvanproračunskim korisnicima županijskih, gradskih i općinskih proračuna | C105: 1377 | D105: 0 | E105: 0 | F105: -
B106: Zajmovi - inozemni (šifre 1313+1314+1315+1316+1322+1356+1357+1358+1365+1366) | C106: 13X2 | D106: =SUM(D107:D116) -> 0 | E106: 0 | F106: -
A107: 1313 | B107: Zajmovi međunarodnim organizacijama | C107: 1313 | D107: 0 | E107: 0 | F107: -
A108: 1314 | B108: Zajmovi institucijama i tijelima EU | C108: 1314 | D108: 0 | E108: 0 | F108: -
A109: 1315 | B109: Zajmovi inozemnim vladama u EU | C109: 1315 | D109: 0 | E109: 0 | F109: -
A110: 1316 | B110: Zajmovi inozemnim vladama izvan EU | C110: 1316 | D110: 0 | E110: 0 | F110: -
A111: 1322 | B111: Zajmovi neprofitnim organizacijama, građanima i kućanstvima u inozemstvu | C111: 1322 | D111: 0 | E111: 0 | F111: -
A112: 1356 | B112: Zajmovi inozemnim kreditnim institucijama | C112: 1356 | D112: 0 | E112: 0 | F112: -
A113: 1357 | B113: Zajmovi inozemnim osiguravajućim društvima | C113: 1357 | D113: 0 | E113: 0 | F113: -
A114: 1358 | B114: Zajmovi ostalim inozemnim financijskim institucijama | C114: 1358 | D114: 0 | E114: 0 | F114: -
A115: 1365 | B115: Zajmovi inozemnim trgovačkim društvima | C115: 1365 | D115: 0 | E115: 0 | F115: -
A116: 1366 | B116: Zajmovi inozemnim obrtnicima | C116: 1366 | D116: 0 | E116: 0 | F116: -
A117: 139 | B117: Ispravak vrijednosti danih zajmova | C117: 139 | D117: 0 | E117: 0 | F117: -
A118: 14 | B118: Vrijednosni papiri (šifre 14X1+14X2-149) | C118: 14 | D118: =D119+D126-D133 -> 0 | E118: 0 | F118: -
B119: Vrijednosni papiri - tuzemni (šifre 1411+1421+1431+1441+1451+1461) | C119: 14X1 | D119: =SUM(D120:D125) -> 0 | E119: 0 | F119: -
A120: 1411 | B120: Čekovi | C120: 1411 | D120: 0 | E120: 0 | F120: -
A121: 1421 | B121: Komercijalni i blagajnički zapisi | C121: 1421 | D121: 0 | E121: 0 | F121: -
A122: 1431 | B122: Mjenice | C122: 1431 | D122: 0 | E122: 0 | F122: -
A123: 1441 | B123: Obveznice | C123: 1441 | D123: 0 | E123: 0 | F123: -
A124: 1451 | B124: Opcije i drugi financijski derivati | C124: 1451 | D124: 0 | E124: 0 | F124: -
A125: 1461 | B125: Ostali vrijednosni papiri | C125: 1461 | D125: 0 | E125: 0 | F125: -
B126: Vrijednosni papiri - inozemni (šifre 1412+1422+1432+1442+1452+1462) | C126: 14X2 | D126: =SUM(D127:D132) -> 0 | E126: 0 | F126: -
A127: 1412 | B127: Čekovi | C127: 1412 | D127: 0 | E127: 0 | F127: -
A128: 1422 | B128: Komercijalni i blagajnički zapisi | C128: 1422 | D128: 0 | E128: 0 | F128: -
A129: 1432 | B129: Mjenice | C129: 1432 | D129: 0 | E129: 0 | F129: -
A130: 1442 | B130: Obveznice | C130: 1442 | D130: 0 | E130: 0 | F130: -
A131: 1452 | B131: Opcije i drugi financijski derivati | C131: 1452 | D131: 0 | E131: 0 | F131: -
A132: 1462 | B132: Ostali vrijednosni papiri | C132: 1462 | D132: 0 | E132: 0 | F132: -
A133: 149 | B133: Ispravak vrijednosti vrijednosnih papira | C133: 149 | D133: 0 | E133: 0 | F133: -
A134: 15 | B134: Dionice i udjeli u glavnici (šifre 15X1+15X2-159) | C134: 15 | D134: =D135+D142-D145 -> 0 | E134: 0 | F134: -
B135: Dionice i udjeli u glavnici - tuzemni (šifre 1512+1513+1514+1521+1531+1541) | C135: 15X1 | D135: =SUM(D136:D141) -> 0 | E135: 0 | F135: -
A136: 1512 | B136: Dionice i udjeli u glavnici kreditnih institucija u javnom sektoru | C136: 1512 | D136: 0 | E136: 0 | F136: -
A137: 1513 | B137: Dionice i udjeli u glavnici osiguravajućih društava u javnom sektoru | C137: 1513 | D137: 0 | E137: 0 | F137: -
A138: 1514 | B138: Dionice i udjeli u glavnici ostalih financijskih institucija u javnom sektoru | C138: 1514 | D138: 0 | E138: 0 | F138: -
A139: 1521 | B139: Dionice i udjeli u glavnici trgovačkih društava u javnom sektoru | C139: 1521 | D139: 0 | E139: 0 | F139: -
A140: 1531 | B140: Dionice i udjeli u glavnici tuzemnih kreditnih i ostalih financijskih institucija izvan javnog sektora | C140: 1531 | D140: 0 | E140: 0 | F140: -
A141: 1541 | B141: Dionice i udjeli u glavnici tuzemnih trgovačkih društava izvan javnog sektora | C141: 1541 | D141: 0 | E141: 0 | F141: -
B142: Dionice i udjeli u glavnici - inozemni (šifre 1532+1542) | C142: 15X2 | D142: =SUM(D143:D144) -> 0 | E142: 0 | F142: -
A143: 1532 | B143: Dionice i udjeli u glavnici inozemnih kreditnih i ostalih financijskih institucija | C143: 1532 | D143: 0 | E143: 0 | F143: -
A144: 1542 | B144: Dionice i udjeli u glavnici inozemnih trgovačkih društava | C144: 1542 | D144: 0 | E144: 0 | F144: -
A145: 159 | B145: Ispravak vrijednosti dionica i udjela u glavnici | C145: 159 | D145: 0 | E145: 0 | F145: -
A146: 16 | B146: Potraživanja za prihode poslovanja (šifre 161 do 163 + 164 do 168-169) | C146: 16 | D146: =SUM(D147:D149)+SUM(D158:D162)-D163 -> 11087.27 | E146: 11050.74 | F146: 99.67052304
A147: 161 | B147: Potraživanja za poreze | C147: 161 | D147: 0 | E147: 0 | F147: -
A148: 162 | B148: Potraživanja za doprinose | C148: 162 | D148: 0 | E148: 0 | F148: -
A149: 163 | B149: Potraživanja za pomoći iz inozemstva i od subjekata unutar općeg proračuna (šifre 1631 do 1638) | C149: 163 | D149: =SUM(D150:D157) -> 0 | E149: 0 | F149: -
A150: 1631 | B150: Potraživanja za pomoći od inozemnih vlada | C150: 1631 | D150: 0 | E150: 0 | F150: -
A151: 1632 | B151: Potraživanja za pomoći od međunarodnih organizacija te institucija i tijela EU | C151: 1632 | D151: 0 | E151: 0 | F151: -
A152: 1633 | B152: Potraživanja za pomoći proračunu iz drugih proračuna | C152: 1633 | D152: 0 | E152: 0 | F152: -
A153: 1634 | B153: Potraživanja za pomoći od izvanproračunskih korisnika | C153: 1634 | D153: 0 | E153: 0 | F153: -
A154: 1635 | B154: Pomoći izravnanja za decentralizirane funkcije | C154: 1635 | D154: 0 | E154: 0 | F154: -
A155: 1636 | B155: Potraživanja za pomoći proračunskim korisnicima iz proračuna koji im nije nadležan | C155: 1636 | D155: 0 | E155: 0 | F155: -
A156: 1637 | B156: Potraživanja za povrat pomoći danih unutar općeg proračuna po protestiranim jamstvima | C156: 1637 | D156: 0 | E156: 0 | F156: -
A157: 1638 | B157: Potraživanja za pomoći iz državnog proračuna temeljem prijenosa EU sredstava | C157: 1638 | D157: 0 | E157: 0 | F157: -
A158: 164 | B158: Potraživanja za prihode od imovine | C158: 164 | D158: 0 | E158: 0 | F158: -
A159: 165 | B159: Potraživanja za upravne i administrativne pristojbe, pristojbe po posebnim propisima i naknade | C159: 165 | D159: 0 | E159: 0 | F159: -
A160: 166 | B160: Potraživanja za prihode od prodaje proizvoda i robe te pruženih usluga i za povrat po protestiranim jamstvima | C160: 166 | D160: 36.5 | E160: 7.3 | F160: 20
A161: 167 | B161: Potraživanja proračunskih korisnika za sredstva uplaćena u nadležni proračun i za prihode od HZZO-a na temelju ugovornih obveza | C161: 167 | D161: 11050.77 | E161: 11043.44 | F161: 99.93366978
A162: 168 | B162: Potraživanja za kazne i upravne mjere te ostale prihode | C162: 168 | D162: 0 | E162: 0 | F162: -
A163: 169 | B163: Ispravak vrijednosti potraživanja | C163: 169 | D163: 0 | E163: 0 | F163: -
A164: 17 | B164: Potraživanja od prodaje nefinancijske imovine (šifre 171 do 174 - 179) | C164: 17 | D164: =SUM(D165:D168)-D169 -> 0 | E164: 0 | F164: -
A165: 171 | B165: Potraživanje od prodaje neproizvedene dugotrajne imovine | C165: 171 | D165: 0 | E165: 0 | F165: -
A166: 172 | B166: Potraživanja od prodaje proizvedene dugotrajne imovine | C166: 172 | D166: 0 | E166: 0 | F166: -
A167: 173 | B167: Potraživanja od prodaje plemenitih metala i ostalih pohranjenih vrijednosti | C167: 173 | D167: 0 | E167: 0 | F167: -
A168: 174 | B168: Potraživanja od prodaje proizvedene kratkotrajne imovine | C168: 174 | D168: 0 | E168: 0 | F168: -
A169: 179 | B169: Ispravak vrijednosti potraživanja za prodanu nefinancijsku imovinu | C169: 179 | D169: 0 | E169: 0 | F169: -
A170: 19 | B170: Rashodi budućih razdoblja i nedospjela naplata prihoda (šifre 191 do 193) | C170: 19 | D170: =SUM(D171:D173) -> 0 | E170: 0 | F170: -
A171: 191 | B171: Rashodi budućih razdoblja | C171: 191 | D171: 0 | E171: 0 | F171: -
A172: 192 | B172: Nedospjela naplata prihoda | C172: 192 | D172: 0 | E172: 0 | F172: -
A173: 193 | B173: Kontinuirani rashodi budućih razdoblja | C173: 193 | D173: 0 | E173: 0 | F173: -
A174: OBVEZE I VLASTITI IZVORI
B175: OBVEZE I VLASTITI IZVORI (šifre 2+9) | C175: B003 | D175: =D176+D237 -> 77393.37 | E175: 73517.42 | F175: 94.99188367
A176: 2 | B176: Obveze (šifre 23+24+25+26+29) | C176: 2 | D176: =D177+D189+D190+D206+D234 -> 4503.81 | E176: 5561.88 | F176: 123.4927761
A177: 23 | B177: Obveze za rashode poslovanja (šifre 231 do 234 + 235 do 239) | C177: 23 | D177: =SUM(D178:D180)+SUM(D184:D188) -> 4503.81 | E177: 5143.89 | F177: 114.2119672
A178: 231 | B178: Obveze za zaposlene | C178: 231 | D178: 3872.57 | E178: 4499.22 | F178: 116.1817604
A179: 232 | B179: Obveze za materijalne rashode | C179: 232 | D179: 631.24 | E179: 644.67 | F179: 102.1275585
A180: 234 | B180: Obveze za financijske rashode (šifre 2341 do 2343) | C180: 234 | D180: =SUM(D181:D183) -> 0 | E180: 0 | F180: -
A181: 2341 | B181: Obveze za kamate za izdane vrijednosne papire | C181: 2341 | D181: 0 | E181: 0 | F181: -
A182: 2342 | B182: Obveze za kamate na primljene kredite i zajmove | C182: 2342 | D182: 0 | E182: 0 | F182: -
A183: 2343 | B183: Obveze za ostale financijske rashode | C183: 2343 | D183: 0 | E183: 0 | F183: -
A184: 235 | B184: Obveze za subvencije | C184: 235 | D184: 0 | E184: 0 | F184: -
A185: 236 | B185: Obveze za povrat pomoći primljenih unutar općeg proračuna po protestiranim jamstvima | C185: 236 | D185: 0 | E185: 0 | F185: -
A186: 237 | B186: Obveze za naknade građanima i kućanstvima | C186: 237 | D186: 0 | E186: 0 | F186: -
A187: 238 | B187: Obveze za kazne, naknade šteta i kapitalne pomoći | C187: 238 | D187: 0 | E187: 0 | F187: -
A188: 239 | B188: Ostale tekuće obveze | C188: 239 | D188: 0 | E188: 0 | F188: -
A189: 24 | B189: Obveze za nabavu nefinancijske imovine | C189: 24 | D189: 0 | E189: 417.99 | F189: -
A190: 25 | B190: Obveze za vrijednosne papire (šifre 25X1+25X2-259) | C190: 25 | D190: =D191+D198-D205 -> 0 | E190: 0 | F190: -
B191: Obveze za vrijednosne papire - tuzemne (šifre 2511+2521+2531+2541+2551+2561) | C191: 25X1 | D191: =SUM(D192:D197) -> 0 | E191: 0 | F191: -
A192: 2511 | B192: Obveze za čekove | C192: 2511 | D192: 0 | E192: 0 | F192: -
A193: 2521 | B193: Obveze za trezorske zapise | C193: 2521 | D193: 0 | E193: 0 | F193: -
A194: 2531 | B194: Obveze za mjenice | C194: 2531 | D194: 0 | E194: 0 | F194: -
A195: 2541 | B195: Obveze za obveznice | C195: 2541 | D195: 0 | E195: 0 | F195: -
A196: 2551 | B196: Obveze za opcije i druge financijske derivate | C196: 2551 | D196: 0 | E196: 0 | F196: -
A197: 2561 | B197: Obveze za ostale vrijednosne papire | C197: 2561 | D197: 0 | E197: 0 | F197: -
B198: Obveze za vrijednosne papire - inozemne (šifre 2512+2522+2532+2542+2552+2562) | C198: 25X2 | D198: =SUM(D199:D204) -> 0 | E198: 0 | F198: -
A199: 2512 | B199: Obveze za čekove | C199: 2512 | D199: 0 | E199: 0 | F199: -
A200: 2522 | B200: Obveze za trezorske zapise | C200: 2522 | D200: 0 | E200: 0 | F200: -
... 122 more rows

Sheet RAS-funkcijski
A1: Obveznik: | C1: Razina: | E1: Razdoblje:
A2: IZVJEŠTAJ O RASHODIMA PREMA FUNKCIJSKOJ KLASIFIKACIJI
A3: Brojč. ozn. funk. klas. | B3: Opis stavke | C3: Šifra | D3: Ostvareno u izvještajnom razdoblju preth. godine | E3: Ostvareno u izvještajnom razdoblju tekuće godine | F3: Indeks (5/4)
A4: 1 | B4: 2 | C4: 3 | D4: 4 | E4: 5 | F4: 6
A5: 01 | B5: Opće javne usluge (šifre 011+012+013+014 do 018) | C5: 01 | D5: =D6+D10+D13+SUM(D17:D21) -> 0 | E5: 0 | F5: =IF(D5>0,IF(E5/D5>=100,">>100",E5/D5*100),"-") -> -
A6: 011 | B6: Izvršna i zakonodavna tijela, financijski i fiskalni poslovi, vanjski poslovi (šifre 0111 do 0113) | C6: 011 | D6: =SUM(D7:D9) -> 0 | E6: 0 | F6: -
A7: 0111 | B7: Izvršna i zakonodavna tijela | C7: 0111 | F7: -
A8: 0112 | B8: Financijski i fiskalni poslovi | C8: 0112 | F8: -
A9: 0113 | B9: Vanjski poslovi | C9: 0113 | F9: -
A10: 012 | B10: Inozemna ekonomska pomoć (šifre 0121+0122) | C10: 012 | D10: =SUM(D11:D12) -> 0 | E10: 0 | F10: -
A11: 0121 | B11: Ekonomska pomoć zemljama u razvoju i zemljama u tranziciji | C11: 0121 | F11: -
A12: 0122 | B12: Ekonomska pomoć usmjerena preko međunarodnih agencija | C12: 0122 | D12: 0 | E12: 0 | F12: -
A13: 013 | B13: Opće usluge (šifre 0131 do 0133) | C13: 013 | D13: =SUM(D14:D16) -> 0 | E13: 0 | F13: -
A14: 0131 | B14: Opće usluge vezane za službenike | C14: 0131 | D14: 0 | E14: 0 | F14: -
A15: 0132 | B15: Sveukupno planiranje i statističke usluge | C15: 0132 | D15: 0 | E15: 0 | F15: -
A16: 0133 | B16: Ostale opće usluge | C16: 0133 | D16: 0 | E16: 0 | F16: -
A17: 014 | B17: Osnovna istraživanja | C17: 014 | D17: 0 | E17: 0 | F17: -
A18: 015 | B18: Istraživanje i razvoj: Opće javne usluge | C18: 015 | D18: 0 | E18: 0 | F18: -
A19: 016 | B19: Opće javne usluge koje nisu drugdje svrstane | C19: 016 | D19: 0 | E19: 0 | F19: -
A20: 017 | B20: Transakcije vezane za javni dug | C20: 017 | D20: 0 | E20: 0 | F20: -
A21: 018 | B21: Prijenosi općeg karaktera između različitih državnih razina | C21: 018 | D21: 0 | E21: 0 | F21: -
A22: 02 | B22: Obrana (šifre 021 do 025) | C22: 02 | D22: =SUM(D23:D27) -> 0 | E22: 0 | F22: -
A23: 021 | B23: Vojna obrana | C23: 021 | D23: 0 | E23: 0 | F23: -
A24: 022 | B24: Civilna obrana | C24: 022 | D24: 0 | E24: 0 | F24: -
A25: 023 | B25: Inozemna vojna pomoć | C25: 023 | D25: 0 | E25: 0 | F25: -
A26: 024 | B26: Istraživanje i razvoj obrane | C26: 024 | D26: 0 | E26: 0 | F26: -
A27: 025 | B27: Rashodi za obranu koji nisu drugdje svrstani | C27: 025 | D27: 0 | E27: 0 | F27: -
A28: 03 | B28: Javni red i sigurnost (šifre 031 do 036) | C28: 03 | D28: =SUM(D29:D34) -> 0 | E28: 0 | F28: -
A29: 031 | B29: Usluge policije | C29: 031 | D29: 0 | E29: 0 | F29: -
A30: 032 | B30: Usluge protupožarne zaštite | C30: 032 | D30: 0 | E30: 0 | F30: -
A31: 033 | B31: Sudovi | C31: 033 | D31: 0 | E31: 0 | F31: -
A32: 034 | B32: Zatvori | C32: 034 | D32: 0 | E32: 0 | F32: -
A33: 035 | B33: Istraživanje i razvoj: Javni red i sigurnost | C33: 035 | D33: 0 | E33: 0 | F33: -
A34: 036 | B34: Rashodi za javni red i sigurnost koji nisu drugdje svrstani | C34: 036 | D34: 0 | E34: 0 | F34: -
A35: 04 | B35: Ekonomski poslovi (šifre 041+042+043+044+045+046+047+048+049) | C35: 04 | D35: =D36+D39+D43+D50+D54+D60+D61+D66+D74 -> 0 | E35: 0 | F35: -
A36: 041 | B36: Opći ekonomski, trgovački i poslovi vezani uz rad (šifre 0411+0412) | C36: 041 | D36: =SUM(D37:D38) -> 0 | E36: 0 | F36: -
A37: 0411 | B37: Opći ekonomski i trgovački poslovi | C37: 0411 | D37: 0 | E37: 0 | F37: -
A38: 0412 | B38: Opći poslovi vezani uz rad | C38: 0412 | D38: 0 | E38: 0 | F38: -
A39: 042 | B39: Poljoprivreda, šumarstvo, ribarstvo i lov (šifre 0421 do 0423) | C39: 042 | D39: =SUM(D40:D42) -> 0 | E39: 0 | F39: -
A40: 0421 | B40: Poljoprivreda | C40: 0421 | D40: 0 | E40: 0 | F40: -
A41: 0422 | B41: Šumarstvo | C41: 0422 | D41: 0 | E41: 0 | F41: -
A42: 0423 | B42: Ribarstvo i lov | C42: 0423 | D42: 0 | E42: 0 | F42: -
A43: 043 | B43: Gorivo i energija (šifre 0431 do 0436) | C43: 043 | D43: =SUM(D44:D49) -> 0 | E43: 0 | F43: -
A44: 0431 | B44: Ugljen i ostala kruta mineralna goriva | C44: 0431 | D44: 0 | E44: 0 | F44: -
A45: 0432 | B45: Nafta i prirodni plin | C45: 0432 | D45: 0 | E45: 0 | F45: -
A46: 0433 | B46: Nuklearno gorivo | C46: 0433 | D46: 0 | E46: 0 | F46: -
A47: 0434 | B47: Ostala goriva | C47: 0434 | D47: 0 | E47: 0 | F47: -
A48: 0435 | B48: Električna energija | C48: 0435 | D48: 0 | E48: 0 | F48: -
A49: 0436 | B49: Ostale vrste energije | C49: 0436 | D49: 0 | E49: 0 | F49: -
A50: 044 | B50: Rudarstvo, proizvodnja i građevinarstvo (šifre 0441 do 0443) | C50: 044 | D50: =SUM(D51:D53) -> 0 | E50: 0 | F50: -
A51: 0441 | B51: Rudarstvo, mineralni resursi i ostala mineralna goriva | C51: 0441 | D51: 0 | E51: 0 | F51: -
A52: 0442 | B52: Proizvodnja | C52: 0442 | D52: 0 | E52: 0 | F52: -
A53: 0443 | B53: Građevinarstvo | C53: 0443 | D53: 0 | E53: 0 | F53: -
A54: 045 | B54: Promet (šifre 0451 do 0455) | C54: 045 | D54: =SUM(D55:D59) -> 0 | E54: 0 | F54: -
A55: 0451 | B55: Cestovni promet | C55: 0451 | D55: 0 | E55: 0 | F55: -
A56: 0452 | B56: Promet vodnim putovima | C56: 0452 | D56: 0 | E56: 0 | F56: -
A57: 0453 | B57: Željeznički promet | C57: 0453 | D57: 0 | E57: 0 | F57: -
A58: 0454 | B58: Zračni promet | C58: 0454 | D58: 0 | E58: 0 | F58: -
A59: 0455 | B59: Promet cjevovodima i ostali promet | C59: 0455 | D59: 0 | E59: 0 | F59: -
A60: 046 | B60: Komunikacije | C60: 046 | D60: 0 | E60: 0 | F60: -
A61: 047 | B61: Ostale industrije (šifre 0471 do 0474) | C61: 047 | D61: =SUM(D62:D65) -> 0 | E61: 0 | F61: -
A62: 0471 | B62: Distribucija i skladištenje | C62: 0471 | D62: 0 | E62: 0 | F62: -
A63: 0472 | B63: Hoteli i restorani | C63: 0472 | D63: 0 | E63: 0 | F63: -
A64: 0473 | B64: Turizam | C64: 0473 | D64: 0 | E64: 0 | F64: -
A65: 0474 | B65: Višenamjenski razvojni projekti | C65: 0474 | D65: 0 | E65: 0 | F65: -
A66: 048 | B66: Istraživanje i razvoj: Ekonomski poslovi (šifre 0481 do 0487) | C66: 048 | D66: =SUM(D67:D73) -> 0 | E66: 0 | F66: -
A67: 0481 | B67: Istraživanje i razvoj: Opći ekonomski, trgovački i poslovi vezani uz rad | C67: 0481 | D67: 0 | E67: 0 | F67: -
A68: 0482 | B68: Istraživanje i razvoj: Poljoprivreda, šumarstvo, ribarstvo i lov | C68: 0482 | D68: 0 | E68: 0 | F68: -
A69: 0483 | B69: Istraživanje i razvoj: Gorivo i energija | C69: 0483 | D69: 0 | E69: 0 | F69: -
A70: 0484 | B70: Istraživanje i razvoj: Rudarstvo, proizvodnja i građevinarstvo | C70: 0484 | D70: 0 | E70: 0 | F70: -
A71: 0485 | B71: Istraživanje i razvoj: Promet | C71: 0485 | D71: 0 | E71: 0 | F71: -
A72: 0486 | B72: Istraživanje i razvoj: Komunikacije | C72: 0486 | D72: 0 | E72: 0 | F72: -
A73: 0487 | B73: Istraživanje i razvoj: Ostale industrije | C73: 0487 | D73: 0 | E73: 0 | F73: -
A74: 049 | B74: Ekonomski poslovi koji nisu drugdje svrstani | C74: 049 | D74: 0 | E74: 0 | F74: -
A75: 05 | B75: Zaštita okoliša (šifre 051 do 056) | C75: 05 | D75: =SUM(D76:D81) -> 0 | E75: 0 | F75: -
A76: 051 | B76: Gospodarenje otpadom | C76: 051 | D76: 0 | E76: 0 | F76: -
A77: 052 | B77: Gospodarenje otpadnim vodama | C77: 052 | D77: 0 | E77: 0 | F77: -
A78: 053 | B78: Smanjenje zagađivanja | C78: 053 | D78: 0 | E78: 0 | F78: -
A79: 054 | B79: Zaštita bioraznolikosti i krajolika | C79: 054 | D79: 0 | E79: 0 | F79: -
A80: 055 | B80: Istraživanje i razvoj: Zaštita okoliša | C80: 055 | D80: 0 | E80: 0 | F80: -
A81: 056 | B81: Poslovi i usluge zaštite okoliša koji nisu drugdje svrstani | C81: 056 | D81: 0 | E81: 0 | F81: -
A82: 06 | B82: Usluge unapređenja stanovanja i zajednice (šifre 061 do 066) | C82: 06 | D82: =SUM(D83:D88) -> 0 | E82: 0 | F82: -
A83: 061 | B83: Razvoj stanovanja | C83: 061 | D83: 0 | E83: 0 | F83: -
A84: 062 | B84: Razvoj zajednice | C84: 062 | D84: 0 | E84: 0 | F84: -
A85: 063 | B85: Opskrba vodom | C85: 063 | D85: 0 | E85: 0 | F85: -
A86: 064 | B86: Ulična rasvjeta | C86: 064 | D86: 0 | E86: 0 | F86: -
A87: 065 | B87: Istraživanje i razvoj stanovanja i komunalnih pogodnosti | C87: 065 | D87: 0 | E87: 0 | F87: -
A88: 066 | B88: Rashodi vezani za stanovanje i kom. pogodnosti koji nisu drugdje svrstani | C88: 066 | D88: 0 | E88: 0 | F88: -
A89: 07 | B89: Zdravstvo (šifre 071+072+073+074+075+076) | C89: 07 | D89: =D90+D94+D99+D104+D105+D106 -> 0 | E89: 0 | F89: -
A90: 071 | B90: Medicinski proizvodi, pribor i oprema (šifre 0711 do 0713) | C90: 071 | D90: =SUM(D91:D93) -> 0 | E90: 0 | F90: -
A91: 0711 | B91: Farmaceutski proizvodi | C91: 0711 | D91: 0 | E91: 0 | F91: -
A92: 0712 | B92: Ostali medicinski proizvodi | C92: 0712 | D92: 0 | E92: 0 | F92: -
A93: 0713 | B93: Terapeutski pribor i oprema | C93: 0713 | D93: 0 | E93: 0 | F93: -
A94: 072 | B94: Službe za vanjske pacijente (šifre 0721 do 0724) | C94: 072 | D94: =SUM(D95:D98) -> 0 | E94: 0 | F94: -
A95: 0721 | B95: Opće medicinske usluge | C95: 0721 | D95: 0 | E95: 0 | F95: -
A96: 0722 | B96: Specijalističke medicinske usluge | C96: 0722 | D96: 0 | E96: 0 | F96: -
A97: 0723 | B97: Zubarske usluge | C97: 0723 | D97: 0 | E97: 0 | F97: -
A98: 0724 | B98: Paramedicinske usluge | C98: 0724 | D98: 0 | E98: 0 | F98: -
A99: 073 | B99: Bolničke službe (šifre 0731 do 0734) | C99: 073 | D99: =SUM(D100:D103) -> 0 | E99: 0 | F99: -
A100: 0731 | B100: Usluge općih bolnica | C100: 0731 | D100: 0 | E100: 0 | F100: -
A101: 0732 | B101: Usluge specijalističkih bolnica | C101: 0732 | D101: 0 | E101: 0 | F101: -
A102: 0733 | B102: Usluge medicinskih centara i centara za majčinstvo | C102: 0733 | D102: 0 | E102: 0 | F102: -
A103: 0734 | B103: Usluge centara za njegu i oporavak | C103: 0734 | D103: 0 | E103: 0 | F103: -
A104: 074 | B104: Službe javnog zdravstva | C104: 074 | D104: 0 | E104: 0 | F104: -
A105: 075 | B105: Istraživanje i razvoj zdravstva | C105: 075 | D105: 0 | E105: 0 | F105: -
A106: 076 | B106: Poslovi i usluge zdravstva koji nisu drugdje svrstani | C106: 076 | D106: 0 | E106: 0 | F106: -
A107: 08 | B107: Rekreacija, kultura i religija (šifre 081 do 086) | C107: 08 | D107: =SUM(D108:D113) -> 94377.54 | E107: 113277.49 | F107: 120.0258981
A108: 081 | B108: Službe rekreacije i sporta | C108: 081 | D108: 0 | E108: 0 | F108: -
A109: 082 | B109: Službe kulture | C109: 082 | D109: 94377.54 | E109: 113277.49 | F109: 120.0258981
A110: 083 | B110: Službe emitiranja i izdavanja | C110: 083 | D110: 0 | E110: 0 | F110: -
A111: 084 | B111: Religijske i druge službe zajednice | C111: 084 | D111: 0 | E111: 0 | F111: -
A112: 085 | B112: Istraživanje i razvoj rekreacije, kulture i religije | C112: 085 | D112: 0 | E112: 0 | F112: -
A113: 086 | B113: Rashodi za rekreaciju, kulturu i religiju koji nisu drugdje svrstani | C113: 086 | D113: 0 | E113: 0 | F113: -
A114: 09 | B114: Obrazovanje (šifre 091+092+093+094+095+096+097+098) | C114: 09 | D114: =D115+D118+D121+D122+SUM(D125:D128) -> 0 | E114: 0 | F114: -
A115: 091 | B115: Predškolsko i osnovno obrazovanje (šifre 0911+0912) | C115: 091 | D115: =SUM(D116:D117) -> 0 | E115: 0 | F115: -
A116: 0911 | B116: Predškolsko obrazovanje | C116: 0911 | D116: 0 | E116: 0 | F116: -
A117: 0912 | B117: Osnovno obrazovanje | C117: 0912 | D117: 0 | E117: 0 | F117: -
A118: 092 | B118: Srednjoškolsko obrazovanje (šifre 0921+0922) | C118: 092 | D118: =SUM(D119:D120) -> 0 | E118: 0 | F118: -
A119: 0921 | B119: Niže srednjoškolsko obrazovanje | C119: 0921 | D119: 0 | E119: 0 | F119: -
A120: 0922 | B120: Više srednjoškolsko obrazovanje | C120: 0922 | D120: 0 | E120: 0 | F120: -
A121: 093 | B121: Poslije srednjoškolsko, ali ne visoko obrazovanje | C121: 093 | D121: 0 | E121: 0 | F121: -
A122: 094 | B122: Visoka naobrazba (šifre 0941+0942) | C122: 094 | D122: =SUM(D123:D124) -> 0 | E122: 0 | F122: -
A123: 0941 | B123: Prvi stupanj visoke naobrazbe | C123: 0941 | D123: 0 | E123: 0 | F123: -
A124: 0942 | B124: Drugi stupanj visoke naobrazbe | C124: 0942 | D124: 0 | E124: 0 | F124: -
A125: 095 | B125: Obrazovanje koje se ne može definirati po stupnju | C125: 095 | D125: 0 | E125: 0 | F125: -
A126: 096 | B126: Dodatne usluge u obrazovanju | C126: 096 | D126: 0 | E126: 0 | F126: -
A127: 097 | B127: Istraživanje i razvoj obrazovanja | C127: 097 | D127: 0 | E127: 0 | F127: -
A128: 098 | B128: Usluge obrazovanja koje nisu drugdje svrstane | C128: 098 | D128: 0 | E128: 0 | F128: -
A129: 10 | B129: Socijalna zaštita (šifre 101+102+103+104+105+106+107+108+109) | C129: 10 | D129: =D130+D133+SUM(D134:D140) -> 0 | E129: 0 | F129: -
A130: 101 | B130: Bolest i invaliditet (šifre 1011+1012) | C130: 101 | D130: =SUM(D131:D132) -> 0 | E130: 0 | F130: -
A131: 1011 | B131: Bolest | C131: 1011 | D131: 0 | E131: 0 | F131: -
A132: 1012 | B132: Invaliditet | C132: 1012 | D132: 0 | E132: 0 | F132: -
A133: 102 | B133: Starost | C133: 102 | D133: 0 | E133: 0 | F133: -
A134: 103 | B134: Slijednici | C134: 103 | D134: 0 | E134: 0 | F134: -
A135: 104 | B135: Obitelj i djeca | C135: 104 | D135: 0 | E135: 0 | F135: -
A136: 105 | B136: Nezaposlenost | C136: 105 | D136: 0 | E136: 0 | F136: -
A137: 106 | B137: Stanovanje | C137: 106 | D137: 0 | E137: 0 | F137: -
A138: 107 | B138: Socijalna pomoć stanovništvu koje nije obuhvaćeno redovnim socijalnim programima | C138: 107 | D138: 0 | E138: 0 | F138: -
A139: 108 | B139: Istraživanje i razvoj socijalne zaštite | C139: 108 | D139: 0 | E139: 0 | F139: -
A140: 109 | B140: Aktivnosti socijalne zaštite koje nisu drugdje svrstane | C140: 109 | D140: 0 | E140: 0 | F140: -
B141: Kontrolni zbroj (šifre 01+02+03+04+05+06+07+08+09+10) | C141: R1 | D141: =D5+D22+D28+D35+D75+D82+D89+D107+D114+D129 -> 94377.54 | E141: 113277.49 | F141: 120.0258981

Sheet P-VRIO
A1: Obveznik: | C1: Razina: | E1: Razdoblje:
A2: IZVJEŠTAJ O PROMJENAMA U VRIJEDNOSTI I OBUJMU IMOVINE I OBVEZA
A3: Račun iz rač. plana | B3: Opis stavke | C3: Šifra | D3: Iznos povećanja | E3: Iznos smanjenja
A4: 1 | B4: 2 | C4: 3 | D4: 4 | E4: 5
A5: 9151 | B5: Promjene u vrijednosti i obujmu imovine (šifre 91511+91512) | C5: 9151 | D5: =D6+D22 -> 6840.64 | E5: 3347.3
A6: 91511 | B6: Promjene u vrijednosti (revalorizacija) imovine (šifre P001+P008) | C6: 91511 | D6: =D7+D14 -> 0 | E6: 3305.61
B7: Promjene u vrijednosti (revalorizacija) nefinancijske imovine (šifre P002 do P007) | C7: P001 | D7: =SUM(D8:D13) -> 0 | E7: 3305.61
B8: Neproizvedena dugotrajna imovina | C8: P002 | E8: 3305.61
B9: Proizvedena dugotrajna imovina | C9: P003
B10: Plemeniti metali i ostale pohranjene vrijednosti | C10: P004
B11: Sitni inventar i auto gume | C11: P005
B12: Dugotrajna nefinancijska imovina u pripremi | C12: P006
B13: Proizvedena kratkotrajna imovina | C13: P007
B14: Promjene u vrijednosti (revalorizacija) financijske imovine (šifre P009 do P015) | C14: P008 | D14: =SUM(D15:D21) -> 0 | E14: =SUM(E15:E21) -> 0
B15: Novac u banci i blagajni | C15: P009
B16: Depoziti, jamčevni polozi i potraživanja od zaposlenih te za više plaćene poreze i ostalo | C16: P010
B17: Potraživanja za dane zajmove | C17: P011
B18: Vrijednosni papiri | C18: P012
B19: Dionice i udjeli u glavnici | C19: P013
B20: Potraživanja za prihode poslovanja | C20: P014
B21: Potraživanja od prodaje nefinancijske imovine | C21: P015
A22: 91512 | B22: Promjene u obujmu imovine (šifre P016+P023) | C22: 91512 | D22: =D23+D30 -> 6840.64 | E22: 41.69
B23: Promjene u obujmu nefinancijske imovine (šifre P017 do P022) | C23: P016 | D23: =SUM(D24:D29) -> 6840.64 | E23: 41.69
B24: Neproizvedena dugotrajna imovina | C24: P017
B25: Proizvedena dugotrajna imovina | C25: P018 | D25: 6840.64 | E25: 41.69
B26: Plemeniti metali i ostale pohranjene vrijednosti | C26: P019
B27: Sitni inventar i auto gume | C27: P020
B28: Dugotrajna nefinancijska imovina u pripremi | C28: P021
B29: Proizvedena kratkotrajna imovina | C29: P022
B30: Promjene u obujmu financijske imovine (šifre P024 do P030) | C30: P023 | D30: =SUM(D31:D37) -> 0 | E30: =SUM(E31:E37) -> 0
B31: Novac u banci i blagajni | C31: P024
B32: Depoziti, jamčevni polozi i potraživanja od zaposlenih te za više plaćene poreze i ostalo | C32: P025
B33: Potraživanja za dane zajmove | C33: P026
B34: Vrijednosni papiri | C34: P027
B35: Dionice i udjeli u glavnici | C35: P028
B36: Potraživanja za prihode poslovanja | C36: P029
B37: Potraživanja od prodaje nefinancijske imovine | C37: P030
A38: 9152 | B38: Promjene u vrijednosti (revalorizacija) i obujmu obveza (šifre 91521+91522) | C38: 9152 | D38: =D39+D44 -> 0 | E38: =E39+E44 -> 0
A39: 91521 | B39: Promjene u vrijednosti (revalorizacija) obveza (šifre P031 do P034) | C39: 91521 | D39: =SUM(D40:D43) -> 0 | E39: 0
B40: Obveze za rashode poslovanja | C40: P031
B41: Obveze za nabavu nefinancijske imovine | C41: P032
B42: Obveze za vrijednosne papire | C42: P033
B43: Obveze za kredite i zajmove | C43: P034
A44: 91522 | B44: Promjene u obujmu obveza (šifre P035 do P038) | C44: 91522 | D44: =SUM(D45:D48) -> 0 | E44: 0
B45: Obveze za rashode poslovanja | C45: P035
B46: Obveze za nabavu nefinancijske imovine | C46: P036
B47: Obveze za vrijednosne papire | C47: P037
B48: Obveze za kredite i zajmove | C48: P038

Sheet OBVEZE
A1: Obveznik: | C1: Razina: | E1: Razdoblje:
A2: IZVJEŠTAJ O OBVEZAMA
A3: Račun iz rač. plana | B3: Opis stavke | C3: Šifra | D3: Iznos
A4: 1 | B4: 2 | C4: 3 | D4: 4
B5: Stanje obveza 1. siječnja (=stanju obveza iz Izvještaja o obvezama na 31. prosinca prethodne godine) | C5: V001 | D5: 4503.81
B6: Povećanje obveza u izvještajnom razdoblju (šifre V003+N23+N24 + 'N dio 25,26') | C6: V002 | D6: =D7+D8+D17+D18 -> 105230.97
B7: Međusobne obveze subjekata općeg proračuna | C7: V003 | D7: 0
A8: 23 | B8: Obveze za rashode poslovanja (šifre N231 do N239) | C8: N23 | D8: =SUM(D9:D16) -> 85905.13
A9: 231 | B9: Obveze za zaposlene | C9: N231 | D9: 58213.3
A10: 232 | B10: Obveze za materijalne rashode | C10: N232 | D10: 27691.83
A11: 234 | B11: Obveze za financijske rashode | C11: N234
A12: 235 | B12: Obveze za subvencije | C12: N235
A13: 236 | B13: Obveze za povrat pomoći unutar općeg proračuna po protestiranim jamstvima | C13: N236
A14: 237 | B14: Obveze za naknade građanima i kućanstvima | C14: N237
A15: 238 | B15: Obveze za kazne, naknade šteta i kapitalne pomoći | C15: N238
A16: 239 | B16: Ostale tekuće obveze | C16: N239
A17: 24 | B17: Obveze za nabavu nefinancijske imovine | C17: N24 | D17: 19325.84
A18: dio 25,26 | B18: Obveze za financijsku imovinu (šifre 'N251, 253' + N254 + N256 + 'N262,263,2643,2644,2645,2653,2654,267' + 'N261,2646,2647,2648,2655,2656') | C18: N dio 25,26 | D18: =SUM(D19:D23) -> 0
A19: 251.253 | B19: Obveze za čekove i mjenice | C19: N251, 253 | D19: 0
A20: 254 | B20: Obveze za obveznice | C20: N254
A21: 256 | B21: Obveze za ostale vrijednosne papire | C21: N256
A22: 262,263,2643,2644, 2645,2653,2654,267 | B22: Obveze za tuzemne kredite i zajmove | C22: N262,263,2643,2644,2645,2653,2654,267
A23: 261,2646,2647, 2648,2655,2656 | B23: Obveze za inozemne kredite i zajmove | C23: N261,2646,2647,2648,2655,2656 | D23: 0
B24: Podmirene obveze u izvještajnom razdoblju (šifre V005+P23+P24 + 'P dio 25,26') | C24: V004 | D24: =D25+D26+D35+D36 -> 104172.9
B25: Međusobne obveze subjekata općeg proračuna | C25: V005 | D25: 0
A26: 23 | B26: Obveze za rashode poslovanja (šifre P231 do P239) | C26: P23 | D26: =SUM(D27:D34) -> 85265.05
A27: 231 | B27: Obveze za zaposlene | C27: P231 | D27: 57586.65
A28: 232 | B28: Obveze za materijalne rashode | C28: P232 | D28: 27678.4
A29: 234 | B29: Obveze za financijske rashode | C29: P234
A30: 235 | B30: Obveze za subvencije | C30: P235
A31: 236 | B31: Obveze za povrat pomoći unutar općeg proračuna po protestiranim jamstvima | C31: P236
A32: 237 | B32: Obveze za naknade građanima i kućanstvima | C32: P237
A33: 238 | B33: Obveze za kazne, naknade šteta i kapitalne pomoći | C33: P238
A34: 239 | B34: Ostale tekuće obveze | C34: P239
A35: 24 | B35: Obveze za nabavu nefinancijske imovine | C35: P24 | D35: 18907.85
A36: dio 25,26 | B36: Obveze za financijsku imovinu (šifre 'P251,253' + P254 + P256 + 'P262,263,2643,2644, 2645,2653,2654,267' + 'P261,2646,2647, 2648,2655,2656') | C36: P dio 25, 26 | D36: =SUM(D37:D41) -> 0
A37: 251.253 | B37: Obveze za čekove i mjenice | C37: P251, 253 | D37: 0
A38: 254 | B38: Obveze za obveznice | C38: P254
A39: 256 | B39: Obveze za ostale vrijednosne papire | C39: P256
A40: 262,263,2643,2644, 2645,2653,2654,267 | B40: Obveze za tuzemne kredite i zajmove | C40: P262,263,2643,2644, 2645,2653,2654,267
A41: 261,2646,2647, 2648,2655,2656 | B41: Obveze za inozemne kredite i zajmove | C41: P261,2646,2647, 2648,2655,2656
B42: Stanje obveza na kraju izvještajnog razdoblja (šifre V001+V002-V004) i (šifre V007+V009) | C42: V006 | D42: =D5+D6-D24 -> 5561.88
B43: Stanje dospjelih obveza na kraju izvještajnog razdoblja (šifre V008+D23+D24 + 'D dio 25,26') | C43: V007 | D43: =D44+D49+D90+D95 -> 0
B44: Međusobne obveze subjekata općeg proračuna (šifre M001 do M004) | C44: V008 | D44: =SUM(D45:D48) -> 0
B45: a) Prekoračenje 1 do 60 dana | C45: M001 | D45: 0
B46: b) Prekoračenje 61 do 180 dana | C46: M002 | D46: 0
B47: c) Prekoračenje 181 do 360 dana | C47: M003 | D47: 0
B48: d) Prekoračenje preko 360 dana | C48: M004 | D48: 0
A49: 23 | B49: Ukupno obveze za rashode poslovanja (šifre D231+D232+D234+D235+D236+D237+D 238+D239) | C49: D23 | D49: =D50+D55+D60+D65+D70+D75+D80+D85 -> 0
A50: 231 | B50: Obveze za zaposlene (šifre D231A do D231D) | C50: D231 | D50: =SUM(D51:D54) -> 0
B51: a) Prekoračenje 1 do 60 dana | C51: D231A | D51: 0
B52: b) Prekoračenje 61 do 180 dana | C52: D231B
B53: c) Prekoračenje 181 do 360 dana | C53: D231C | D53: 0
B54: d) Prekoračenje preko 360 dana | C54: D231D
A55: 232 | B55: Obveze za materijalne rashode (šifre D232A do D232D) | C55: D232 | D55: =SUM(D56:D59) -> 0
B56: a) Prekoračenje 1 do 60 dana | C56: D232A | D56: 0
B57: b) Prekoračenje 61 do 180 dana | C57: D232B | D57: 0
B58: c) Prekoračenje 181 do 360 dana | C58: D232C | D58: 0
B59: d) Prekoračenje preko 360 dana | C59: D232D
A60: 234 | B60: Obveze za financijske rashode (šifre D234A do D234D) | C60: D234 | D60: =SUM(D61:D64) -> 0
B61: a) Prekoračenje 1 do 60 dana | C61: D234A
B62: b) Prekoračenje 61 do 180 dana | C62: D234B
B63: c) Prekoračenje 181 do 360 dana | C63: D234C
B64: d) Prekoračenje preko 360 dana | C64: D234D
A65: 235 | B65: Obveze za subvencije (šifre D235A do D235D) | C65: D235 | D65: =SUM(D66:D69) -> 0
B66: a) Prekoračenje 1 do 60 dana | C66: D235A
B67: b) Prekoračenje 61 do 180 dana | C67: D235B
B68: c) Prekoračenje 181 do 360 dana | C68: D235C
B69: d) Prekoračenje preko 360 dana | C69: D235D
A70: 236 | B70: Obveze za povrat pomoći unutar općeg proračuna po protestiranim jamstvima (šifre D236A do D236D) | C70: D236 | D70: =SUM(D71:D74) -> 0
B71: a) Prekoračenje 1 do 60 dana | C71: D236A
B72: b) Prekoračenje 61 do 180 dana | C72: D236B
B73: c) Prekoračenje 181 do 360 dana | C73: D236C
B74: d) Prekoračenje preko 360 dana | C74: D236D
A75: 237 | B75: Obveze za naknade građanima i kućanstvima (šifre D237A do D237D) | C75: D237 | D75: =SUM(D76:D79) -> 0
B76: a) Prekoračenje 1 do 60 dana | C76: D237A
B77: b) Prekoračenje 61 do 180 dana | C77: D237B
B78: c) Prekoračenje 181 do 360 dana | C78: D237C
B79: d) Prekoračenje preko 360 dana | C79: D237D
A80: 238 | B80: Obveze za kazne, naknade šteta i kapitalne pomoći (šifre D238A do D238D) | C80: D 238 | D80: =SUM(D81:D84) -> 0
B81: a) Prekoračenje 1 do 60 dana | C81: D238A
B82: b) Prekoračenje 61 do 180 dana | C82: D238B
B83: c) Prekoračenje 181 do 360 dana | C83: D238C
B84: d) Prekoračenje preko 360 dana | C84: D238D
A85: 239 | B85: Ostale tekuće obveze (šifre D239A do D239D) | C85: D239 | D85: =SUM(D86:D89) -> 0
B86: a) Prekoračenje 1 do 60 dana | C86: D239A
B87: b) Prekoračenje 61 do 180 dana | C87: D239B
B88: c) Prekoračenje 181 do 360 dana | C88: D239C
B89: d) Prekoračenje preko 360 dana | C89: D239D
A90: 24 | B90: Obveze za nabavu nefinancijske imovine (šifre D24A do D24D) | C90: D24 | D90: =SUM(D91:D94) -> 0
B91: a) Prekoračenje 1 do 60 dana | C91: D24A | D91: 0
B92: b) Prekoračenje 61 do 180 dana | C92: D24B | D92: 0
B93: c) Prekoračenje 181 do 360 dana | C93: D24C | D93: 0
B94: d) Prekoračenje preko 360 dana | C94: D24D
A95: dio 25,26 | B95: Obveze za financijsku imovinu (šifre 'D 251,253' + D254 + D256 + 'D262,263,2643,2644, 2645,2653,2654,267' + 'D261,2646,2647, 2648,2655,2656') | C95: D dio 25,26 | D95: =SUM(D96:D100) -> 0
A96: 251.253 | B96: Obveze za čekove i mjenice | C96: D 251,253
A97: 254 | B97: Obveze za obveznice | C97: D254
A98: 256 | B98: Obveze za ostale vrijednosne papire | C98: D256
A99: 262,263,2643,2644, 2645,2653,2654,267 | B99: Obveze za tuzemne kredite i zajmove | C99: D262,263,2643,2644, 2645,2653,2654,267
A100: 261,2646,2647, 2648,2655,2656 | B100: Obveze za inozemne kredite i zajmove | C100: D261,2646,2647, 2648,2655,2656
B101: Stanje nedospjelih obveza na kraju izvještajnog razdoblja (šifre V010 + ND23 + ND24 + 'ND dio 25,26') | C101: V009 | D101: =SUM(D102:D105) -> 5561.88
B102: Međusobne obveze subjekata općeg proračuna | C102: V010
A103: 23 | B103: Obveze za rashode poslovanja | C103: ND23 | D103: 5143.89
A104: 24 | B104: Obveze za nabavu nefinancijske imovine | C104: ND24 | D104: 417.99
A105: dio 25,26 | B105: Obveze za financijsku imovinu | C105: ND dio 25,26

Sheet Kont
A1: IZVJEŠTAJ O OBVEZAMA | E1: REZ
A2: KONTROLE
A3: Rbr. | B3: Rezultat kontrole | C3: Opis kontrole | E3: =E4+E14+E20+E277+E311+E314+E316 -> 0 | F3: =F4+F14+F20+F277+F311+F314+F316 -> 2 | G3: =IF(RefStr!C12<>"",INT(VALUE(MID(RefStr!C12,1,4))),0) -> 2023 | H3: =IF(RefStr!C12<>"",INT(VALUE(MID(RefStr!C12,6,2))),0) -> 12 | I3: =RefStr!C10*1 -> 21 | J3: =RefStr!H7 -> DA | K3: =RefStr!H9 -> DA | L3: =RefStr!H10 -> DA | M3: =RefStr!H8 -> DA | N3: =RefStr!H11 -> DA | O3: =RefStr!C6 -> 42635
A4: OPĆE KONTROLE - Kontrole podataka iz zaglavlja i kontrole popunjenosti obrazaca | E4: =SUM(E5:E13) -> 0 | F4: 0 | I4: 3 i 9 mjesec | J4: 6. mjesec | K4: 12. mjeseci
A5: 1 | B5: =IF(E5=1,"Pogreška",IF(F5=1,"Provjera","O.K.")) -> O.K. | C5: Razina 11 (od 2016. godine) - za kvartale te za polugodište (I.-III., I.-VI., I.-IX.) predaje obrasce PR-RAS i Obveze - za kraj godine predaje SVE obrasce: PR-RAS, BIL, P-VRIO, RAS-funkcijski i Obveze. Ova kontrola javlja pogrešku ako je popunjen obrazac koji se za upisano razdoblje i razinu ne treba popuniti, ili ako nije popunjen neki koji se treba popuniti. | E5: =MAX(G5:K5) -> 0 | F5: 0 | I5: =IF(AND($I$3=11,OR($H$3=3,$H$3=9),OR($J$3<>"DA",$K$3<>"NE",$L$3<>"NE",$M$3<>"NE",$N$3<>"DA")),1,0) -> 0 | J5: =IF(AND($I$3=11,$H$3=6,OR($J$3<>"DA",$K$3<>"NE",$L$3<>"NE",$M$3<>"NE",$N$3<>"DA")),1,0) -> 0 | K5: =IF(AND($I$3=11,$H$3=12,OR($J$3<>"DA",$K$3<>"DA",$L$3<>"DA",$M$3<>"DA",$N$3<>"DA")),1,0) -> 0
A6: 2 | B6: O.K. | C6: Razina 12 (od 2016. godine) - za kvartale (I.-III., I.-IX.) predaje samo obrazac Obveze, - za polugodište predaje obrazac PR-RAS te obrazac Obveze - za kraj godine predaje SVE obrasce: PR-RAS, BIL, P-VRIO, RAS-funkcijski i Obveze. Ova kontrola javlja pogrešku ako je popunjen obrazac koji se za upisano razdoblje i razinu ne treba popuniti, ili ako nije popunjen neki koji se treba popuniti. | E6: 0 | F6: 0 | I6: =IF(AND($I$3=12,OR($H$3=3,$H$3=9),OR($J$3<>"NE",$K$3<>"NE",$L$3<>"NE",$M$3<>"NE",$N$3<>"DA")),1,0) -> 0 | J6: =IF(AND($I$3=12,$H$3=6,OR($J$3<>"DA",$K$3<>"NE",$L$3<>"NE",$M$3<>"NE",$N$3<>"DA")),1,0) -> 0 | K6: =IF(AND($I$3=12,$H$3=12,OR(J3<>"DA",K3<>"DA",L3<>"DA",M3<>"DA",N3<>"DA")),1,0) -> 0
A7: 3 | B7: O.K. | C7: Razina 13, opća država (od 2016. godine) - za kvartale te za polugodište (I.-III., I.-VI., I.-IX.) predaje samo obrazac PR-RAS - za kraj godine predaje obrasce: PR-RAS, BIL, P-VRIO i RAS-funkcijski. Ova kontrola javlja pogrešku ako je popunjen obrazac koji se za upisano razdoblje i razinu ne treba popuniti, ili ako nije popunjen neki koji se treba popuniti. | E7: 0 | F7: 0 | I7: =IF(AND($I$3=13,OR($H$3=3,$H$3=9),OR($J$3<>"DA",$K$3<>"NE",$L$3<>"NE",$M$3<>"NE",$N$3<>"NE")),1,0) -> 0 | J7: =IF(AND($I$3=13,$H$3=6,OR($J$3<>"DA",$K$3<>"NE",$L$3<>"NE",$M$3<>"NE",$N$3<>"NE")),1,0) -> 0 | K7: =IF(AND($I$3=13,$H$3=12,OR($J$3<>"DA",$K$3<>"DA",$L$3<>"DA",$M$3<>"DA",$N$3<>"NE")),1,0) -> 0
A8: 4 | B8: O.K. | C8: Razina 21 (od 2016. godine) - za kvartale (I.-III., I.-IX.) predaje samo obrazac PR-RAS - za polugodište predaje obrasce PR-RAS i Obveze, - na godišnjoj razini predaje sve obrasce: PR-RAS, BIL, RAS-funkcijski, P-VRIO i Obveze. Ova kontrola javlja pogrešku ako je popunjen obrazac koji se za upisano razdoblje i razinu ne treba popuniti, ili ako nije popunjen neki koji se treba popuniti. | E8: 0 | F8: 0 | I8: =IF(AND($I$3=21,OR($H$3=3,$H$3=9),OR($J$3<>"DA",$K$3<>"NE",$L$3<>"NE",$M$3<>"NE",$N$3<>"NE")),1,0) -> 0 | J8: =IF(AND($I$3=21,$H$3=6,OR($J$3<>"DA",$K$3<>"NE",$L$3<>"NE",$M$3<>"NE",$N$3<>"DA")),1,0) -> 0 | K8: =IF(AND($I$3=21,$H$3=12,OR($J$3<>"DA",$K$3<>"DA",$L$3<>"DA",$M$3<>"DA",$N$3<>"DA")),1,0) -> 0
A9: 5 | B9: O.K. | C9: Razina 22 (od 2016. godine) - za kvartale te za polugodište (I.-III., I.-VI., I.-IX.) predaje obrasce PR-RAS i Obveze - za kraj godine predaje SVE obrasce: PR-RAS, BIL, P-VRIO, RAS-funkcijski i Obveze. Ova kontrola javlja pogrešku ako je popunjen obrazac koji se za upisano razdoblje i razinu ne treba popuniti, ili ako nije popunjen neki koji se treba popuniti. | E9: 0 | F9: 0 | I9: =IF(AND($I$3=22,OR($H$3=3,$H$3=9),OR($J$3<>"DA",$K$3<>"NE",$L$3<>"NE",$M$3<>"NE",$N$3<>"DA")),1,0) -> 0 | J9: =IF(AND($I$3=22,$H$3=6,OR($J$3<>"DA",$K$3<>"NE",$L$3<>"NE",$M$3<>"NE",$N$3<>"DA")),1,0) -> 0 | K9: =IF(AND($I$3=22,$H$3=12,OR($J$3<>"DA",$K$3<>"DA",$L$3<>"DA",$M$3<>"DA",$N$3<>"DA")),1,0) -> 0
A10: 6 | B10: O.K. | C10: Razina 23 (od 2016. godine) - za kvartale ne predaje ništa, nema konsolidacije, - za polugodište (I.-VI.) predaje obrasce PR-RAS i Obveze - za kraj godine predaje SVE obrasce: PR-RAS, BIL, P-VRIO, RAS-funkcijski i Obveze. Ova kontrola javlja pogrešku ako je popunjen obrazac koji se za upisano razdoblje i razinu ne treba popuniti, ili ako nije popunjen neki koji se treba popuniti. | E10: 0 | F10: 0 | I10: =IF(AND($I$3=23,OR($H$3=3,$H$3=9)),1,0) -> 0 | J10: =IF(AND($I$3=23,$H$3=6,OR($J$3<>"DA",$K$3<>"NE",$L$3<>"NE",$M$3<>"NE",$N$3<>"DA")),1,0) -> 0 | K10: =IF(AND($I$3=23,$H$3=12,OR($J$3<>"DA",$K$3<>"DA",$L$3<>"DA",$M$3<>"DA",$N$3<>"DA")),1,0) -> 0
A11: 7 | B11: O.K. | C11: Razine 31 (od 2016. godine) - za kvartale (I.-III., I.-IX.) predaje samo obrazac PR-RAS - za polugodište predaje obrasce PR-RAS i Obveze - na godišnjoj razini predaje sve obrasce: PR-RAS, BIL, RAS-funkcijski, P-VRIO i Obveze. Ova kontrola javlja pogrešku ako je popunjen obrazac koji se za upisano razdoblje i razinu ne treba popuniti, ili ako nije popunjen neki koji se treba popuniti. | E11: 0 | F11: 0 | I11: =IF(AND($I$3=31,OR($H$3=3,$H$3=9),OR($J$3<>"DA",$K$3<>"NE",$L$3<>"NE",$M$3<>"NE",$N$3<>"NE")),1,0) -> 0 | J11: =IF(AND($I$3=31,$H$3=6,OR($J$3<>"DA",$K$3<>"NE",$L$3<>"NE",$M$3<>"NE",$N$3<>"DA")),1,0) -> 0 | K11: =IF(AND($I$3=31,$H$3=12,OR($J$3<>"DA",$K$3<>"DA",$L$3<>"DA",$M$3<>"DA",$N$3<>"DA")),1,0) -> 0
A12: 8 | B12: O.K. | C12: Razina 41 (od 2016. godine) - za kvartale i polugodište (I.-III., I.-VI. i I.-IX.) predaje obrasce PR-RAS i Obveze - na godišnjoj razini predaje sve obrasce: PR-RAS, BIL, RAS-funkcijski, P-VRIO i Obveze. Ova kontrola javlja pogrešku ako je popunjen obrazac koji se za upisano razdoblje i razinu ne treba popuniti, ili ako nije popunjen neki koji se treba popuniti. | E12: 0 | F12: 0 | I12: =IF(AND($I$3=41,OR($H$3=3,$H$3=9),OR($J$3<>"DA",$K$3<>"NE",$L$3<>"NE",$M$3<>"NE",$N$3<>"DA")),1,0) -> 0 | J12: =IF(AND($I$3=41,$H$3=6,OR($J$3<>"DA",$K$3<>"NE",$L$3<>"NE",$M$3<>"NE",$N$3<>"DA")),1,0) -> 0 | K12: =IF(AND($I$3=41,$H$3=12,OR($J$3<>"DA",$K$3<>"DA",$L$3<>"DA",$M$3<>"DA",$N$3<>"DA")),1,0) -> 0
A13: 9 | B13: O.K. | C13: Razine 42 (od 2016. godine) - za kvartale (I.-III., I.-IX.) predaje samo obrazac PR-RAS - za polugodište predaje obrasce PR-RAS i Obveze - na godišnjoj razini predaje sve obrasce: PR-RAS, BIL, RAS-funkcijski, P-VRIO i Obveze. Ova kontrola javlja pogrešku ako je popunjen obrazac koji se za upisano razdoblje i razinu ne treba popuniti, ili ako nije popunjen neki koji se treba popuniti. | E13: 0 | F13: 0 | I13: =IF(AND($I$3=42,OR($H$3=3,$H$3=9),OR($J$3<>"DA",$K$3<>"NE",$L$3<>"NE",$M$3<>"NE",$N$3<>"NE")),1,0) -> 0 | J13: =IF(AND($I$3=42,$H$3=6,OR($J$3<>"DA",$K$3<>"NE",$L$3<>"NE",$M$3<>"NE",$N$3<>"DA")),1,0) -> 0 | K13: =IF(AND($I$3=42,$H$3=12,OR($J$3<>"DA",$K$3<>"DA",$L$3<>"DA",$M$3<>"DA",$N$3<>"DA")),1,0) -> 0
A14: Kontrole između dva različita obrasca | E14: =SUM(E15:E19) -> 0 | F14: =SUM(F15:F19) -> 0
A15: 1 | B15: =IF(E15=1,"Pogreška",IF(F15=1,"Provjera","O.K.")) -> O.K. | C15: Na godišnjoj razini, šifra 19 u obrascu Bilanca mora biti jednaka šifri 19 u obrascu PR-RAS. Ova kontrola je obvezujuća za razine 11, 21, 22, 31, 41, 42, a upozoravajuća za razine 12, 13 i 23. Ova kontrola vrijedi u obje kolone podataka, osim za obveznike kod kojih početak razdoblja nije ujedno i početak poslovne godine (obveznik je počeo s radom tokom godine). Za takve obveznike kontrola vrijedi samo za kolonu tekuće godine (ne i prethodne). | E15: =MAX(G15:K15) -> 0 | F15: =MAX(L15:O15) -> 0 | G15: =IF(AND(H3=12,J3="DA",M3="DA",OR(I3=11,I3=21,I3=22,I3=31,I3=41,I3=42),ABS(BILANCA!D170-'PR-RAS'!D647)>0.001),1,0) -> 0 | H15: =IF(AND(H3=12,J3="DA",M3="DA",OR(I3=11,I3=21,I3=22,I3=31,I3=41,I3=42),ABS(BILANCA!E170-'PR-RAS'!E647)>0.001),1,0) -> 0 | L15: =IF(AND(H3=12,J3="DA",M3="DA",OR(I3=12,I3=13,I3=23),ABS(BILANCA!D170-'PR-RAS'!D647)>0.001),1,0) -> 0 | M15: =IF(AND(H3=12,J3="DA",M3="DA",OR(I3=12,I3=13,I3=23),ABS(BILANCA!E170-'PR-RAS'!E647)>0.001),1,0) -> 0
A16: 2 | B16: O.K. | C16: Na godišnjoj razini, šifra 11 u obrascu Bilanca mora biti jednaka šifri 11K u obrascu PR-RAS. Ova kontrola je obvezujuća za razine 11, 21, 22, 31, 41 i 42, a upozoravajuća za razine 12, 13, 23. Ova kontrola vrijedi u obje kolone podataka. | E16: 0 | F16: =MAX(L16:O16) -> 0 | G16: =IF(AND(H3=12,J3="DA",M3="DA",OR(I3=11,I3=21,I3=22,I3=31,I3=41,I3=42),ABS(BILANCA!D69-'PR-RAS'!D652)>0.001),1,0) -> 0 | H16: =IF(AND(H3=12,J3="DA",M3="DA",OR(I3=11,I3=21,I3=22,I3=31,I3=41,I3=42),ABS(BILANCA!E69-'PR-RAS'!E652)>0.001),1,0) -> 0 | L16: =IF(AND(H3=12,J3="DA",M3="DA",OR(I3=12,I3=13,I3=23),ABS(BILANCA!D69-'PR-RAS'!D652)>0.001),1,0) -> 0 | M16: =IF(AND(H3=12,J3="DA",M3="DA",OR(I3=12,I3=13,I3=23),ABS(BILANCA!E69-'PR-RAS'!E652)>0.001),1,0) -> 0
A17: 3 | B17: O.K. | C17: Na godišnjoj razini, ako je u Bilanci šifra 9221 > 9222, tada šifra X006 u PR-RAS-u mora biti jednaka šifri 9221-9222 u Bilanci, a šifra Y006 mora biti nula. Ako je u Bilanci šifra 9222 > 9221 tada šifra Y006 u PR-RAS-u mora biti jednaka šifri 9222 - 9221 u Bilanci, a šifra X006 u PR-RAS-u mora biti nula. Ova kontrola vrijedi za obje godine osim u slučaju kada je u PR-RAS obrascu kolona prethodne godine nepopunjena. | E17: =MAX(G17:L17) -> 0 | F17: 0 | G17: =IF(AND(H3=12,J3="DA",M3="DA",BILANCA!D246>=BILANCA!D250,OR(ABS(BILANCA!D246-BILANCA!D250-'PR-RAS'!D645)>0.001,'PR-RAS'!D646<>0)),1,0) -> 0 | H17: =IF(AND(H3=12,J3="DA",M3="DA",BILANCA!E246>=BILANCA!E250,OR(ABS(BILANCA!E246-BILANCA!E250-'PR-RAS'!E645)>0.001,'PR-RAS'!E646<>0)),1,0) -> 0 | I17: =IF(AND(H3=12,J3="DA",M3="DA",BILANCA!D250>=BILANCA!D246,OR(ABS(BILANCA!D250-BILANCA!D246-'PR-RAS'!D646)>0.001,'PR-RAS'!D645<>0)),1,0) -> 0 | J17: =IF(AND(H3=12,J3="DA",M3="DA",BILANCA!E250>=BILANCA!E246,OR(ABS(BILANCA!E250-BILANCA!E246-'PR-RAS'!E646)>0.001,'PR-RAS'!E645<>0)),1,0) -> 0
A18: 4 | B18: O.K. | C18: Ako je obrazac RAS-funkcijski popunjen, tada razlika šifri Y034 i 367 (šifre Y034-367) u obrascu PR-RAS treba biti jednaka zbroju svih rashoda po vrstama, tj. šifri R1 u obrascu RAS-funkcijski. | E18: 0 | F18: 0 | G18: =IF(AND(J3="DA",K3="DA",I3<>12,I3<>23,ABS('PR-RAS'!D413-'PR-RAS'!D240-'RAS-funkcijski'!D141)>0.001),1,0) -> 0 | H18: =IF(AND(J3="DA",K3="DA",I3<>12,I3<>23,ABS('PR-RAS'!E413-'PR-RAS'!E240-'RAS-funkcijski'!E141)>0.001),1,0) -> 0
A19: 5 | B19: =IF(E19=1,"Pogreška",IF(F19=1,"Provjera","O.K.")) -> O.K. | C19: Na godišnjoj razini, šifra V006 u obrascu Obveze mora biti jednaka razlici šifri 2 i 29 (šifre 2-29) u obrascu Bilanca. | E19: =MAX(H19:L19) -> 0 | F19: 0 | H19: =IF(AND(H3=12,ABS(BILANCA!E176-BILANCA!E234-OBVEZE!D42)>0.001),1,0) -> 0
A20: Kontrole na obrascu PR-RAS | E20: =SUM(E21:E276) -> 0 | F20: =SUM(F21:F276) -> 2
A21: 1 | B21: =IF(E21=1,"Pogreška",IF(F21=1,"Provjera","O.K.")) -> O.K. | C21: Ako je u nekom stupcu na šiframa Z006 do Z009 (broj zaposlenih) podatak veći od nule, tada mora postojati podatak na šifri 31 (rashodi za zaposlene) veći od nule. Ako su na šifri 31 iskazani rashodi za zaposlene mora postojati i podatak o broju zaposlenih. | E21: =MAX(G21:K21) -> 0 | F21: =MAX(L21:O21) -> 0 | G21: =IF(OR(AND('PR-RAS'!D152=0,MAX('PR-RAS'!D653:D656)>0),AND('PR-RAS'!E152=0,MAX('PR-RAS'!E653:E656)>0)),1,0) -> 0 | H21: =IF(OR(AND('PR-RAS'!D152<>0,MAX('PR-RAS'!D653:D656)=0),AND('PR-RAS'!E152<>0,MAX('PR-RAS'!E653:E656)=0)),1,0) -> 0
A22: 2 | B22: =IF(E22=1,"Pogreška",IF(F22=1,"Provjera","O.K.")) -> O.K. | C22: Ako je u nekom stupcu na šifri Z006 broj veći od nule, tada i na šifri Z008 mora biti broj veći od nule i obrnuto. | E22: 0 | F22: =MAX(L22:O22) -> 0 | G22: =IF(OR(AND('PR-RAS'!D653=0,'PR-RAS'!D655<>0),AND('PR-RAS'!D653<>0,'PR-RAS'!D655=0)),1,0) -> 0 | H22: =IF(OR(AND('PR-RAS'!E653=0,'PR-RAS'!E655<>0),AND('PR-RAS'!E653<>0,'PR-RAS'!E655=0)),1,0) -> 0
A23: 3 | B23: O.K. | C23: Ako je u nekom stupcu na šifri Z007 broj veći od nule, tada i na šifri Z009 mora biti broj veći od nule i obrnuto. | E23: 0 | F23: 0 | G23: =IF(OR(AND('PR-RAS'!D654=0,'PR-RAS'!D656<>0),AND('PR-RAS'!D654<>0,'PR-RAS'!D656=0)),1,0) -> 0 | H23: =IF(OR(AND('PR-RAS'!E654=0,'PR-RAS'!E656<>0),AND('PR-RAS'!E654<>0,'PR-RAS'!E656=0)),1,0) -> 0
A24: 4 | B24: O.K. | C24: Šifra 61315 je samo dio šifre 6131 i mora joj biti manja ili jednaka u oba stupca podataka. | E24: 0 | F24: 0 | G24: =IF(ROUND('PR-RAS'!D658,2)>ROUND('PR-RAS'!D24,2),1,0) -> 0 | H24: =IF(ROUND('PR-RAS'!E658,2)>ROUND('PR-RAS'!E24,2),1,0) -> 0
A25: 5 | B25: O.K. | C25: Zbroj šifri: 61451+61453 je samo dio šifre 6145 i mora joj biti manji ili jednak u oba stupca podataka. | E25: 0 | F25: 0 | G25: =IF(ROUND('PR-RAS'!D659+'PR-RAS'!D660,2)>ROUND('PR-RAS'!D33,2),1,0) -> 0 | H25: =IF(ROUND('PR-RAS'!E659+'PR-RAS'!E660,2)>ROUND('PR-RAS'!E33,2),1,0) -> 0
A26: 6 | B26: O.K. | C26: Šifra 6331 mora biti jednaka zbroju šifri: 63311 do 63314 u oba stupca podataka. | E26: 0 | F26: 0 | G26: =IF(ABS('PR-RAS'!D60-SUM('PR-RAS'!D661:D664))>0.001,1,0) -> 0 | H26: =IF(ABS('PR-RAS'!E60-SUM('PR-RAS'!E661:E664))>0.001,1,0) -> 0
A27: 7 | B27: O.K. | C27: Šifra 6332 mora biti jednaka zbroju šifri: 63321 do 63324 u oba stupca podataka. | E27: 0 | F27: 0 | G27: =IF(ABS('PR-RAS'!D61-SUM('PR-RAS'!D665:'PR-RAS'!D668))>0.001,1,0) -> 0 | H27: =IF(ABS('PR-RAS'!E61-SUM('PR-RAS'!E665:'PR-RAS'!E668))>0.001,1,0) -> 0
A28: 8 | B28: O.K. | C28: Šifra 6341 mora biti jednaka zbroju šifri: 63414 do 63416 u oba stupca podataka. | E28: 0 | F28: 0 | G28: =IF(ABS('PR-RAS'!D63-SUM('PR-RAS'!D669:D671))>0.001,1,0) -> 0 | H28: =IF(ABS('PR-RAS'!E63-SUM('PR-RAS'!E669:E671))>0.001,1,0) -> 0
A29: 9 | B29: O.K. | C29: Šifra 6342 mora biti jednaka zbroju šifri: 63424 do 63426 u oba stupca podataka. | E29: 0 | F29: 0 | G29: =IF(ABS('PR-RAS'!D64-SUM('PR-RAS'!D672:D674))>0.001,1,0) -> 0 | H29: =IF(ABS('PR-RAS'!E64-SUM('PR-RAS'!E672:E674))>0.001,1,0) -> 0
A30: 10 | B30: O.K. | C30: Šifra 6361 mora biti jednaka zbroju šifri: 63612 i 63613 u oba stupca podataka. | E30: 0 | F30: 0 | G30: =IF(ROUND('PR-RAS'!D69,2)<>ROUND('PR-RAS'!D675+'PR-RAS'!D676,2),1,0) -> 0 | H30: =IF(ROUND('PR-RAS'!E69,2)<>ROUND('PR-RAS'!E675+'PR-RAS'!E676,2),1,0) -> 0
A31: 11 | B31: O.K. | C31: Šifra 6362 mora biti jednaka zbroju šifri: 63622 i 63623 u oba stupca podataka. | E31: 0 | F31: 0 | G31: =IF(ABS('PR-RAS'!D70-'PR-RAS'!D677-'PR-RAS'!D678)>0.001,1,0) -> 0 | H31: =IF(ABS('PR-RAS'!E70-'PR-RAS'!E677-'PR-RAS'!E678)>0.001,1,0) -> 0
A32: 238 | B32: O.K. | C32: Šifra 6371 mora biti jednaka zbroju šifri: 63711 do 63717 u oba stupca podataka. | E32: 0 | F32: 0 | G32: =IF(ABS('PR-RAS'!D72-SUM('PR-RAS'!D679:'PR-RAS'!D685))>0.001,1,0) -> 0 | H32: =IF(ABS('PR-RAS'!E72-SUM('PR-RAS'!E679:'PR-RAS'!E685))>0.001,1,0) -> 0
A33: 239 | B33: O.K. | C33: Šifra 6372 mora biti jednaka zbroju šifri 63721 do 63728 u oba stupca podataka. | E33: 0 | F33: 0 | G33: =IF(ABS('PR-RAS'!D73-SUM('PR-RAS'!D686:'PR-RAS'!D693))>0.001,1,0) -> 0 | H33: =IF(ABS('PR-RAS'!E73-SUM('PR-RAS'!E686:'PR-RAS'!E693))>0.001,1,0) -> 0
A34: 12 | B34: =IF(E34=1,"Pogreška",IF(F34=1,"Provjera","O.K.")) -> O.K. | C34: Šifra 6381 mora biti jednaka zbroju šifri: 63811 do 63814 u oba stupca podataka. | E34: 0 | F34: 0 | G34: =IF(ABS('PR-RAS'!D75-SUM('PR-RAS'!D694:D697))>0.001,1,0) -> 0 | H34: =IF(ABS('PR-RAS'!E75-SUM('PR-RAS'!E694:E697))>0.001,1,0) -> 0
A35: 13 | B35: O.K. | C35: Šifra 6382 mora biti jednaka zbroju šifri: 63821 do 63824 u oba stupca podataka. | E35: 0 | F35: 0 | G35: =IF(ABS('PR-RAS'!D76-SUM('PR-RAS'!D698:D701))>0.001,1,0) -> 0 | H35: =IF(ABS('PR-RAS'!E76-SUM('PR-RAS'!E698:E701))>0.001,1,0) -> 0
A36: 14 | B36: O.K. | C36: Šifra 64191 je samo dio šifre 6419 i mora joj biti manja ili jednaka u oba stupca podataka. | E36: 0 | F36: 0 | G36: =IF(ROUND('PR-RAS'!D702,2)>ROUND('PR-RAS'!D90,2),1,0) -> 0 | H36: =IF(ROUND('PR-RAS'!E702,2)>ROUND('PR-RAS'!E90,2),1,0) -> 0
A37: 15 | B37: O.K. | C37: Šifra 6437 mora biti jednaka zbroju šifri: 64371 do 64377 u oba stupca podataka. | E37: 0 | F37: 0 | G37: =IF(ABS('PR-RAS'!D105-SUM('PR-RAS'!D703:D709))>0.001,1,0) -> 0 | H37: =IF(ABS('PR-RAS'!E105-SUM('PR-RAS'!E703:E709))>0.001,1,0) -> 0
A38: 16 | B38: O.K. | C38: Zbroj šifri 65264 do 65267 je samo dio šifre 6526 i mora joj biti manji ili jednak u oba stupca podataka. | E38: 0 | F38: 0 | G38: =IF(ROUND(SUM('PR-RAS'!D710:D712),2)>ROUND('PR-RAS'!D117,2),1,0) -> 0 | H38: =IF(ROUND(SUM('PR-RAS'!E710:E712),2)>ROUND('PR-RAS'!E117,2),1,0) -> 0
A39: 240 | B39: O.K. | C39: Šifra 6634 mora biti jednaka zbroju šifri: 66341 do 66343 u oba stupca podataka. | E39: 0 | F39: 0 | G39: =IF(ABS('PR-RAS'!D132-SUM('PR-RAS'!D713:D715))>0.001,1,0) -> 0 | H39: =IF(ABS('PR-RAS'!E132-SUM('PR-RAS'!E713:E715))>0.001,1,0) -> 0
A40: 17 | B40: =IF(E40=1,"Pogreška",IF(F40=1,"Provjera","O.K.")) -> O.K. | C40: Zbroj šifri 31214 i 31215 je samo dio šifre 312 i mora joj biti manji ili jednak u oba stupca podataka. | E40: 0 | F40: 0 | G40: =IF(ROUND('PR-RAS'!D716+'PR-RAS'!D717,2)>ROUND('PR-RAS'!D158,2),1,0) -> 0 | H40: =IF(ROUND('PR-RAS'!E716+'PR-RAS'!E717,2)>ROUND('PR-RAS'!E158,2),1,0) -> 0
A41: 18 | B41: O.K. | C41: Šifra 32121 je samo dio šifre 3212 i mora joj biti manja ili jednaka u oba stupca podataka. | E41: 0 | F41: 0 | G41: =IF(ROUND('PR-RAS'!D718,2)>ROUND('PR-RAS'!D166,2),1,0) -> 0 | H41: =IF(ROUND('PR-RAS'!E718,2)>ROUND('PR-RAS'!E166,2),1,0) -> 0
A42: 19 | B42: O.K. | C42: Šifra 32351 je samo dio šifre 3235 i mora joj biti manja ili jednaka u oba stupca podataka. | E42: 0 | F42: 0 | G42: =IF(ROUND('PR-RAS'!D719,2)>ROUND('PR-RAS'!D182,2),1,0) -> 0 | H42: =IF(ROUND('PR-RAS'!E719,2)>ROUND('PR-RAS'!E182,2),1,0) -> 0
A43: 20 | B43: O.K. | C43: Šifra 32361 je samo dio šifre 3236 i mora joj biti manja ili jednaka u oba stupca podataka. | E43: 0 | F43: 0 | G43: =IF(ROUND('PR-RAS'!D720,2)>ROUND('PR-RAS'!D183,2),1,0) -> 0 | H43: =IF(ROUND('PR-RAS'!E720,2)>ROUND('PR-RAS'!E183,2),1,0) -> 0
A44: 21 | B44: O.K. | C44: Zbroj šifri 32371 do 32377 je samo dio šifre 3237 i mora joj biti manji ili jednak u oba stupca podataka. | E44: 0 | F44: 0 | G44: =IF(ROUND(SUM('PR-RAS'!D721:D723),2)>ROUND('PR-RAS'!D184,2),1,0) -> 0 | H44: =IF(ROUND(SUM('PR-RAS'!E721:E723),2)>ROUND('PR-RAS'!E184,2),1,0) -> 0
A45: 22 | B45: O.K. | C45: Šifra 32398 je samo dio šifre 3239 i mora joj biti manja ili jednaka u oba stupca podataka. | E45: 0 | F45: 0 | G45: =IF(ROUND('PR-RAS'!D724,2)>ROUND('PR-RAS'!D186,2),1,0) -> 0 | H45: =IF(ROUND('PR-RAS'!E724,2)>ROUND('PR-RAS'!E186,2),1,0) -> 0
A46: 23 | B46: O.K. | C46: Šifra 32911 je samo dio šifre 3291 i mora joj biti manja ili jednaka u oba stupca podataka. | E46: 0 | F46: 0 | G46: =IF(ROUND('PR-RAS'!D725,2)>ROUND('PR-RAS'!D189,2),1,0) -> 0 | H46: =IF(ROUND('PR-RAS'!E725,2)>ROUND('PR-RAS'!E189,2),1,0) -> 0
A47: 24 | B47: O.K. | C47: Šifra 32923 je samo dio šifre 3292 i mora joj biti manja ili jednaka u oba stupca podataka. | E47: 0 | F47: 0 | G47: =IF(ROUND('PR-RAS'!D726,2)>ROUND('PR-RAS'!D190,2),1,0) -> 0 | H47: =IF(ROUND('PR-RAS'!E726,2)>ROUND('PR-RAS'!E190,2),1,0) -> 0
A48: 25 | B48: O.K. | C48: Šifra 3411 mora biti jednaka zbroju šifri: 34111+34112 u oba stupca podataka. | E48: 0 | F48: 0 | G48: =IF(ABS('PR-RAS'!D727+'PR-RAS'!D728-'PR-RAS'!D198)>0.001,1,0) -> 0 | H48: =IF(ABS('PR-RAS'!E727+'PR-RAS'!E728-'PR-RAS'!E198)>0.001,1,0) -> 0
A49: 26 | B49: O.K. | C49: Šifra 3412 mora biti jednaka zbroju šifri: 34121+34122 u oba stupca podataka. | E49: 0 | F49: 0 | G49: =IF(ABS('PR-RAS'!D729+'PR-RAS'!D730-'PR-RAS'!D199)>0.001,1,0) -> 0 | H49: =IF(ABS('PR-RAS'!E729+'PR-RAS'!E730-'PR-RAS'!E199)>0.001,1,0) -> 0
A50: 27 | B50: O.K. | C50: Šifra 3413 mora biti jednaka zbroju šifri: 34131+34132 u oba stupca podataka. | E50: 0 | F50: 0 | G50: =IF(ABS('PR-RAS'!D731+'PR-RAS'!D732-'PR-RAS'!D200)>0.001,1,0) -> 0 | H50: =IF(ABS('PR-RAS'!E731+'PR-RAS'!E732-'PR-RAS'!E200)>0.001,1,0) -> 0
A51: 28 | B51: O.K. | C51: Šifra 3419 mora biti jednaka zbroju šifri: 34191+34192 u oba stupca podataka. | E51: 0 | F51: 0 | G51: =IF(ABS('PR-RAS'!D733+'PR-RAS'!D734-'PR-RAS'!D201)>0.001,1,0) -> 0 | H51: =IF(ABS('PR-RAS'!E733+'PR-RAS'!E734-'PR-RAS'!E201)>0.001,1,0) -> 0
A52: 29 | B52: O.K. | C52: Šifra 3421 mora biti jednaka zbroju šifri: 34213 do 34216 u oba stupca podataka. | E52: 0 | F52: 0 | G52: =IF(ABS('PR-RAS'!D203-SUM('PR-RAS'!D735:D738))>0.001,1,0) -> 0 | H52: =IF(ABS('PR-RAS'!E203-SUM('PR-RAS'!E735:E738))>0.001,1,0) -> 0
A53: 30 | B53: O.K. | C53: Šifra 3422 mora biti jednaka zbroju šifri: 34222 do 34224 u oba stupca podataka. | E53: 0 | F53: 0 | G53: =IF(ABS('PR-RAS'!D204-SUM('PR-RAS'!D739:D741))>0.001,1,0) -> 0 | H53: =IF(ABS('PR-RAS'!E204-SUM('PR-RAS'!E739:E741))>0.001,1,0) -> 0
A54: 31 | B54: O.K. | C54: Šifra 3423 mora biti jednaka zbroju šifri: 34233 do 34238 u oba stupca podataka. | E54: 0 | F54: 0 | G54: =IF(ABS('PR-RAS'!D205-SUM('PR-RAS'!D742:D747))>0.001,1,0) -> 0 | H54: =IF(ABS('PR-RAS'!E205-SUM('PR-RAS'!E742:E747))>0.001,1,0) -> 0
A55: 32 | B55: O.K. | C55: Zbroj šifri 34273 do 34275 je samo dio šifre 3427 i mora joj biti manji ili jednak u oba stupca podataka. | E55: 0 | F55: 0 | G55: =IF(ROUND(SUM('PR-RAS'!D748:D750),2)>ROUND('PR-RAS'!D208,2),1,0) -> 0 | H55: =IF(ROUND(SUM('PR-RAS'!E748:E750),2)>ROUND('PR-RAS'!E208,2),1,0) -> 0
A56: 33 | B56: O.K. | C56: Šifra 3428 mora biti jednaka zbroju šifri: 34281 do 34287 u oba stupca podataka. | E56: 0 | F56: 0 | G56: =IF(ABS('PR-RAS'!D209-SUM('PR-RAS'!D751:D757))>0.001,1,0) -> 0 | H56: =IF(ABS('PR-RAS'!E209-SUM('PR-RAS'!E751:E757))>0.001,1,0) -> 0
A57: 34 | B57: O.K. | C57: Šifra 34341 je samo dio šifre 3434 i mora joj biti manja ili jednaka u oba stupca podataka. | E57: 0 | F57: 0 | G57: =IF(ROUND('PR-RAS'!D758,2)>ROUND('PR-RAS'!D214,2),1,0) -> 0 | H57: =IF(ROUND('PR-RAS'!E758,2)>ROUND('PR-RAS'!E214,2),1,0) -> 0
A58: 35 | B58: O.K. | C58: Šifra 3523 mora biti jednaka zbroju šifri: 35231+35232 u oba stupca podataka. | E58: 0 | F58: 0 | G58: =IF(ABS('PR-RAS'!D222-'PR-RAS'!D759-'PR-RAS'!D760)>0.001,1,0) -> 0 | H58: =IF(ABS('PR-RAS'!E222-'PR-RAS'!E759-'PR-RAS'!E760)>0.001,1,0) -> 0
A59: 36 | B59: O.K. | C59: Šifra 3631 mora biti jednaka zbroju šifri: 36313 do 36319 u oba stupca podataka. | E59: 0 | F59: 0 | G59: =IF(ABS('PR-RAS'!D232-SUM('PR-RAS'!D761:D767))>0.001,1,0) -> 0 | H59: =IF(ABS('PR-RAS'!E232-SUM('PR-RAS'!E761:E767))>0.001,1,0) -> 0
A60: 37 | B60: O.K. | C60: Šifra 3632 mora biti jednaka zbroju šifri: 36323 do 36329 u oba stupca podataka. | E60: 0 | F60: 0 | G60: =IF(ABS('PR-RAS'!D233-SUM('PR-RAS'!D768:D774))>0.001,1,0) -> 0 | H60: =IF(ABS('PR-RAS'!E233-SUM('PR-RAS'!E768:E774))>0.001,1,0) -> 0
A61: 241 | B61: O.K. | C61: Šifra 3635 mora biti jednaka zbroju šifri: 36351 do 36356 u oba stupca podataka. | E61: 0 | F61: 0 | G61: =IF(ABS('PR-RAS'!D234-SUM('PR-RAS'!D775:D780))>0.001,1,0) -> 0 | H61: =IF(ABS('PR-RAS'!E234-SUM('PR-RAS'!E775:E780))>0.001,1,0) -> 0
A62: 242 | B62: O.K. | C62: Šifra 3636 mora biti jednaka zbroju šifri: 36361 do 36367 u oba stupca podataka. | E62: 0 | F62: 0 | G62: =IF(ABS('PR-RAS'!D235-SUM('PR-RAS'!D781:D787))>0.001,1,0) -> 0 | H62: =IF(ABS('PR-RAS'!E235-SUM('PR-RAS'!E781:E787))>0.001,1,0) -> 0
A63: 243 | B63: O.K. | C63: Šifra 3663 mora biti jednaka zbroju šifri: 36631+36632 u oba stupca podataka. | E63: 0 | F63: 0 | G63: =IF(ABS('PR-RAS'!D239-SUM('PR-RAS'!D788:D789))>0.001,1,0) -> 0 | H63: =IF(ABS('PR-RAS'!E239-SUM('PR-RAS'!E788:E789))>0.001,1,0) -> 0
A64: 38 | B64: O.K. | C64: Šifra 3681 mora biti jednaka zbroju šifri: 36811 do 36819 u oba stupca podataka. | E64: 0 | F64: 0 | G64: =IF(ABS('PR-RAS'!D245-SUM('PR-RAS'!D790:D798))>0.001,1,0) -> 0 | H64: =IF(ABS('PR-RAS'!E245-SUM('PR-RAS'!E790:E798))>0.001,1,0) -> 0
A65: 39 | B65: O.K. | C65: Šifra 3682 mora biti jednaka zbroju šifri: 36821 do 36829 u oba stupca podataka. | E65: 0 | F65: 0 | G65: =IF(ABS('PR-RAS'!D246-SUM('PR-RAS'!D799:D807))>0.001,1,0) -> 0 | H65: =IF(ABS('PR-RAS'!E246-SUM('PR-RAS'!E799:E807))>0.001,1,0) -> 0
A66: 40 | B66: O.K. | C66: Šifra 3713 mora biti jednaka zbroju šifri: 37131 do 37139 u oba stupca podataka. | E66: 0 | F66: 0 | G66: =IF(ABS('PR-RAS'!D256-SUM('PR-RAS'!D808:D810))>0.001,1,0) -> 0 | H66: =IF(ABS('PR-RAS'!E256-SUM('PR-RAS'!E808:E810))>0.001,1,0) -> 0
A67: 41 | B67: O.K. | C67: Šifra 3714 mora biti jednaka zbroju šifri: 37141 do 37149 u oba stupca podataka. | E67: 0 | F67: 0 | G67: =IF(ABS('PR-RAS'!D257-SUM('PR-RAS'!D811:D814))>0.001,1,0) -> 0 | H67: =IF(ABS('PR-RAS'!E257-SUM('PR-RAS'!E811:E814))>0.001,1,0) -> 0
A68: 42 | B68: O.K. | C68: Šifra 3721 mora biti jednaka zbroju šifri: 37211 do 37219 u oba stupca podataka. | E68: 0 | F68: 0 | G68: =IF(ABS('PR-RAS'!D260-SUM('PR-RAS'!D815:D823))>0.001,1,0) -> 0 | H68: =IF(ABS('PR-RAS'!E260-SUM('PR-RAS'!E815:E823))>0.001,1,0) -> 0
A69: 43 | B69: O.K. | C69: Šifra 3722 mora biti jednaka zbroju šifri: 37221 do 37229 u oba stupca podataka. | E69: 0 | F69: 0 | G69: =IF(ABS('PR-RAS'!D261-SUM('PR-RAS'!D824:D828))>0.001,1,0) -> 0 | H69: =IF(ABS('PR-RAS'!E261-SUM('PR-RAS'!E824:E828))>0.001,1,0) -> 0
A70: 44 | B70: O.K. | C70: Šifra 38117 je samo dio šifre 3811 i mora joj biti manja ili jednaka u oba stupca podataka. | E70: 0 | F70: 0 | G70: =IF(ROUND('PR-RAS'!D829,2)>ROUND('PR-RAS'!D265,2),1,0) -> 0 | H70: =IF(ROUND('PR-RAS'!E829,2)>ROUND('PR-RAS'!E265,2),1,0) -> 0
A71: 45 | B71: O.K. | C71: Šifra 3861 mora biti jednaka zbroju šifri: 38612 do 38615 u oba stupca podataka. | E71: 0 | F71: 0 | G71: =IF(ABS('PR-RAS'!D280-SUM('PR-RAS'!D830:D833))>0.001,1,0) -> 0 | H71: =IF(ABS('PR-RAS'!E280-SUM('PR-RAS'!E830:E833))>0.001,1,0) -> 0
A72: 46 | B72: O.K. | C72: Šifra 3862 mora biti jednaka zbroju šifri: 38622 do 38626 u oba stupca podataka. | E72: 0 | F72: 0 | G72: =IF(ABS('PR-RAS'!D281-SUM('PR-RAS'!D834:D838))>0.001,1,0) -> 0 | H72: =IF(ABS('PR-RAS'!E281-SUM('PR-RAS'!E834:E838))>0.001,1,0) -> 0
A73: 47 | B73: O.K. | C73: Šifra 3863 mora biti jednaka zbroju šifri: 38631+38632 u oba stupca podataka. | E73: 0 | F73: 0 | G73: =IF(ABS('PR-RAS'!D282-SUM('PR-RAS'!D839:D840))>0.001,1,0) -> 0 | H73: =IF(ABS('PR-RAS'!E282-SUM('PR-RAS'!E839:E840))>0.001,1,0) -> 0
A74: 48 | B74: O.K. | C74: Šifra 3864 mora biti jednaka zbroju šifri: 38641+38642 u oba stupca podataka. | E74: 0 | F74: 0 | G74: =IF(ABS('PR-RAS'!D283-SUM('PR-RAS'!D841:D842))>0.001,1,0) -> 0 | H74: =IF(ABS('PR-RAS'!E283-SUM('PR-RAS'!E841:E842))>0.001,1,0) -> 0
A75: 244 | B75: O.K. | C75: Šifra 3865 mora biti jednaka zbroju šifri: 38651 do 38653 u oba stupca podataka. | E75: 0 | F75: 0 | G75: =IF(ABS('PR-RAS'!D284-SUM('PR-RAS'!D843:D845))>0.001,1,0) -> 0 | H75: =IF(ABS('PR-RAS'!E284-SUM('PR-RAS'!E843:E845))>0.001,1,0) -> 0
A76: 49 | B76: O.K. | C76: Šifra 81212 je samo dio šifre 8121 i mora joj biti manja ili jednaka u oba stupca podataka. | E76: 0 | F76: 0 | G76: =IF(ROUND('PR-RAS'!D846,2)>ROUND('PR-RAS'!D428,2),1,0) -> 0 | H76: =IF(ROUND('PR-RAS'!E846,2)>ROUND('PR-RAS'!E428,2),1,0) -> 0
A77: 50 | B77: O.K. | C77: Šifra 81322 je samo dio šifre 8132 i mora joj biti manja ili jednaka u oba stupca podataka. | E77: 0 | F77: 0 | G77: =IF(ROUND('PR-RAS'!D847,2)>ROUND('PR-RAS'!D431,2),1,0) -> 0 | H77: =IF(ROUND('PR-RAS'!E847,2)>ROUND('PR-RAS'!E431,2),1,0) -> 0
A78: 51 | B78: O.K. | C78: Šifra 81332 je samo dio šifre 8133 i mora joj biti manja ili jednaka u oba stupca podataka. | E78: 0 | F78: 0 | G78: =IF(ROUND('PR-RAS'!D848,2)>ROUND('PR-RAS'!D432,2),1,0) -> 0 | H78: =IF(ROUND('PR-RAS'!E848,2)>ROUND('PR-RAS'!E432,2),1,0) -> 0
A79: 52 | B79: O.K. | C79: Šifra 81342 je samo dio šifre 8134 i mora joj biti manja ili jednaka u oba stupca podataka. | E79: 0 | F79: 0 | G79: =IF(ROUND('PR-RAS'!D849,2)>ROUND('PR-RAS'!D433,2),1,0) -> 0 | H79: =IF(ROUND('PR-RAS'!E849,2)>ROUND('PR-RAS'!E433,2),1,0) -> 0
A80: 53 | B80: O.K. | C80: Šifra 814 mora biti jednaka zbroju šifri: 81411+81412 u oba stupca podataka. | E80: 0 | F80: 0 | G80: =IF(ABS('PR-RAS'!D434-SUM('PR-RAS'!D850:D851))>0.001,1,0) -> 0 | H80: =IF(ABS('PR-RAS'!E434-SUM('PR-RAS'!E850:E851))>0.001,1,0) -> 0
A81: 54 | B81: O.K. | C81: Šifra 81532 je samo dio šifre 8153 i mora joj biti manja ili jednaka u oba stupca podataka. | E81: 0 | F81: 0 | G81: =IF(ROUND('PR-RAS'!D852,2)>ROUND('PR-RAS'!D436,2),1,0) -> 0 | H81: =IF(ROUND('PR-RAS'!E852,2)>ROUND('PR-RAS'!E436,2),1,0) -> 0
A82: 55 | B82: O.K. | C82: Šifra 81542 je samo dio šifre 8154 i mora joj biti manja ili jednaka u oba stupca podataka. | E82: 0 | F82: 0 | G82: =IF(ROUND('PR-RAS'!D853,2)>ROUND('PR-RAS'!D437,2),1,0) -> 0 | H82: =IF(ROUND('PR-RAS'!E853,2)>ROUND('PR-RAS'!E437,2),1,0) -> 0
A83: 56 | B83: O.K. | C83: Šifra 81552 je samo dio šifre 8155 i mora joj biti manja ili jednaka u oba stupca podataka. | E83: 0 | F83: 0 | G83: =IF(ROUND('PR-RAS'!D854,2)>ROUND('PR-RAS'!D438,2),1,0) -> 0 | H83: =IF(ROUND('PR-RAS'!E854,2)>ROUND('PR-RAS'!E438,2),1,0) -> 0
A84: 57 | B84: O.K. | C84: Šifra 8163 mora biti jednaka zbroju šifri: 81631+81632 u oba stupca podataka. | E84: 0 | F84: 0 | G84: =IF(ABS('PR-RAS'!D443-SUM('PR-RAS'!D855:D856))>0.001,1,0) -> 0 | H84: =IF(ABS('PR-RAS'!E443-SUM('PR-RAS'!E855:E856))>0.001,1,0) -> 0
A85: 58 | B85: O.K. | C85: Šifra 8164 mora biti jednaka zbroju šifri: 81641+81642 u oba stupca podataka. | E85: =MAX(G85:K85) -> 0 | F85: 0 | G85: =IF(ABS('PR-RAS'!D444-SUM('PR-RAS'!D857:D858))>0.001,1,0) -> 0 | H85: =IF(ABS('PR-RAS'!E444-SUM('PR-RAS'!E857:E858))>0.001,1,0) -> 0
A86: 59 | B86: O.K. | C86: Šifra 8171 mora biti jednaka zbroju šifri: 81711+81712 u oba stupca podataka. | E86: 0 | F86: =MAX(L86:O86) -> 0 | G86: =IF(ABS('PR-RAS'!D448-SUM('PR-RAS'!D859:D860))>0.001,1,0) -> 0 | H86: =IF(ABS('PR-RAS'!E448-SUM('PR-RAS'!E859:E860))>0.001,1,0) -> 0
A87: 60 | B87: O.K. | C87: Šifra 8172 mora biti jednaka zbroju šifri: 81721+81722 u oba stupca podataka. | E87: 0 | F87: 0 | G87: =IF(ABS('PR-RAS'!D449-SUM('PR-RAS'!D861:D862))>0.001,1,0) -> 0 | H87: =IF(ABS('PR-RAS'!E449-SUM('PR-RAS'!E861:E862))>0.001,1,0) -> 0
A88: 61 | B88: O.K. | C88: Šifra 8173 mora biti jednaka zbroju šifri: 81731+81732 u oba stupca podataka. | E88: 0 | F88: 0 | G88: =IF(ABS('PR-RAS'!D450-SUM('PR-RAS'!D863:D864))>0.001,1,0) -> 0 | H88: =IF(ABS('PR-RAS'!E450-SUM('PR-RAS'!E863:E864))>0.001,1,0) -> 0
A89: 62 | B89: O.K. | C89: Šifra 8174 mora biti jednaka zbroju šifri: 81741+81742 u oba stupca podataka. | E89: 0 | F89: 0 | G89: =IF(ABS('PR-RAS'!D451-SUM('PR-RAS'!D865:D866))>0.001,1,0) -> 0 | H89: =IF(ABS('PR-RAS'!E451-SUM('PR-RAS'!E865:E866))>0.001,1,0) -> 0
A90: 63 | B90: O.K. | C90: Šifra 8175 mora biti jednaka zbroju šifri: 81751+81752 u oba stupca podataka. | E90: 0 | F90: 0 | G90: =IF(ABS('PR-RAS'!D452-SUM('PR-RAS'!D867:D868))>0.001,1,0) -> 0 | H90: =IF(ABS('PR-RAS'!E452-SUM('PR-RAS'!E867:E868))>0.001,1,0) -> 0
A91: 64 | B91: O.K. | C91: Šifra 8176 mora biti jednaka zbroju šifri: 81761+81762 u oba stupca podataka. | E91: 0 | F91: 0 | G91: =IF(ABS('PR-RAS'!D453-SUM('PR-RAS'!D869:D870))>0.001,1,0) -> 0 | H91: =IF(ABS('PR-RAS'!E453-SUM('PR-RAS'!E869:E870))>0.001,1,0) -> 0
A92: 65 | B92: O.K. | C92: Šifra 8177 mora biti jednaka zbroju šifri: 81771+81772 u oba stupca podataka. | E92: 0 | F92: 0 | G92: =IF(ABS('PR-RAS'!D454-SUM('PR-RAS'!D871:D872))>0.001,1,0) -> 0 | H92: =IF(ABS('PR-RAS'!E454-SUM('PR-RAS'!E871:E872))>0.001,1,0) -> 0
A93: 66 | B93: O.K. | C93: Šifra 82412 je samo dio šifre 8241 i mora joj biti manja ili jednaka u oba stupca podataka. | E93: 0 | F93: 0 | G93: =IF(ROUND('PR-RAS'!D873,2)>ROUND('PR-RAS'!D470,2),1,0) -> 0 | H93: =IF(ROUND('PR-RAS'!E873,2)>ROUND('PR-RAS'!E470,2),1,0) -> 0
A94: 67 | B94: O.K. | C94: Šifra 84132 je samo dio šifre 8413 i mora joj biti manja ili jednaka u oba stupca podataka. | E94: 0 | F94: 0 | G94: =IF(ROUND('PR-RAS'!D874,2)>ROUND('PR-RAS'!D486,2),1,0) -> 0 | H94: =IF(ROUND('PR-RAS'!E874,2)>ROUND('PR-RAS'!E486,2),1,0) -> 0
A95: 68 | B95: =IF(E95=1,"Pogreška",IF(F95=1,"Provjera","O.K.")) -> O.K. | C95: Šifra 84142 je samo dio šifre 8414 i mora joj biti manja ili jednaka u oba stupca podataka. | E95: 0 | F95: 0 | G95: =IF(ROUND('PR-RAS'!D875,2)>ROUND('PR-RAS'!D487,2),1,0) -> 0 | H95: =IF(ROUND('PR-RAS'!E875,2)>ROUND('PR-RAS'!E487,2),1,0) -> 0
A96: 69 | B96: O.K. | C96: Šifra 84152 je samo dio šifre 8415 i mora joj biti manja ili jednaka u oba stupca podataka. | E96: 0 | F96: 0 | G96: =IF(ROUND('PR-RAS'!D876,2)>ROUND('PR-RAS'!D488,2),1,0) -> 0 | H96: =IF(ROUND('PR-RAS'!E876,2)>ROUND('PR-RAS'!E488,2),1,0) -> 0
A97: 70 | B97: O.K. | C97: Šifra 84162 je samo dio šifre 8416 i mora joj biti manja ili jednaka u oba stupca podataka. | E97: 0 | F97: 0 | G97: =IF(ROUND('PR-RAS'!D877,2)>ROUND('PR-RAS'!D489,2),1,0) -> 0 | H97: =IF(ROUND('PR-RAS'!E877,2)>ROUND('PR-RAS'!E489,2),1,0) -> 0
A98: 71 | B98: O.K. | C98: Zbroj šifri: 84221 do 84223 je samo dio šifre 8422 i mora joj biti manji ili jednak u oba stupca podataka. | E98: 0 | F98: 0 | G98: =IF(ROUND(SUM('PR-RAS'!D878:D880),2)>ROUND('PR-RAS'!D491,2),1,0) -> 0 | H98: =IF(ROUND(SUM('PR-RAS'!E878:E880),2)>ROUND('PR-RAS'!E491,2),1,0) -> 0
A99: 72 | B99: O.K. | C99: Šifra 84232 je samo dio šifre 8423 i mora joj biti manja ili jednaka u oba stupca podataka. | E99: 0 | F99: 0 | G99: =IF(ROUND('PR-RAS'!D881,2)>ROUND('PR-RAS'!D492,2),1,0) -> 0 | H99: =IF(ROUND('PR-RAS'!E881,2)>ROUND('PR-RAS'!E492,2),1,0) -> 0
A100: 73 | B100: O.K. | C100: Zbroj šifri: 84242+84243 je samo dio šifre 8424 i mora joj biti manji ili jednak u oba stupca podataka. | E100: 0 | F100: 0 | G100: =IF(ROUND(SUM('PR-RAS'!D882:D883),2)>ROUND('PR-RAS'!D493,2),1,0) -> 0 | H100: =IF(ROUND(SUM('PR-RAS'!E882:E883),2)>ROUND('PR-RAS'!E493,2),1,0) -> 0
A101: 74 | B101: O.K. | C101: Šifra 84312 je samo dio šifre 843 i mora joj biti manja ili jednaka u oba stupca podataka. | E101: 0 | F101: 0 | G101: =IF(ROUND('PR-RAS'!D884,2)>ROUND('PR-RAS'!D494,2),1,0) -> 0 | H101: =IF(ROUND('PR-RAS'!E884,2)>ROUND('PR-RAS'!E494,2),1,0) -> 0
A102: 75 | B102: O.K. | C102: Zbroj šifri: 84431 do 84433 je samo dio šifre 8443 i mora joj biti manji ili jednak u oba stupca podataka. | E102: 0 | F102: 0 | G102: =IF(ROUND(SUM('PR-RAS'!D885:D887),2)>ROUND('PR-RAS'!D496,2),1,0) -> 0 | H102: =IF(ROUND(SUM('PR-RAS'!E885:E887),2)>ROUND('PR-RAS'!E496,2),1,0) -> 0
A103: 76 | B103: O.K. | C103: Šifra 84442 je samo dio šifre 8444 i mora joj biti manja ili jednaka u oba stupca podataka. | E103: 0 | F103: 0 | G103: =IF(ROUND('PR-RAS'!D888,2)>ROUND('PR-RAS'!D497,2),1,0) -> 0 | H103: =IF(ROUND('PR-RAS'!E888,2)>ROUND('PR-RAS'!E497,2),1,0) -> 0
A104: 77 | B104: O.K. | C104: Zbroj šifri: 84452+84453 je samo dio šifre 8445 i mora joj biti manji ili jednak u oba stupca podataka. | E104: 0 | F104: 0 | G104: =IF(ROUND(SUM('PR-RAS'!D889:D890),2)>ROUND('PR-RAS'!D498,2),1,0) -> 0 | H104: =IF(ROUND(SUM('PR-RAS'!E889:E890),2)>ROUND('PR-RAS'!E498,2),1,0) -> 0
A105: 78 | B105: O.K. | C105: Zbroj šifri: 84461 do 84463 je samo dio šifre 8446 i mora joj biti manji ili jednak u oba stupca podataka. | E105: 0 | F105: 0 | G105: =IF(ROUND(SUM('PR-RAS'!D891:D893),2)>ROUND('PR-RAS'!D499,2),1,0) -> 0 | H105: =IF(ROUND(SUM('PR-RAS'!E891:E893),2)>ROUND('PR-RAS'!E499,2),1,0) -> 0
A106: 79 | B106: O.K. | C106: Šifra 84472 je samo dio šifre 8447 i mora joj biti manja ili jednaka u oba stupca podataka. | E106: 0 | F106: 0 | G106: =IF(ROUND('PR-RAS'!D894,2)>ROUND('PR-RAS'!D500,2),1,0) -> 0 | H106: =IF(ROUND('PR-RAS'!E894,2)>ROUND('PR-RAS'!E500,2),1,0) -> 0
A107: 80 | B107: O.K. | C107: Zbroj šifri: 84482+84483 je samo dio šifre 8448 i mora joj biti manji ili jednak u oba stupca podataka. | E107: 0 | F107: 0 | G107: =IF(ROUND(SUM('PR-RAS'!D895:D896),2)>ROUND('PR-RAS'!D501,2),1,0) -> 0 | H107: =IF(ROUND(SUM('PR-RAS'!E895:E896),2)>ROUND('PR-RAS'!E501,2),1,0) -> 0
A108: 81 | B108: O.K. | C108: Šifra 84532 je samo dio šifre 8453 i mora joj biti manja ili jednaka u oba stupca podataka. | E108: 0 | F108: 0 | G108: =IF(ROUND('PR-RAS'!D897,2)>ROUND('PR-RAS'!D503,2),1,0) -> 0 | H108: =IF(ROUND('PR-RAS'!E897,2)>ROUND('PR-RAS'!E503,2),1,0) -> 0
A109: 82 | B109: O.K. | C109: Šifra 84542 je samo dio šifre 8454 i mora joj biti manja ili jednaka u oba stupca podataka. | E109: 0 | F109: 0 | G109: =IF(ROUND('PR-RAS'!D898,2)>ROUND('PR-RAS'!D504,2),1,0) -> 0 | H109: =IF(ROUND('PR-RAS'!E898,2)>ROUND('PR-RAS'!E504,2),1,0) -> 0
A110: 83 | B110: O.K. | C110: Šifra 84552 je samo dio šifre 8455 i mora joj biti manja ili jednaka u oba stupca podataka. | E110: 0 | F110: 0 | G110: =IF(ROUND('PR-RAS'!D899,2)>ROUND('PR-RAS'!D505,2),1,0) -> 0 | H110: =IF(ROUND('PR-RAS'!E899,2)>ROUND('PR-RAS'!E505,2),1,0) -> 0
A111: 84 | B111: O.K. | C111: Šifra 8471 mora biti jednaka zbroju šifri: 84711+84712 u oba stupca podataka. | E111: 0 | F111: 0 | G111: =IF(ABS('PR-RAS'!D508-'PR-RAS'!D900-'PR-RAS'!D901)>0.001,1,0) -> 0 | H111: =IF(ABS('PR-RAS'!E508-'PR-RAS'!E900-'PR-RAS'!E901)>0.001,1,0) -> 0
A112: 85 | B112: O.K. | C112: Šifra 8472 mora biti jednaka zbroju šifri: 84721+84722 u oba stupca podataka. | E112: 0 | F112: 0 | G112: =IF(ABS('PR-RAS'!D509-'PR-RAS'!D902-'PR-RAS'!D903)>0.001,1,0) -> 0 | H112: =IF(ABS('PR-RAS'!E509-'PR-RAS'!E902-'PR-RAS'!E903)>0.001,1,0) -> 0
A113: 86 | B113: O.K. | C113: Šifra 8473 mora biti jednaka zbroju šifri: 84731+84732 u oba stupca podataka. | E113: 0 | F113: 0 | G113: =IF(ABS('PR-RAS'!D510-'PR-RAS'!D904-'PR-RAS'!D905)>0.001,1,0) -> 0 | H113: =IF(ABS('PR-RAS'!E510-'PR-RAS'!E904-'PR-RAS'!E905)>0.001,1,0) -> 0
A114: 87 | B114: O.K. | C114: Šifra 8474 mora biti jednaka zbroju šifri: 84741+84742 u oba stupca podataka. | E114: 0 | F114: 0 | G114: =IF(ABS('PR-RAS'!D511-'PR-RAS'!D906-'PR-RAS'!D907)>0.001,1,0) -> 0 | H114: =IF(ABS('PR-RAS'!E511-'PR-RAS'!E906-'PR-RAS'!E907)>0.001,1,0) -> 0
A115: 88 | B115: O.K. | C115: Šifra 8475 mora biti jednaka zbroju šifri: 84751+84752 u oba stupca podataka. | E115: 0 | F115: 0 | G115: =IF(ABS('PR-RAS'!D512-'PR-RAS'!D908-'PR-RAS'!D909)>0.001,1,0) -> 0 | H115: =IF(ABS('PR-RAS'!E512-'PR-RAS'!E908-'PR-RAS'!E909)>0.001,1,0) -> 0
A116: 89 | B116: O.K. | C116: Šifra 8476 mora biti jednaka zbroju šifri: 84761+84762 u oba stupca podataka. | E116: 0 | F116: 0 | G116: =IF(ABS('PR-RAS'!D513-'PR-RAS'!D910-'PR-RAS'!D911)>0.001,1,0) -> 0 | H116: =IF(ABS('PR-RAS'!E513-'PR-RAS'!E910-'PR-RAS'!E911)>0.001,1,0) -> 0
A117: 90 | B117: O.K. | C117: Šifra 8477 mora biti jednaka zbroju šifri: 84771+84772 u oba stupca podataka. | E117: 0 | F117: 0 | G117: =IF(ABS('PR-RAS'!D514-'PR-RAS'!D912-'PR-RAS'!D913)>0.001,1,0) -> 0 | H117: =IF(ABS('PR-RAS'!E514-'PR-RAS'!E912-'PR-RAS'!E913)>0.001,1,0) -> 0
A118: 91 | B118: O.K. | C118: Šifra 85412 je samo dio šifre 8541 i mora joj biti manja ili jednaka u oba stupca podataka. | E118: 0 | F118: 0 | G118: =IF(ROUND('PR-RAS'!D914,2)>ROUND('PR-RAS'!D526,2),1,0) -> 0 | H118: =IF(ROUND('PR-RAS'!E914,2)>ROUND('PR-RAS'!E526,2),1,0) -> 0
A119: 92 | B119: O.K. | C119: Šifra 51212 je samo dio šifre 5121 i mora joj biti manja ili jednaka u oba stupca podataka. | E119: 0 | F119: 0 | G119: =IF(ROUND('PR-RAS'!D915,2)>ROUND('PR-RAS'!D536,2),1,0) -> 0 | H119: =IF(ROUND('PR-RAS'!E915,2)>ROUND('PR-RAS'!E536,2),1,0) -> 0
A120: 93 | B120: O.K. | C120: Šifra 51322 je samo dio šifre 5132 i mora joj biti manja ili jednaka u oba stupca podataka. | E120: 0 | F120: 0 | G120: =IF(ROUND('PR-RAS'!D916,2)>ROUND('PR-RAS'!D539,2),1,0) -> 0 | H120: =IF(ROUND('PR-RAS'!E916,2)>ROUND('PR-RAS'!E539,2),1,0) -> 0
A121: 94 | B121: O.K. | C121: Šifra 51332 je samo dio šifre 5133 i mora joj biti manja ili jednaka u oba stupca podataka. | E121: 0 | F121: 0 | G121: =IF(ROUND('PR-RAS'!D917,2)>ROUND('PR-RAS'!D540,2),1,0) -> 0 | H121: =IF(ROUND('PR-RAS'!E917,2)>ROUND('PR-RAS'!E540,2),1,0) -> 0
A122: 95 | B122: O.K. | C122: Šifra 51342 je samo dio šifre 5134 i mora joj biti manja ili jednaka u oba stupca podataka. | E122: 0 | F122: 0 | G122: =IF(ROUND('PR-RAS'!D918,2)>ROUND('PR-RAS'!D541,2),1,0) -> 0 | H122: =IF(ROUND('PR-RAS'!E918,2)>ROUND('PR-RAS'!E541,2),1,0) -> 0
A123: 96 | B123: O.K. | C123: Šifra 514 mora biti jednaka zbroju šifri: 51411+51412 u oba stupca podataka. | E123: 0 | F123: 0 | G123: =IF(ABS('PR-RAS'!D542-SUM('PR-RAS'!D919:D920))>0.001,1,0) -> 0 | H123: =IF(ABS('PR-RAS'!E542-SUM('PR-RAS'!E919:E920))>0.001,1,0) -> 0
A124: 97 | B124: O.K. | C124: Šifra 51532 je samo dio šifre 5153 i mora joj biti manja ili jednaka u oba stupca podataka. | E124: 0 | F124: 0 | G124: =IF(ROUND(SUM('PR-RAS'!D921:D921),2)>ROUND('PR-RAS'!D544,2),1,0) -> 0 | H124: =IF(ROUND(SUM('PR-RAS'!E921:E921),2)>ROUND('PR-RAS'!E544,2),1,0) -> 0
A125: 98 | B125: O.K. | C125: Šifra 51542 je samo dio šifre 5154 i mora joj biti manja ili jednaka u oba stupca podataka. | E125: 0 | F125: 0 | G125: =IF(ROUND(SUM('PR-RAS'!D922:D922),2)>ROUND('PR-RAS'!D545,2),1,0) -> 0 | H125: =IF(ROUND(SUM('PR-RAS'!E922:E922),2)>ROUND('PR-RAS'!E545,2),1,0) -> 0
A126: 99 | B126: O.K. | C126: Šifra 51552 je samo dio šifre 5155 i mora joj biti manja ili jednaka u oba stupca podataka. | E126: 0 | F126: 0 | G126: =IF(ROUND(SUM('PR-RAS'!D923:D923),2)>ROUND('PR-RAS'!D546,2),1,0) -> 0 | H126: =IF(ROUND(SUM('PR-RAS'!E923:E923),2)>ROUND('PR-RAS'!E546,2),1,0) -> 0
A127: 100 | B127: O.K. | C127: Šifra 5163 mora biti jednaka zbroju šifri: 51631+51632 u oba stupca podataka. | E127: 0 | F127: 0 | G127: =IF(ABS('PR-RAS'!D551-SUM('PR-RAS'!D924:D925))>0.001,1,0) -> 0 | H127: =IF(ABS('PR-RAS'!E551-SUM('PR-RAS'!E924:E925))>0.001,1,0) -> 0
A128: 101 | B128: O.K. | C128: Šifra 5164 mora biti jednaka zbroju šifri: 51641+51642 u oba stupca podataka. | E128: 0 | F128: 0 | G128: =IF(ABS('PR-RAS'!D552-SUM('PR-RAS'!D926:D927))>0.001,1,0) -> 0 | H128: =IF(ABS('PR-RAS'!E552-SUM('PR-RAS'!E926:E927))>0.001,1,0) -> 0
A129: 102 | B129: O.K. | C129: Šifra 5171 mora biti jednaka zbroju šifri: 51711+51712 u oba stupca podataka. | E129: 0 | F129: 0 | G129: =IF(ABS('PR-RAS'!D556-SUM('PR-RAS'!D928:D929))>0.001,1,0) -> 0 | H129: =IF(ABS('PR-RAS'!E556-SUM('PR-RAS'!E928:E929))>0.001,1,0) -> 0
A130: 103 | B130: O.K. | C130: Šifra 5172 mora biti jednaka zbroju šifri: 51721+51722 u oba stupca podataka. | E130: 0 | F130: 0 | G130: =IF(ABS('PR-RAS'!D557-SUM('PR-RAS'!D930:D931))>0.001,1,0) -> 0 | H130: =IF(ABS('PR-RAS'!E557-SUM('PR-RAS'!E930:E931))>0.001,1,0) -> 0
A131: 104 | B131: O.K. | C131: Šifra 5173 mora biti jednaka zbroju šifri: 51731+51732 u oba stupca podataka. | E131: 0 | F131: 0 | G131: =IF(ABS('PR-RAS'!D558-SUM('PR-RAS'!D932:D933))>0.001,1,0) -> 0 | H131: =IF(ABS('PR-RAS'!E558-SUM('PR-RAS'!E932:E933))>0.001,1,0) -> 0
A132: 105 | B132: O.K. | C132: Šifra 5174 mora biti jednaka zbroju šifri: 51741+51742 u oba stupca podataka. | E132: 0 | F132: 0 | G132: =IF(ABS('PR-RAS'!D559-SUM('PR-RAS'!D934:D935))>0.001,1,0) -> 0 | H132: =IF(ABS('PR-RAS'!E559-SUM('PR-RAS'!E934:E935))>0.001,1,0) -> 0
A133: 106 | B133: O.K. | C133: Šifra 5175 mora biti jednaka zbroju šifri: 51751+51752 u oba stupca podataka. | E133: 0 | F133: 0 | G133: =IF(ABS('PR-RAS'!D560-SUM('PR-RAS'!D936:D937))>0.001,1,0) -> 0 | H133: =IF(ABS('PR-RAS'!E560-SUM('PR-RAS'!E936:E937))>0.001,1,0) -> 0
A134: 107 | B134: O.K. | C134: Šifra 5176 mora biti jednaka zbroju šifri: 51761+51762 u oba stupca podataka. | E134: 0 | F134: 0 | G134: =IF(ABS('PR-RAS'!D561-SUM('PR-RAS'!D938:D939))>0.001,1,0) -> 0 | H134: =IF(ABS('PR-RAS'!E561-SUM('PR-RAS'!E938:E939))>0.001,1,0) -> 0
A135: 108 | B135: O.K. | C135: Šifra 5177 mora biti jednaka zbroju šifri: 51771+51772 u oba stupca podataka. | E135: 0 | F135: 0 | G135: =IF(ABS('PR-RAS'!D562-SUM('PR-RAS'!D940:D941))>0.001,1,0) -> 0 | H135: =IF(ABS('PR-RAS'!E562-SUM('PR-RAS'!E940:E941))>0.001,1,0) -> 0
A136: 109 | B136: O.K. | C136: Šifra 54132 je samo dio šifre 5413 i mora joj biti manja ili jednaka u oba stupca podataka. | E136: 0 | F136: 0 | G136: =IF(ROUND('PR-RAS'!D942,2)>ROUND('PR-RAS'!D595,2),1,0) -> 0 | H136: =IF(ROUND('PR-RAS'!E942,2)>ROUND('PR-RAS'!E595,2),1,0) -> 0
A137: 110 | B137: O.K. | C137: Šifra 54142 je samo dio šifre 5414 i mora joj biti manja ili jednaka u oba stupca podataka. | E137: 0 | F137: 0 | G137: =IF(ROUND('PR-RAS'!D943,2)>ROUND('PR-RAS'!D596,2),1,0) -> 0 | H137: =IF(ROUND('PR-RAS'!E943,2)>ROUND('PR-RAS'!E596,2),1,0) -> 0
A138: 111 | B138: O.K. | C138: Šifra 54152 je samo dio šifre 5415 i mora joj biti manja ili jednaka u oba stupca podataka. | E138: 0 | F138: 0 | G138: =IF(ROUND('PR-RAS'!D944,2)>ROUND('PR-RAS'!D597,2),1,0) -> 0 | H138: =IF(ROUND('PR-RAS'!E944,2)>ROUND('PR-RAS'!E597,2),1,0) -> 0
A139: 112 | B139: O.K. | C139: Šifra 54162 je samo dio šifre 5416 i mora joj biti manja ili jednaka u oba stupca podataka. | E139: 0 | F139: 0 | G139: =IF(ROUND('PR-RAS'!D945,2)>ROUND('PR-RAS'!D598,2),1,0) -> 0 | H139: =IF(ROUND('PR-RAS'!E945,2)>ROUND('PR-RAS'!E598,2),1,0) -> 0
A140: 113 | B140: O.K. | C140: Zbroj šifri: 54221 do 54223 je samo dio šifre 5422 i mora joj biti manji ili jednak u oba stupca podataka. | E140: 0 | F140: 0 | G140: =IF(ROUND(SUM('PR-RAS'!D946:D948),2)>ROUND('PR-RAS'!D600,2),1,0) -> 0 | H140: =IF(ROUND(SUM('PR-RAS'!E946:E948),2)>ROUND('PR-RAS'!E600,2),1,0) -> 0
A141: 114 | B141: O.K. | C141: Šifra 54232 je samo dio šifre 5423 i mora joj biti manja ili jednaka u oba stupca podataka. | E141: 0 | F141: 0 | G141: =IF(ROUND('PR-RAS'!D949,2)>ROUND('PR-RAS'!D601,2),1,0) -> 0 | H141: =IF(ROUND('PR-RAS'!E949,2)>ROUND('PR-RAS'!E601,2),1,0) -> 0
A142: 115 | B142: O.K. | C142: Zbroj šifri: 54242+54243 je samo dio šifre 5424 i mora joj biti manji ili jednak u oba stupca podataka. | E142: 0 | F142: 0 | G142: =IF(ROUND('PR-RAS'!D950+'PR-RAS'!D951,2)>ROUND('PR-RAS'!D602,2),1,0) -> 0 | H142: =IF(ROUND('PR-RAS'!E950+'PR-RAS'!E951,2)>ROUND('PR-RAS'!E602,2),1,0) -> 0
A143: 116 | B143: O.K. | C143: Šifra 54312 je samo dio šifre 543 i mora joj biti manja ili jednaka u oba stupca podataka. | E143: 0 | F143: 0 | G143: =IF(ROUND('PR-RAS'!D952,2)>ROUND('PR-RAS'!D603,2),1,0) -> 0 | H143: =IF(ROUND('PR-RAS'!E952,2)>ROUND('PR-RAS'!E603,2),1,0) -> 0
A144: 117 | B144: O.K. | C144: Zbroj šifri: 54431 do 54433 je samo dio šifre 5443 i mora joj biti manji ili jednak u oba stupca podataka. | E144: 0 | F144: 0 | G144: =IF(ROUND(SUM('PR-RAS'!D953:D955),2)>ROUND('PR-RAS'!D606,2),1,0) -> 0 | H144: =IF(ROUND(SUM('PR-RAS'!E953:E955),2)>ROUND('PR-RAS'!E606,2),1,0) -> 0
A145: 118 | B145: O.K. | C145: Šifra 54442 je samo dio šifre 5444 i mora joj biti manja ili jednaka u oba stupca podataka. | E145: 0 | F145: 0 | G145: =IF(ROUND('PR-RAS'!D956,2)>ROUND('PR-RAS'!D607,2),1,0) -> 0 | H145: =IF(ROUND('PR-RAS'!E956,2)>ROUND('PR-RAS'!E607,2),1,0) -> 0
A146: 119 | B146: O.K. | C146: Zbroj šifri: 54452+54453 je samo dio šifre 5445 i mora joj biti manji ili jednak u oba stupca podataka. | E146: 0 | F146: 0 | G146: =IF(ROUND(SUM('PR-RAS'!D957:D958),2)>ROUND('PR-RAS'!D608,2),1,0) -> 0 | H146: =IF(ROUND(SUM('PR-RAS'!E957:E958),2)>ROUND('PR-RAS'!E608,2),1,0) -> 0
A147: 120 | B147: O.K. | C147: Zbroj šifri: 54461 do 54463 je samo dio šifre 5446 i mora joj biti manji ili jednak u oba stupca podataka. | E147: 0 | F147: 0 | G147: =IF(ROUND(SUM('PR-RAS'!D959:D961),2)>ROUND('PR-RAS'!D609,2),1,0) -> 0 | H147: =IF(ROUND(SUM('PR-RAS'!E959:E961),2)>ROUND('PR-RAS'!E609,2),1,0) -> 0
A148: 121 | B148: O.K. | C148: Šifra 54472 je samo dio šifre 5447 i mora joj biti manja ili jednaka u oba stupca podataka. | E148: 0 | F148: 0 | G148: =IF(ROUND('PR-RAS'!D962,2)>ROUND('PR-RAS'!D610,2),1,0) -> 0 | H148: =IF(ROUND('PR-RAS'!E962,2)>ROUND('PR-RAS'!E610,2),1,0) -> 0
A149: 122 | B149: O.K. | C149: Zbroj šifri: 54482+54483 je samo dio šifre 5448 i mora joj biti manji ili jednak u oba stupca podataka. | E149: =MAX(G149:K149) -> 0 | F149: 0 | G149: =IF(ROUND(SUM('PR-RAS'!D963:D964),2)>ROUND('PR-RAS'!D611,2),1,0) -> 0 | H149: =IF(ROUND(SUM('PR-RAS'!E963:E964),2)>ROUND('PR-RAS'!E611,2),1,0) -> 0
A150: 123 | B150: O.K. | C150: Šifra 54532 je samo dio šifre 5453 i mora joj biti manja ili jednaka u oba stupca podataka. | E150: 0 | F150: =MAX(L150:O150) -> 0 | G150: =IF(ROUND('PR-RAS'!D965,2)>ROUND('PR-RAS'!D613,2),1,0) -> 0 | H150: =IF(ROUND('PR-RAS'!E965,2)>ROUND('PR-RAS'!E613,2),1,0) -> 0
A151: 124 | B151: O.K. | C151: Šifra 54542 je samo dio šifre 5454 i mora joj biti manja ili jednaka u oba stupca podataka. | E151: 0 | F151: 0 | G151: =IF(ROUND('PR-RAS'!D966,2)>ROUND('PR-RAS'!D614,2),1,0) -> 0 | H151: =IF(ROUND('PR-RAS'!E966,2)>ROUND('PR-RAS'!E614,2),1,0) -> 0
A152: 125 | B152: O.K. | C152: Šifra 54552 je samo dio šifre 5455 i mora joj biti manja ili jednaka u oba stupca podataka. | E152: 0 | F152: 0 | G152: =IF(ROUND('PR-RAS'!D967,2)>ROUND('PR-RAS'!D615,2),1,0) -> 0 | H152: =IF(ROUND('PR-RAS'!E967,2)>ROUND('PR-RAS'!E615,2),1,0) -> 0
A153: 126 | B153: O.K. | C153: Šifra 5471 mora biti jednaka zbroju šifri: 54711+54712 u oba stupca podataka. | E153: 0 | F153: 0 | G153: =IF(ABS('PR-RAS'!D618-SUM('PR-RAS'!D968:D969))>0.001,1,0) -> 0 | H153: =IF(ABS('PR-RAS'!E618-SUM('PR-RAS'!E968:E969))>0.001,1,0) -> 0
A154: 127 | B154: O.K. | C154: Šifra 5472 mora biti jednaka zbroju šifri: 54721+54722 u oba stupca podataka. | E154: 0 | F154: 0 | G154: =IF(ABS('PR-RAS'!D619-SUM('PR-RAS'!D970:D971))>0.001,1,0) -> 0 | H154: =IF(ABS('PR-RAS'!E619-SUM('PR-RAS'!E970:E971))>0.001,1,0) -> 0
A155: 128 | B155: O.K. | C155: Šifra 5473 mora biti jednaka zbroju šifri: 54731+54732 u oba stupca podataka. | E155: 0 | F155: 0 | G155: =IF(ABS('PR-RAS'!D620-SUM('PR-RAS'!D972:D973))>0.001,1,0) -> 0 | H155: =IF(ABS('PR-RAS'!E620-SUM('PR-RAS'!E972:E973))>0.001,1,0) -> 0
A156: 129 | B156: O.K. | C156: Šifra 5474 mora biti jednaka zbroju šifri: 54741+54742 u oba stupca podataka. | E156: 0 | F156: 0 | G156: =IF(ABS('PR-RAS'!D621-SUM('PR-RAS'!D974:D975))>0.001,1,0) -> 0 | H156: =IF(ABS('PR-RAS'!E621-SUM('PR-RAS'!E974:E975))>0.001,1,0) -> 0
A157: 130 | B157: O.K. | C157: Šifra 5475 mora biti jednaka zbroju šifri: 54751+54752 u oba stupca podataka. | E157: 0 | F157: 0 | G157: =IF(ABS('PR-RAS'!D622-SUM('PR-RAS'!D976:D977))>0.001,1,0) -> 0 | H157: =IF(ABS('PR-RAS'!E622-SUM('PR-RAS'!E976:E977))>0.001,1,0) -> 0
A158: 131 | B158: O.K. | C158: Šifra 5476 mora biti jednaka zbroju šifri: 54761+54762 u oba stupca podataka. | E158: 0 | F158: 0 | G158: =IF(ABS('PR-RAS'!D623-SUM('PR-RAS'!D978:D979))>0.001,1,0) -> 0 | H158: =IF(ABS('PR-RAS'!E623-SUM('PR-RAS'!E978:E979))>0.001,1,0) -> 0
A159: 132 | B159: O.K. | C159: Šifra 5477 mora biti jednaka zbroju šifri: 54771+54772 u oba stupca podataka. | E159: 0 | F159: 0 | G159: =IF(ABS('PR-RAS'!D624-SUM('PR-RAS'!D980:D981))>0.001,1,0) -> 0 | H159: =IF(ABS('PR-RAS'!E624-SUM('PR-RAS'!E980:E981))>0.001,1,0) -> 0
A160: 133 | B160: O.K. | C160: Šifra 55312 je samo dio šifre 5531 i mora joj biti manja ili jednaka u oba stupca podataka. | E160: 0 | F160: 0 | G160: =IF(ROUND('PR-RAS'!D982,2)>ROUND('PR-RAS'!D633,2),1,0) -> 0 | H160: =IF(ROUND('PR-RAS'!E982,2)>ROUND('PR-RAS'!E633,2),1,0) -> 0
A161: 135 | B161: O.K. | C161: Obveznici razine 11 ne mogu imati popunjene šifre: 611 do 6117. Iznimka od tog pravila je obveznik s RKP-om 47123. Ako ova kontrola javlja pogrešku znači da je za obrazac razine 11 unesen iznos za neku od ovih šifri. | E161: 0 | F161: 0 | G161: =IF(AND(I3=11,O3<>47123,OR(MAX('PR-RAS'!D8:E15)>0,MIN('PR-RAS'!D8:E15)<0)),1,0) -> 0
A162: 136 | B162: O.K. | C162: Obveznici razine 11 ne mogu imati popunjene šifre: 614 i 6148. Iznimka od ovog pravila su neki obveznici koji iznimno mogu. Ako ova kontrola javlja pogrešku, znači da su ove šifre popunjene ali se ne radi o obvezniku koji ih može imati popunjene. | E162: 0 | F162: 0 | G162: =IF(AND(I3=11,MAX('PR-RAS'!D29:E29,'PR-RAS'!D36:E36)>0,O3<>51,O3<>22275,O3<>44926,O3<>47439,O3<>43214,O3<>47037,O3<>721,O3<>47053,O3<>756,O3<>49075,O3<>1222,O3<>47107,O3<>26346,O3<>47096,O3<>51409,O3<>51441,O3<>47668,O3<>24086,O3<>20727,O3<>3164,O3<>3172,O3<>50395,O3<>3197,O3<>3201,O3<>3156,O3<>46614,O3<>3210,O3<>3228,O3<>3236,O3<>3244,O3<>3252,O3<>50400,O3<>3277,O3<>3285,O3<>3293,O3<>3308,O3<>3316,O3<>3324,O3<>3332,O3<>3349,O3<>3148),1,0) -> 0
A163: 137 | B163: O.K. | C163: Obveznici razine 11 ne mogu imati popunjene šifre: 6119 do 6135, 6141 do 6147, 615 do 6152, 621 do 623, 6811, 367 do 3674 i 3711. Ako je za bilo koju od ovih šifri upisan iznos, a obrazac je razine 11, kontrola javlja grešku i obrazac je neispravan. | E163: 0 | F163: 0 | G163: =IF(AND(I3=11,MAX('PR-RAS'!D16:E28,'PR-RAS'!D30:E35,'PR-RAS'!D37:E39,'PR-RAS'!D45:E49,'PR-RAS'!D141:E141,'PR-RAS'!D240:E243,'PR-RAS'!D254:E254)>0),1,0) -> 0
A164: 245 | B164: =IF(E164=1,"Pogreška",IF(F164=1,"Provjera","O.K.")) -> O.K. | C164: Obveznici razine 11 ne mogu imati popunjenu šifru 3421. Iznimka su obveznici s RKP-om 51255, 51263, 51271, 51280, 51298, 51302, 51319, 51327, 51335, 51343. | E164: 0 | F164: 0 | G164: =IF(AND(I3=11,MAX('PR-RAS'!D209:E209)>0,O3<>51255,O3<>51263,O3<>51343,O3<>51319,O3<>51298,O3<>51302,O3<>51327,O3<>51335,O3<>51280,O3<>51271),1,0) -> 0
A165: 138 | B165: O.K. | C165: Obveznici razine 11 ne mogu imati popunjenu šifru 3712 osim obveznika s RKP-om: 47107. Ako ova kontrola javlja pogrešku znači da je za obrazac razine 11 unesen iznos za šifru 3712. | E165: 0 | F165: 0 | G165: =IF(AND(I3=11,O3<>47107,MAX('PR-RAS'!D255:E255)>0),1,0) -> 0 | H165: =IF(AND(I3=11,O3<>47107,MIN('PR-RAS'!D255:E255)<0),1,0) -> 0
A166: 139 | B166: O.K. | C166: Razina 11 ne smije imati popunjene šifre: 8114 do 8116, 8122, 8156 do 8158, 8165, 8166, 8211, 8212, 8222 do 8232, 8242, 8342, 8415 do 8416, 8447 i 8448. Ako je za bilo koju od ovih šifri upisan iznos, a obrazac je razine 11, kontrola javlja grešku i obrazac je neispravan. | E166: 0 | F166: 0 | G166: =IF(AND(I3=11,MAX('PR-RAS'!D424:E426,'PR-RAS'!D429:E429,'PR-RAS'!D439:E441,'PR-RAS'!D445:E445,'PR-RAS'!D446:E446,'PR-RAS'!D461:E461,'PR-RAS'!D462:E462,'PR-RAS'!D465:E468,'PR-RAS'!D471:E471,'PR-RAS'!D483:E483,'PR-RAS'!D488:E489,'PR-RAS'!D500:E500,'PR-RAS'!D501:E501)>0),1,0) -> 0 | H166: =IF(AND(I3=11,MIN('PR-RAS'!D424:E426,'PR-RAS'!D429:E429,'PR-RAS'!D439:E441,'PR-RAS'!D445:E445,'PR-RAS'!D446:E446,'PR-RAS'!D461:E461,'PR-RAS'!D462:E462,'PR-RAS'!D465:E468,'PR-RAS'!D471:E471,'PR-RAS'!D483:E483,'PR-RAS'!D488:E489,'PR-RAS'!D500:E500,'PR-RAS'!D501:E501)<0),1,0) -> 0
A167: 246 | B167: O.K. | C167: Obveznici razine 11 ne smiju imati popunjenu šifru 8121. Iznimka su obveznici s RKP-om 174, 713, 999, 1966, 2436, 2452, 20157, 22058, 40834 i 47037. | E167: 0 | F167: 0 | G167: =IF(AND(I3=11,O3<>174,O3<>713,O3<>999,O3<>1966,O3<>2436,O3<>2452,O3<>20157,O3<>22058,O3<>40834,O3<>47037,MAX('PR-RAS'!D428:E428)>0),1,0) -> 0
A168: 247 | B168: O.K. | C168: Obveznici razine 11 ne smiju imati popunjenu šifru 8413. Iznimka su obveznici s RKP-om 1087, 1222, 6120, 47061, 47107, 51441 i 51724. | E168: 0 | F168: 0 | G168: =IF(AND(I3=11,O3<>1087,O3<>1222,O3<>6120,O3<>47061,O3<>47107,O3<>51441,O3<>51724,MAX('PR-RAS'!D486:E486)>0),1,0) -> 0
A169: 248 | B169: O.K. | C169: Obveznici razine 11 ne smiju imati popunjenu šifru 8414. Iznimka su obveznici s RKP-om 1079, 46237, 47053 i 47061. | E169: 0 | F169: 0 | G169: =IF(AND(I3=11,O3<>1079,O3<>46237,O3<>47053,O3<>47061,MAX('PR-RAS'!D487:E487)>0),1,0) -> 0
A170: 140 | B170: O.K. | C170: Obveznici razine 11 ne mogu imati popunjenu šifru 8455 i 5455 osim obveznika s RKP-om 721. Ako je za bilo koju od ovih šifri upisan iznos, a obrazac je razine 11, kontrola javlja grešku i obrazac je neispravan. | E170: 0 | F170: 0 | G170: =IF(AND(I3=11,O3<>721,OR(MAX('PR-RAS'!D505:E505,'PR-RAS'!D615:E615)>0,MIN('PR-RAS'!D505:E505,'PR-RAS'!D615:E615)<0)),1,0) -> 0
A171: 141 | B171: O.K. | C171: Razina 11 ne smije imati popunjene šifre: 8456, 8512, 8522, 8542, 511 do 5116, 5156 do 5158, 5165, 5166, 5212, 5222, 5241 i 5242. Ako je za bilo koju od ovih šifri upisan iznos, a obrazac je razine 11, kontrola javlja grešku i obrazac je neispravan. | E171: 0 | F171: 0 | G171: =IF(AND(I3=11,O3<>721,MAX('PR-RAS'!D506:E506,'PR-RAS'!D518:E518,'PR-RAS'!D521:E521,'PR-RAS'!D527:E527,'PR-RAS'!D530:E534,'PR-RAS'!D547:E549,'PR-RAS'!D553:E554,'PR-RAS'!D570:E570,'PR-RAS'!D573:E573,'PR-RAS'!D578:E579)>0),1,0) -> 0
A172: 142 | B172: O.K. | C172: Obveznici razine 11 ne mogu imati popunjenu šifru 5332 osim obveznika s RKP-om: 46237. Ako ova kontrola javlja pogrešku znači da je za obrazac razine 11 unesen iznos za šifru 5332. | E172: 0 | F172: 0 | G172: =IF(AND(I3=11,O3<>46237,OR(MAX('PR-RAS'!D589:E589)>0,MIN('PR-RAS'!D589:E589)<0)),1,0) -> 0
A173: 143 | B173: O.K. | C173: Obveznici razine 11 ne mogu imati popunjene šifre: 541 do 5416. Iznimka su obveznici s RKP-om: 174, 51255, 51263, 51271, 51280, 51298, 51302, 51319, 51327, 51335, 51343. Ako ova kontrola javlja pogrešku znači da je za obrazac razine 11 unesen iznos za jednu od ovih šifri. | E173: 0 | F173: 0 | G173: =IF(AND(I3=11,O3<>174,O3<>51255,O3<>51263,O3<>51271,O3<>51280,O3<>51298,O3<>51302,O3<>51319,O3<>51327,O3<>51335,O3<>51343,OR(MAX('PR-RAS'!D594:E598)>0,MIN('PR-RAS'!D594:E598)<0)),1,0) -> 0
A174: 144 | B174: O.K. | C174: Razina 11 ne smije imati popunjene šifre: 5342, 5447, 5448, 5454, 551, 5512, 5522, 5532, 65265, 34112, 34132, 34192. Ako je za bilo koju od ovih šifri upisan iznos, a obrazac je razine 11, kontrola javlja grešku i obrazac je neispravan. | E174: 0 | F174: 0 | G174: =IF(AND(I3=11,MAX('PR-RAS'!D592:E592,'PR-RAS'!D610:E610,'PR-RAS'!D611:E611,'PR-RAS'!D614:E614,'PR-RAS'!D626:E626,'PR-RAS'!D628:E628,'PR-RAS'!D631:E631,'PR-RAS'!D634:E634,'PR-RAS'!D711:E711,'PR-RAS'!D728:E728,'PR-RAS'!D732:E732,'PR-RAS'!D734:E734)<>0),1,0) -> 0
A175: 249 | B175: O.K. | C175: Obveznici razina 11 i 12 ne smiju imati popunjenu šifru 8332. Iznimka su obveznici s RKP-om 46237 na razini 11 i 47053 na razini 12. | E175: 0 | F175: 0 | G175: =IF(AND(OR(AND(I3=11,O3<>46237),AND(I3=12,O3<>47053)),MAX('PR-RAS'!D480:E480)>0),1,0) -> 0
A176: 145 | B176: O.K. | C176: Obveznici razine 12 ne mogu imati popunjene šifre: 611 do 6117. Iznimka od tog pravila je obveznik s RKP-om 47123. Ako ova kontrola javlja pogrešku znači da je za obrazac razine 12 unesen iznos za neku od ovih šifri. | E176: 0 | F176: 0 | G176: =IF(AND(I3=12,O3<>47123,OR(MAX('PR-RAS'!D8:E15)>0,MIN('PR-RAS'!D8:E15)<0)),1,0) -> 0
A177: 146 | B177: O.K. | C177: Obveznici razine 12 ne mogu imati popunjene šifre: 614 i 6148. Iznimka od ovog pravila su neki obveznici koji iznimno mogu, lista obveznika ugrađena je u kontrolu. Ako ova kontrola javlja pogrešku, znači da su ove šifre popunjene ali se ne radi o obvezniku koji ih može imati popunjene. | E177: 0 | F177: 0 | G177: =IF(AND(I3=12,MAX('PR-RAS'!D29:E29,'PR-RAS'!D36:E36)>0,O3<>51,O3<>47439,O3<>43214,O3<>47037,O3<>721,O3<>47053,O3<>756,O3<>1222,O3<>47107,O3<>47096,O3<>51409,O3<>51441),1,0) -> 0
A178: 147 | B178: O.K. | C178: Razina 12 ne smije imati popunjene šifre: 6119 do 6135, 6141 do 6147, 615 do 6152, 6811, 367 do 3674. Ako je za bilo koju od ovih šifri upisan iznos, a obrazac je razine 12, kontrola javlja grešku i obrazac je neispravan. | E178: 0 | F178: 0 | G178: =IF(AND(I3=12,MAX('PR-RAS'!D16:E28,'PR-RAS'!D30:E35,'PR-RAS'!D37:E39,'PR-RAS'!D141:E141,'PR-RAS'!D240:E243)>0),1,0) -> 0
A179: 250 | B179: O.K. | C179: Obveznici razine 12 ne smiju imati popunjenu šifru 8121. Iznimka su obveznici s RKP-om 174, 713, 999, 1222, 20157, 40834, 47037 i 47061. | E179: 0 | F179: 0 | G179: =IF(AND(I3=12,O3<>174,O3<>713,O3<>999,O3<>1222,O3<>20157,O3<>40834,O3<>47037,O3<>47061,MAX('PR-RAS'!D428:E428)>0),1,0) -> 0
A180: 148 | B180: O.K. | C180: Razina 12 ne smije imati popunjene šifre: 8122, 8172, 822 do 8222, 8232 do 8242, 8415, 8416, 8512, 8522, 8542, 511 do 5116, 5156 do 5158, 5165, 5166. Ako je za bilo koju od ovih šifri upisan iznos za razinu 12 obrazac je neispravan. | E180: 0 | F180: 0 | G180: =IF(AND(I3=12,MAX('PR-RAS'!D429:E429,'PR-RAS'!D449:E449,'PR-RAS'!D463:E465,'PR-RAS'!D468:E471,'PR-RAS'!D488:E488,'PR-RAS'!D489:E489,'PR-RAS'!D518:E518,'PR-RAS'!D521:E521,'PR-RAS'!D527:E527,'PR-RAS'!D530:E534,'PR-RAS'!D547:E549,'PR-RAS'!D553:E554)>0),1,0) -> 0
A181: 251 | B181: O.K. | C181: Obveznici razine 12 ne smiju imati popunjenu šifru 8413. Iznimka su obveznici s RKP-om 1087, 1222, 47061, 47107 i 51441. | E181: 0 | F181: 0 | G181: =IF(AND(I3=12,O3<>1087,O3<>1222,O3<>47061,O3<>47107,O3<>51441,MAX('PR-RAS'!D486:E486)>0),1,0) -> 0
A182: 252 | B182: O.K. | C182: Obveznici razine 12 ne smiju imati popunjenu šifru 8414. Iznimka su obveznici s RKP-om 1079, 47053 i 47061. | E182: 0 | F182: 0 | G182: =IF(AND(I3=12,O3<>1079,O3<>47053,O3<>47061,MAX('PR-RAS'!D487:E487)>0),1,0) -> 0
A183: 149 | B183: O.K. | C183: Razina 12 ne smije imati popunjene šifre: 5212, 5222, 524 do 5242, 5342, 551 do 5512, 5522, 5532, 34112, 34122, 34132, 34192. Ako je za bilo koju od ovih šifri upisan iznos, a obrazac je razine 12 obrazac je neispravan. | E183: 0 | F183: 0 | G183: =IF(AND(I3=12,MAX('PR-RAS'!D570:E570,'PR-RAS'!D573:E573,'PR-RAS'!D577:E579,'PR-RAS'!D592:E592,'PR-RAS'!D626:E628,'PR-RAS'!D631:E631,'PR-RAS'!D634:E634,'PR-RAS'!D728:E728,'PR-RAS'!D730:E730,'PR-RAS'!D732:E732,'PR-RAS'!D734:E734)>0),1,0) -> 0
A184: 253 | B184: O.K. | C184: Obveznici razine 12 ne smiju imati popunjenu šifru 5332, osim obveznika s RKP-om 47053. | E184: 0 | F184: 0 | G184: =IF(AND(I3=12,O3<>47053,MAX('PR-RAS'!D589:E589)>0),1,0) -> 0
A185: 254 | B185: O.K. | C185: Obveznici razine 12 ne smiju imati popunjene šifre 5414 do 5416, osim obveznika s RKP-om 174 i 1087. | E185: 0 | F185: 0 | G185: =IF(AND(I3=12,O3<>174,O3<>1087,MAX('PR-RAS'!D596:E598)>0),1,0) -> 0
A186: 150 | B186: O.K. | C186: Razina 13 ne smije imati popunjene šifre: 671 do 6714. Ako je za bilo koju od ovih šifri upisan iznos, a obrazac je razine 13, kontrola javlja grešku i obrazac je neispravan. | E186: 0 | F186: 0 | G186: =IF(AND(I3=13,MAX('PR-RAS'!D134:E137)>0),1,0) -> 0
A187: 151 | B187: O.K. | C187: Razina 21 ne smije imati popunjene šifre: 611 do 6152, 621 do 623, 6811, 3226, 3421, 367 do 3674 i 371 do 3715, 741 i 4228. Ako je za bilo koju od ovih šifri upisan iznos, a obrazac je razine 21 obrazac je neispravan. | E187: 0 | F187: 0 | G187: =IF(AND(I3=21,MAX('PR-RAS'!D8:E39,'PR-RAS'!D45:E49,'PR-RAS'!D141:E141,'PR-RAS'!D175:E175,'PR-RAS'!D203:E203,'PR-RAS'!D240:E243,'PR-RAS'!D253:E258,'PR-RAS'!D349:E349,'PR-RAS'!D377:E377)>0),1,0) -> 0
A188: 152 | B188: O.K. | C188: Razina 21 ne smije imati popunjene šifre: 441, 811 do 8116, 8122, 8156 do 8158, 8165, 8166, 821 do 8212, 8222 do 8232, 8242, 8332, 8342, 841 do 8416. Ako je za bilo koju od ovih šifri upisan iznos, a obrazac je razine 21 obrazac je neispravan. | E188: 0 | F188: 0 | G188: =IF(AND(I3=21,MAX('PR-RAS'!D401:E401,'PR-RAS'!D422:E426,'PR-RAS'!D429:E429,'PR-RAS'!D439:E441,'PR-RAS'!D445:E446,'PR-RAS'!D460:E462,'PR-RAS'!D465:E468,'PR-RAS'!D471:E471,'PR-RAS'!D480:E480,'PR-RAS'!D483:E483,'PR-RAS'!D485:E489)>0),1,0) -> 0
A189: 153 | B189: O.K. | C189: Razina 21 ne smije imati popunjene šifre: 8446 do 8448, 8455, 8456, 8512, 8522 do 8532, 8542, 511 do 5116, 5122, 5156 do 5158, 5165, 5166, 5212, 5222, 523 do 5242, 5332 i 5342. Ako je za bilo koju od ovih šifri upisan iznos za razinu 21 obrazac je neispravan. | E189: 0 | F189: 0 | G189: =IF(AND(I3=21,MAX('PR-RAS'!D499:E501,'PR-RAS'!D505:E506,'PR-RAS'!D518:E518,'PR-RAS'!D521:E524,'PR-RAS'!D527:E527,'PR-RAS'!D530:E534,'PR-RAS'!D537:E537,'PR-RAS'!D547:E549,'PR-RAS'!D553:E554,'PR-RAS'!D570:E570,'PR-RAS'!D573:E579,'PR-RAS'!D589:E589,'PR-RAS'!D592:E592)>0),1,0) -> 0
A190: 154 | B190: O.K. | C190: Razina 21 ne smije imati popunjene šifre: 541 do 5416, 5446 do 5448, 5455, 5456, 551 do 5512, 5522, 5532, 65265, 34112, 34122, 34132, 34192. Ako je za bilo koju od ovih šifri upisan iznos za razinu 21, obrazac je neispravan. | E190: 0 | F190: 0 | G190: =IF(AND(I3=21,MAX('PR-RAS'!D594:E598,'PR-RAS'!D609:E611,'PR-RAS'!D615:E616,'PR-RAS'!D626:E628,'PR-RAS'!D631:E631,'PR-RAS'!D634:E634,'PR-RAS'!D711:E711,'PR-RAS'!D728:E728,'PR-RAS'!D730:E730,'PR-RAS'!D732:E732,'PR-RAS'!D734:E734)>0),1,0) -> 0
A191: 255 | B191: O.K. | C191: Obveznici razina 21, 31, 41 i 42 ne mogu imati zaposlene u tijelima već samo kod korisnika. Ako ova kontrola javlja pogrešku znači da su zaposleni u stupcu tekuće ili prethodne godine upisani pod "zaposlene u tijelima" umjesto pod "zaposlene kod korisnika". | E191: =MAX(G191:K191) -> 0 | F191: =MAX(L191:O191) -> 0 | G191: =IF(AND(OR(I3=21,I3=31,I3=41,I3=42),MAX('PR-RAS'!D653:E653,'PR-RAS'!D655:E655)>0),1,0) -> 0
A192: 256 | B192: O.K. | C192: Obveznici razine 22 mogu imati samo zaposlene u tijelima, a iznimno mogu imati popunjen i broj zaposlenih kod korisnika (zaposleni u vijećima nacionalnih manjina koji se iskazuju u razini 22). Ako obveznik razine 22 ima iskazan broj zaposlenih kod korisnika, kontrola javlja upozorenje. Ako obveznik razine 22 ima iskazan samo broj zaposlenih kod korisnika ili ako je broj zaposlenih kod korisnika veći od broja zaposlenih u tijelima, kontrola javlja pogrešku. Pod kontrolom su podaci u oba stupca. | E192: 0 | F192: 0 | G192: =IF(AND(I3=22,OR('PR-RAS'!D654>'PR-RAS'!D653,'PR-RAS'!E654>'PR-RAS'!E653,'PR-RAS'!D656>'PR-RAS'!D655,'PR-RAS'!E656>'PR-RAS'!E655)),1,0) -> 0 | L192: =IF(AND(MAX('PR-RAS'!D654:E654,'PR-RAS'!D656:E656)>0,I3=22),1,0) -> 0
A193: 155 | B193: O.K. | C193: Razine 22 ne smiju imati popunjene šifre: 612 do 6125, 6133, 6141, 6143, 615 do 6152, 621 do 623, 671 do 673, 6811, 3226, 371 do 3715. Ako je za bilo koju od ovih šifri upisan iznos, a obrazac je razine 22 obrazac je neispravan. | E193: 0 | F193: 0 | G193: =IF(AND(I3=22,MAX('PR-RAS'!D17:E22,'PR-RAS'!D26:E26,'PR-RAS'!D30:E30,'PR-RAS'!D32:E32,'PR-RAS'!D37:E39,'PR-RAS'!D45:E49,'PR-RAS'!D134:E138,'PR-RAS'!D141:E141,'PR-RAS'!D175:E175,'PR-RAS'!D253:E258)>0),1,0) -> 0
A194: 156 | B194: O.K. | C194: Razine 22 ne smiju imati popunjene šifre: 741, 4228, 441, 811 do 8116, 8122, 8156 do 8158, 8165, 8166, 821 do 8212, 8222 do 8232, 8242, 8332, 8342. Ako je za bilo koju od ovih šifri upisan iznos, a obrazac je razine 22 obrazac je neispravan. | E194: 0 | F194: 0 | G194: =IF(AND(I3=22,MAX('PR-RAS'!D349:E349,'PR-RAS'!D377:E377,'PR-RAS'!D401:E401,'PR-RAS'!D422:E426,'PR-RAS'!D429:E429,'PR-RAS'!D439:E441,'PR-RAS'!D445:E446,'PR-RAS'!D460:E462,'PR-RAS'!D465:E468,'PR-RAS'!D471:E471,'PR-RAS'!D480:E480,'PR-RAS'!D483:E483)>0),1,0) -> 0
A195: 157 | B195: O.K. | C195: Razine 22 ne smiju imati popunjene šifre: 8446 do 8448, 8455, 8456, 8512, 8522 do 8532, 8542, 511 do 5116, 5122, 5156 do 5158, 5165, 5166, 5212, 5222 do 5242, 5332, 5342. Ako je za bilo koju od ovih šifri upisan iznos, a obrazac je razine 22 obrazac je neispravan. | E195: 0 | F195: 0 | G195: =IF(AND(I3=22,MAX('PR-RAS'!D499:E501,'PR-RAS'!D505:E506,'PR-RAS'!D518:E518,'PR-RAS'!D521:E524,'PR-RAS'!D527:E527,'PR-RAS'!D530:E534,'PR-RAS'!D537:E537,'PR-RAS'!D547:E549,'PR-RAS'!D553:E554,'PR-RAS'!D570:E570,'PR-RAS'!D573:E579,'PR-RAS'!D589:E589,'PR-RAS'!D592:E592)>0),1,0) -> 0
A196: 158 | B196: O.K. | C196: Razine 22 ne smiju imati popunjene šifre: 5446 do 5448, 5455, 5456, 551 do 5512, 5522, 5532, 65265, 34112, 34132, 34192. Ako je za bilo koju od ovih šifri upisan iznos, a obrazac je razine 22 obrazac je neispravan. | E196: 0 | F196: 0 | G196: =IF(AND(I3=22,MAX('PR-RAS'!D609:E611,'PR-RAS'!D615:E615,'PR-RAS'!D616:E616,'PR-RAS'!D626:E628,'PR-RAS'!D631:E631,'PR-RAS'!D634:E634,'PR-RAS'!D711:E711,'PR-RAS'!D728:E728,'PR-RAS'!D732:E732,'PR-RAS'!D734:E734)>0),1,0) -> 0
A197: 159 | B197: O.K. | C197: Razine 23 ne smiju imati popunjene šifre: 612 do 6125, 6133, 6141, 6143, 615 do 6152, 621 do 623, 639 do 6394, 671 do 6714, 6811, 3226, 367 do 3674, 369 do 3694, 371 do 3715, 741, 4228 i 441. Ako je bilo koja od ovih šifri popunjena obrazac je neispravan. | E197: 0 | F197: 0 | G197: =IF(AND(I3=23,MAX('PR-RAS'!D17:E22,'PR-RAS'!D26:E26,'PR-RAS'!D30:E30,'PR-RAS'!D32:E32,'PR-RAS'!D37:E39,'PR-RAS'!D45:E49,'PR-RAS'!D77:E81,'PR-RAS'!D134:E137,'PR-RAS'!D175:E175,'PR-RAS'!D240:E243,'PR-RAS'!D247:E251,'PR-RAS'!D253:E258,'PR-RAS'!D349:E349,'PR-RAS'!D377:E377,'PR-RAS'!D401:E401)>0),1,0) -> 0
A198: 160 | B198: O.K. | C198: Razine 23 ne smiju imati popunjene šifre: 811 do 8116, 8122, 8156 do 8158, 8165, 8166, 821 do 8212, 8222 do 8232, 8242, 8332, 8342, 8446 do 8448, 8455 i 8456. Ako je za bilo koju od ovih šifri upisan iznos za razinu 23 obrazac je neispravan. | E198: 0 | F198: 0 | G198: =IF(AND(I3=23,MAX('PR-RAS'!D422:E426,'PR-RAS'!D429:E429,'PR-RAS'!D439:E441,'PR-RAS'!D445:E446,'PR-RAS'!D460:E462,'PR-RAS'!D465:E468,'PR-RAS'!D471:E471,'PR-RAS'!D480:E480,'PR-RAS'!D483:E483,'PR-RAS'!D499:E501,'PR-RAS'!D505:E506)>0),1,0) -> 0
A199: 161 | B199: O.K. | C199: Razine 23 ne smiju imati popunjene šifre: 8512, 8522 do 8532, 8542, 511 do 5116, 5122, 5156 do 5158, 5165, 5166, 5212, 5222 do 5242, 5332, 5342. Ako je za bilo koju od ovih šifri upisan iznos za razinu 23 obrazac je neispravan. | E199: 0 | F199: 0 | G199: =IF(AND(I3=23,MAX('PR-RAS'!D518:E518,'PR-RAS'!D521:E524,'PR-RAS'!D527:E527,'PR-RAS'!D530:E534,'PR-RAS'!D537:E537,'PR-RAS'!D547:E549,'PR-RAS'!D553:E554,'PR-RAS'!D570:E570,'PR-RAS'!D573:E579,'PR-RAS'!D589:E589,'PR-RAS'!D592:E592)>0),1,0) -> 0
A200: 162 | B200: O.K. | C200: Razine 23 ne smiju imati popunjene šifre: 5446 do 5448, 5455, 5456, 551 do 5512, 5522, 5532, 65265, 34112, 34122, 34132, 34192. Ako je za bilo koju od ovih šifri upisan iznos za razinu 23 obrazac je neispravan. | E200: 0 | F200: 0 | G200: =IF(AND(I3=23,MAX('PR-RAS'!D609:E611,'PR-RAS'!D615:E616,'PR-RAS'!D626:E628,'PR-RAS'!D631:E631,'PR-RAS'!D634:E634,'PR-RAS'!D711:E711,'PR-RAS'!D728:E728,'PR-RAS'!D730:E730,'PR-RAS'!D732:E732,'PR-RAS'!D734:E734)>0),1,0) -> 0
... 120 more rows

Sheet Promjene
A1: PROMJENE
A2: Na ovom radnom listu dat će se popis svih, i najmanjih promjena Excel datoteke iz verzije u verziju (bilo da su nastale zbog promjene zakonskih propisa, ispravka pogrešaka u Excel datoteci, dodatnim kontrolama ili poboljšanjima obrasca.
A3: Verzija | B3: Opis promjene u odnosu na prethodnu verziju
A4: 2.0.0. | B4: Svi obrasci proračuna i proračunskih korisnika objedinjeni su zbog potreba kontrola između obrazaca te lakšu kontrolu obveznosti (koja razina je obvezna podnositi koji obrazac).
A5: 2.0.0. | B5: Uvedena su polja "Datum od" i "Datum do" svakog pojedinog razdoblja kako bi se moglo posebno prepoznati obveznike koji nisu poslovali cijelo navedeno razdoblje (novootvoreni obveznici i obveznici koji zbog statusnih promjena gube pravnu osobnost).
A6: 2.0.0. | B6: Programskim kućama koje izrađuju aplikacije za punjenje obrazaca olakšan je postao jer se za sve obrasce i sve vrste posla unosi jedno jedinstveno zaglavlje, u svakom obrascu AOP oznake upisane su u koloni "C", dok svi iznosi (bez obzira na broj kolona) počinju u koloni "D", u 12. retku. Od ovoga se više neće odstupati osim ako ne bude nikakve druge mogućnosti da se unesu potrebne promjene.
A7: 2.0.1. | B7: Popravljeni su pogrešni naslovi nekih obrazaca. Dodana je kontrola da se u poštanski broj ne može unijeti nešto što nije broj između 10000 i 60000. Popravljena je kontrola upozorenja na S-PR-RAS obrascu koja je krivo izračunavala razradu konta 32 (kontrola pod rednim brojem 90)
A8: 2.0.2. | B8: Ispravljena kontrola u PR-RAS obrascu koja je AOP 010 zbrajala u AOP oznaku 003, umjesto da je oduzimala od sume svih ostalih AOP oznaka.
A9: 2.0.3. | B9: Ispravljena kontrola upozorenja na broj zaposlenih u PR-RAS obrascu preko 1000 kada to nije. Ispravljena kontrola koja je za polugodište javljala pogrešku da se za razinu 23 ne predaje obrazac Obveze. Svi obveznici (ne više samo oni kojima je razdjel ujedno i glava) razina 11 i 12 trebaju upisati razdjel, a ostali obveznici ne mogu.
A10: 2.0.3. | B10: Upisom razine 11 ili 12 u zaglavlju obrasca obveze automatski se pojavljuje oznaka da je obrazac mjesečni, a ne kvartalni. Promijenjeni su opisi obveznosti predaje prema razinama, grupirani na mjesečnu obvezu, kvartalnu, polugodišnju i godišnju. Na obrazac obveze, na dnu obrasca dodana crta za potpis zakonskog predstavnika (za dostavu obrasca nadležnim ministarstvima).
A11: 2.0.3. | B11: Proširene upute tekstom o upotrebi ove Excel datoteke za dostavu podataka nadležnim ministarstvima ili za neke druge potrebe.
A12: 2.0.4. | B12: Popravljena kontrola broj 36 u PR-RAS-u koja je provjeravala pogrešne AOP pozicije. Popravljena kontrola koja je javljala pogrešku ako je bio popunjen polugodišnji obrazac NT za razine 22 i 23.
A13: 2.0.5. | B13: Popravljena kontrola broj 9 u kojoj je za razinu 23 traženo da bude upisan i obrazac NT, a stvarno ne treba biti.
A14: 2.0.6. | B14: Popravljene kontrole broj 7 i 12 (obveznost predaje po razinama 13 i 42) te kontrola 63 - iznosi planiranog za razdoblje i planiranog za cijelu godinu u obrascu PR-RAS moraju biti identični kod godišnjeg obrasca, a za ostala razdoblja iznos planirano za razdoblje mora biti manji ili jednak planiranom za cijelu godinu.
A15: 2.0.7. | B15: Popravljena je kontrola broj 63 koja govori da planirano za razdoblje ne može biti veće od planiranoga za godinu. Iznimno, ovakvo stanje dopušteno je kod sumarnih AOP oznaka u kojima se neka vrijednost oduzima (primjerice AOP oznaka 222 ili 223) jer se računaju automatski.
A16: 2.0.8. | B16: Popravljene kontrole popunjenosti obrazaca za razine 13, 31, 41 i 42 na godišnjoj razini. Dodan je razdjel 095, Izbrisan je razdjel 065 (sa starim nazivom, ostao samo s novim), promijenjen opis kontrole P-VRIO obrasca (naglašavanje da se oznaka DA ili NE na referentnoj stranici mora upisati ručno).
A17: 2.0.9. | B17: Dodana mogućnost odabira svih razdoblje za 2010. godinu, dodani novi razdjeli za 2010.
A18: 2.1.0. | B18: Popravljen je prikaz datuma od i do na nekim obrascima koji se je poremetio ubacivanjem novih razdoblja za 2010.
A19: 2.1.0. | B19: Dorađena su poslovna pravila o popunjavanju obrasca, kolona planirano za razdoblje i planirano ukupno popunjavaju se samo na trećoj razini kontnog plana, a ne na četvrtoj kako je bilo ranije, te je obrazac dorađen u skladu s tim pravilom.
A20: 2.5.0. | B20: Omogućen je unos samo obrasca Obveze (mjesečne) za razdoblja siječanj i veljaču 2011. Ostali obrasci će se mijenjati i čekaju se izmjene. Zbog toga je Obveze dobio novu šifru vrste posla.
A21: 2.9.0. | B21: Omogućen unos obrazaca za I. kvartal 2011. godine - nepotpune kontrole.
A22: 2.9.1. | B22: Omogućen unos obrasca Obveze za travanj 2011. godine
A23: 4.0.0. | B23: Novi obrazac od 1.1.2015. - prva verzija obrasca, omogućen samo unos mjesečnog obrasca Obveze za siječanj 2015. godine
A24: 4.0.1. | B24: Omogućen unos mjesečnih obveza za veljaču. Ostale vrste obrazaca još nemaju kontrole.
A25: 4.0.2. | B25: Ugrađene su sve kontrole za sve obrasce. Omogućen je unos za sva razdoblja u 2015. godini. Dodan je opis novosti i promjena kod predaje u Upute. Ažuriran je popis razdjela za 2015. godinu.
A26: 4.0.3. | B26: Ispravljena kontrola broj 23. Pogrešno je upozoravala na AOP 646, umjesto na 649.
A27: 4.0.4. | B27: Kontrola upozorenja broj 156 je obrisana jer više nema u dodatnim podacima razrade koja je bila prije za ovaj konto. Ispravljena je kontrola 147 koja nije dopuštala da razina 11 ima upisan broj zaposlenih u tijelima s obzirom da nadležna ministarstva imaju te zaposlene, a oni također predaju izvještaje razine 11. Ispravljena je kontrola 58. koja nije dobro radila na koloni tekuće godine. Ispravljena je automatska suma na AOP oznaci 224 u koloni prethodne godine u Bilanci. Unesene su sitne ispravke "tipfelera" u nekim kontrolama.
A28: 4.0.5. | B28: Opis AOP oznake 639 je ispravljen, glasio je "Rashodi budućih razdoblja", novi opis je "Unaprijed plaćeni rashodi budućih razdoblja". Ispravljena pogrešna formula na AOP-u 407. Ispravljena je pogrešna formula u kontroli 028.
A29: 4.0.6. | B29: Ispravljene su pogreške u obrascu Obveze zbog kojih se podaci pod AOP oznakama 095 do 101 nisu uopće učitavali u aplikaciju. Iz tog razloga neće se više moći učitati bilo koji obrazac iz verzije niže od 4.0.6. Dodane su nova kontrola broj 52 i 53 (svim bivšim kontrolama iza 51 povećan je broj za 2). Ispravljen je opis što se sumira pod AOP oznakama 405 i 406. Formula je bila dobra. Ispravljen je i opis i formula za sumu na AOP oznaci 407. Proširena je lista AOP-a koji nesmiju biti popunjeni za razinu 22 i 23 - dodani su AOP-i 132 i 133 u kontrolu 153 (bivša kontrola 151). Adresa e-pošte za kontakt u zaglavlju stavljena je kao obvezan podatak zbog česte potrebe kontaktiranja obveznika, a koje je nemoguće kontaktirati putem telefona.
A30: 4.0.7. | B30: Kontrola 153 podijeljena je na dvije kontrole, jer se zabrane popunjavanja nekih AOP pozicija razlikuju kod razine 22 i 23. Za razinu 23 dopušteno je popunjavanje AOP pozicija 128 do 133.
A31: 4.0.8. | B31: Omogućen je unos mjesečnih Obveza i za razinu 11. Nova Bilanca za 2015. još nije ugrađena u obrazac.
A32: 4.0.9. | B32: Ispravljena je kontrola broj 66 koja je pogrešno glasila "AOP 423 mora biti jedna sumi AOP-a 496+498", ispravno je da treba glasiti "AOP423 mora biti jednak sumi AOP-a 496 do 498", tj. i AOP oznaka 497 ulazi u kontrolu sume. Ispravljen je i opus i formula za ovu kontrolu.
A33: 4.1.0. | B33: Ugrađena je nova Bilanca koja vrijedi od 2015. godine. Kontrole 15 i 16 su dorađene i spojene u jednu (kontrola 15, a stara kontrola 16 je obrisana te je broj kontrola manji). S proširenjem broja AOP oznaka u dodatnim podacima u Bilanci promijenjeni su opisi kontrola 224 do 232 u Bilanci, tj. kontrole se nisu mijenjali ali su opisi prilagođeni novim AOP oznakama. Dodano je 7 novih kontrola na obrazac Bilancu. Kako se obrazac Bilanca promijenio, dodana mu je nova (stara) šifra vrste posla 152.
A34: 4.2.0. | B34: Ukinuti su mjesečni obrasci Obveze za sve vrste obveznika. Izmjijenjen je opis AOP oznake 639 u PR-RAS-u te AOP 001 u obrascu Obveze. Obrazac obveze predaje se za cijelo razdoblje, od početka godine do datuma izvještavanja, ne samo za kvartal (tj. obveze na dan 30.06 predaju se za razdoblje 1.1. do 30.06. ne više za razdoblje 1.4. do 30.06.). Izmijenjena je kontrola 153. Dorađena je kontrola broj 16. Promijenjena je obveznost po razdobljima i razinama u odnosu na prethodnu godinu. U kontrole 148 do 156 dopuštene su iznimke na neke AOP oznake te za neke korisnike.
A35: 4.2.1. | B35: Ispravljen je opis vrste posla na samom radnom listu izvještaja o Obvezama (VP 159, a ne VP 160). Ispravljen je datum koji se prikazuje na izvještaju o obvezama, nije od 1. u mjesecu do kraja mjesece već od 1. siječnja do kraja razdoblja jer više mjesečnih obveza nema. Ova izmjena ne utječe na funkcionalnost obrasca, napravljena je samo iz razloga da ne zbunjuje korisnike, tj. da ne smatraju kako se radi o mjesečnom izvještaju obveze. Ako ste već izvještaj ispunili u verziji 4.2.0. nije potrebno prebacivati u novu verziju.
A36: 4.2.2. | B36: Dodan komentar u obrazac Obveze na AOP oznaku 001. Ispravljen pogrešan opis AOP oznake 639. Ispravljena kontrola 13 koja je pogreškom uspoređivala AOP 639 iz PR-RAS obrasca i 159 iz Bilance. Ispravno je da je uspoređuje sa AOP oznakom 158 iz Bilance.
A37: 4.2.3. | B37: Ispravljena je kontrola broj 16 koja nije uzimala u obzir iznos prikazan na AOP oznaci 234 PR-RAS-a. Ispravljen opis kontrole 13 koji je kod zadnje izmjene greškom ostao 159. Obveznici koji nisu imali popunjen iznos na AOP 234 ni u jednoj godini mogu predati i na starijoj verziji obrasca jer im ova kontrola neće javljati pogrešku.
A38: 5.0.1. | B38: Nova verzija obrasca za 2017. Promijenio se broj AOP oznaka kod 3 obrasca pa su svi obrasci i kontrole novi.
A39: 5.0.2. | B39: Dorađene kontrole izuzetaka koji mogu imati popunjen AOP 031 (a time i 024) za razinu 11, tj. kontrola 154 je podijeljena na 154. i 155., a kontrola 157 na 158 i 159, pa se i broj kontrola povećao za 2. Ispravljena kontrola 14. umjesto AOP-a 159 kontrolira se AOP 158. Popravljene neke kontrole koje ne dopuštaju da neka razina ima popunjen neki određeni AOP.
A40: 5.0.3. | B40: Na listu AOP oznaka koje ne mogu biti popunjene kod razine 23 dodane su AOP oznake: 069 do 073 i 241 do 245. Obrazac eventualno popunjen u verziji 5.0.2. može se predati ako je zadovoljen ovaj uvjet da za razinu 23 nisu popunjene te AOP oznake. Ispravljena kontrola 172, greškom je javljala pogrešku ako je popunjen AOP 695, a ne 685.
A41: 5.0.4. | B41: Ispravljene kontrole 202 i 203 koje su provjeravale pogrešne AOP oznake u koloni tekuće godine. Ponovo je ispravljena kontrola 177, tj. isključen je AOP 246 iz liste onih koji ne mogu biti popunjeni. Popravljena je kontrola 168 koja se javljala kod razine 12 umjesto kod razine 13. Kontrole na razinu 12 nisu radile ako je bila upisana razina 11 i kad je izvještaj imao oznaku da vrijedi i kao konsolidirani.Ispravljena je kontrola 205 koja je greškom uspoređivala AOP-e 210 i 729, a treba 211 i 729.
A42: 5.0.5. | B42: RKP 47115 dodan na listu izuzetaka za nepopunjavanje AOP oznake 579 za razinu 12. Dorađena kontrola popunjenosti općih podataka - zakonski predstavnik mora biti upisan inače Excel javlja pogrešku. Dodana su razdoblja za 2018. godinu. Obveznicima razine 21 i 31 dopušten je unos podataka na AOP oznake 222 do 227. Popravljena kontrola 271 koja je u stupcu tekućeg razdoblja uspoređivala krive AOP oznake.
A43: 5.0.6. | B43: RKP 1087 dodan na listu izuzetaka za nepopunjavanje AOP oznake 474 do 478. Dorađen je opis kontrole 3, da dodatno pojasni oznaku "DA" za konsolidaciju jer korisnici proračuna razine 11 vrlo često pokušavaju upisati "DA" iako nisu ni obveznici predaje konsolidiranih izvještaja. Skriveni su redovi i stupci koji služe kao popis mogućih šifri, a koji su zbunjivali neke obveznike. Skriveni su stupci i redovi u obrascu verzije 5.0.5. koji se ne bi trebali vidjeti, a sadrže šifarnike potrebne za rad Kontrola, ne umanjuju funkcionalnost Excel-a, ali zbunjuju korisnike.
A44: 5.0.7. | B44: Dodana nova razdoblja za 2019. godinu, dodane nove kontrole broj 254 na PR-RAS obrazac koja ne dopušta da višak i manjak prihoda preneseni budu istovremeno popunjeni. Sitne promjene uputa. Dodani razdjeli 011 i 255, brisan razdjel 256.
A45: 6.0.0. | B45: Dodano je nekoliko novih AOP pozicija unutar obrasca Bilanca, za informaciju su ozančene plavom bojom. Shodno izmjenama obrasca Bilance izmijenjeni su i redni brojevi AOP oznaka i kontrole. Dodana razdoblja za 2020. godinu. Dodan novi razdjel 039 - Hrvatska vatrogasna zajednica.
A46: 7.0.0. | B46: Nova verzija obrasca. Najveća promjena je micanje AOP-a i uvođenje polja Šifre kao jedinstvenu stavku za potrebe obrade unesenih podataka u web aplikaciji. Također, promjene su zahvatile sve listove ovog Excel dokumenta te su iste sad u skladu s web aplikacijom. Izbačen je dio vezan za unos općih podataka (koji se sad povlači iz aplikacije prilikom predaje dokumenta), smanjen je prikaz pojedinih podataka na samim obrascima te su pojedine kontrole uklonjenje.
A47: 7.3.0. | B47: Dodane neke nove i izmijenjene postojeće kontrole na popunjenost nekih šifri po razinama. Dodavanje novih kontrola na broj zaposlenih u tijelima i kod korisnika, ispravke nekih kontrola koje nisu dobro radile u Excel-u. Dorađena kontrola na mogućnost upisa minus stavaka u PR-RAS-u. Ispravljene kontrole 178 i 191 koje su za razine 11 i 22 javljale pogrešku i kada su podaci bili ispravni.
A48: 8.0.0. | B48: Nova verzija obrasca. Najveća promjena je uklanjanje AOP oznake i uvođenje polja Šifre kao jedinstvene stavke za potrebe obrade unesenih podataka u web aplikaciji. Dodatna značajna promjena odnosi se na unos novčanih iznosa koji se u obrascima iskazuju punim brojem sa dvije decimale u službenoj valuti Republike Hrvatske. Izbačen je dio podataka vezan za unos Općih podataka o proračunu, proračunskom i izvanproračunskom korisniku na Referentnoj stranici (podaci se sada za svaki subjekt povlače iz Registra proračunskih i izvanproračunskih korisnika u samoj aplikaciji prilikom predaje obrazaca). Isto tako, smanjen je prikaz pojedinih podataka na samim obrascima te su uklonjene pojedine kontrole. Promjene su zahvatile sve listove ovog Excel dokumenta te su u skladu s web aplikacijom.
A49: 8.0.1. | B49: Korekcije postojećih kontrola. Korekcije formula određenih šifri. Referentna stranica prilagođena za ispis. Promjene su zahvatile listove RefStr, PR-RAS i Kont.
A50: 8.0.2. | B50: Dorađen list Upute. Dodane nedostajale formule za izračun indeksa na listu PR-RAS.
A51: 8.0.3. | B51: Korekcija postojećih kontrola (kontrole broj 156 i 160).
A52: 8.1.0. | B52: Korekcija postojećih kontrola (ažurirane kontrole broj 136, 148, 247), brisana kontrola broj 188 i dodana nova kontrola broj 257.
A53: 8.1.1. | B53: Korekcija postojećih kontrola (ažurirane kontrole broj 158 i 161).
A54: 8.1.2. | B54: Korekcija postojećih kontrola (ažurirane kontrole broj 155 i 159).
A55: 8.1.3. | B55: Dodane nove kontrole: kontrola broj 5 između različitih obrazaca, kontrola broj 258 na obrascu PR-RAS, kontrole broj 30, 31, 32, 33, 34, 35, 36, 37, 38, 39, 40, 41, 42, 43, 44 i 45 na obrascu BILANCA.
